Directorate,Department,Expenditure Type,Ref.Doc.1,Vendor Name,Expenditure Amount (exc VAT),Payment Date
Assurance,Assurance,Clothing - Uniforms,80009695,EUROSUITS LIMITED, 133.33 ,11/04/2017
Assurance,Assurance,Other Indirect Employee Expens,80009681,MAYOR'S CHARITY APPEAL, 240.00 ,11/04/2017
Assurance,Assurance,Other Indirect Employee Expens,80009682,MAYOR'S CHARITY APPEAL, 120.00 ,11/04/2017
Assurance,Assurance,Other Indirect Employee Expens,80009869,MAYOR'S CHARITY APPEAL, 240.00 ,28/04/2017
Assurance,Assurance,Other Indirect Employee Expens,80009529,MAYOR'S SPECIAL APPEAL 2016/17, 30.00 ,04/04/2017
Assurance,Assurance,Other Indirect Employee Expens,80009867,THE MAYOR'S CHARITY, 24.00 ,28/04/2017
Assurance,Assurance,Other Indirect Employee Expens,80009532,WANDSWORTH COUNCIL, 70.00 ,04/04/2017
Assurance,Assurance,Other Services,60074894,SHRED-IT, 453.60 ,19/04/2017
Assurance,Assurance,Postage,60077582,ROYAL MAIL GROUP LIMITED, 218.75 ,21/04/2017
Assurance,Assurance,Printing-Contract,60077236,ELECTORAL REFORM SERVICES, 371.25 ,12/04/2017
Assurance,Assurance,Printing-Contract,60077365,ELECTORAL REFORM SERVICES," 2,082.62 ",27/04/2017
Assurance,Assurance,Professional Services,60077571,BARNARD &  WESTWOOD LTD, 79.77 ,21/04/2017
Assurance,Assurance,Professional Services,60077744,BARNARD &  WESTWOOD LTD, 260.40 ,27/04/2017
Assurance,Assurance,Professional Services,60075307,PRICEWATERHOUSE COOPERS," 37,849.43 ",12/04/2017
Assurance,Assurance,Professional Services,60075968,PRICEWATERHOUSE COOPERS," 37,849.43 ",20/04/2017
Assurance,Assurance,Rents,60074912,BARNET & SOUTHGATE COLLEGE, 315.00 ,05/04/2017
Assurance,Assurance,Rents,60074843,FRIERN BARNET HUT MANAGEMENT COMMIT, 750.00 ,04/04/2017
Assurance,Assurance,Subscriptions,60075260,ASSOCIATION OF DEMOCRATIC SERVICES OFFIC, 46.75 ,04/04/2017
Assurance,Assurance,Subscriptions,60077321,CABINET OFFICE," 4,150.00 ",12/04/2017
Assurance,Assurance,Subscriptions,60075220,COMPANIES HOUSE, 4.00 ,04/04/2017
Assurance,Assurance,Subscriptions,60075555,COMPANIES HOUSE, 12.00 ,04/04/2017
Assurance,Assurance,Subscriptions,60077506,COMPANIES HOUSE, 7.00 ,21/04/2017
Assurance,Assurance,Subscriptions,60076809,REDACTED - PERSONAL DATA, 150.00 ,20/04/2017
Assurance,Assurance,Subscriptions,60075685,TAMESIDE METROPOLITAN BOROUGH COUNC," 1,000.00 ",19/04/2017
Assurance,Assurance,Training,60076554,CIPFA BUSINESS LIMITED," 3,525.00 ",27/04/2017
Assurance,Assurance,Training,60077790,MODERN MINDSET LTD," 1,300.00 ",25/04/2017
Assurance,Assurance,Translation Exp / Interpret,60077565,PRIME PRODUCTION LTD, 54.50 ,20/04/2017
Assurance,Assurance,Translation Exp / Interpret,60074528,REDACTED - PERSONAL DATA, 940.00 ,04/04/2017
Assurance,Assurance,Translation Exp / Interpret,60076776,REDACTED - PERSONAL DATA, 315.00 ,27/04/2017
Central Expenses,Central Expenses,Insurance Claims,80009605,ADMIRAL INSURANCE, 547.36 ,07/04/2017
Central Expenses,Central Expenses,Insurance Claims,80009484,ADMIRAL LAW," 2,360.00 ",03/04/2017
Central Expenses,Central Expenses,Insurance Claims,80009503,ALLWEIS & COMPANY," 3,203.00 ",03/04/2017
Central Expenses,Central Expenses,Insurance Claims,80009609,BROADWAY SOLICITORS, 240.00 ,07/04/2017
Central Expenses,Central Expenses,Insurance Claims,80009660,BROADWAY SOLICITORS, 576.00 ,11/04/2017
Central Expenses,Central Expenses,Insurance Claims,60076221,CITY SUBURBAN TREE SURGEONS LTD, 104.50 ,26/04/2017
Central Expenses,Central Expenses,Insurance Claims,80009614,COLINDALE MEDICAL CENTRE, 50.00 ,07/04/2017
Central Expenses,Central Expenses,Insurance Claims,80009610,COMPASS LAW SOLUTIONS, 131.74 ,07/04/2017
Central Expenses,Central Expenses,Insurance Claims,80009603,DIRECT LINE MOTOR CLAIMS," 2,120.00 ",07/04/2017
Central Expenses,Central Expenses,Insurance Claims,80009819,DWP COMPENSATION RECOVERY UNIT, 647.00 ,24/04/2017
Central Expenses,Central Expenses,Insurance Claims,80009481,EQUITAS SOLICITORS," 8,331.40 ",25/04/2017
Central Expenses,Central Expenses,Insurance Claims,80009663,ESURE," 5,328.76 ",11/04/2017
Central Expenses,Central Expenses,Insurance Claims,80009756,FARLEYS SOLICITORS," 2,060.00 ",19/04/2017
Central Expenses,Central Expenses,Insurance Claims,80009608,HMCTS, 455.00 ,07/04/2017
Central Expenses,Central Expenses,Insurance Claims,80009677,KINDERTONS ACCIDENT MANAGEMENT, 148.99 ,12/04/2017
Central Expenses,Central Expenses,Insurance Claims,80009604,LEGAL ASSIST," 1,018.00 ",06/04/2017
Central Expenses,Central Expenses,Insurance Claims,80009613,LV=," 1,529.53 ",06/04/2017
Central Expenses,Central Expenses,Insurance Claims,80009725,PLEXUS LAW LTD," 10,000.00 ",13/04/2017
Central Expenses,Central Expenses,Insurance Claims,80009534,QUINDELL, 131.74 ,21/04/2017
Central Expenses,Central Expenses,Insurance Claims,80009699,ROMAIN COLEMAN, 405.00 ,12/04/2017
Central Expenses,Central Expenses,Insurance Claims,80009738,SLATER & GORDON," 13,500.00 ",18/04/2017
Central Expenses,Central Expenses,Insurance Claims,80009507,SLATER & GORDON SOLICITORS," 4,532.00 ",03/04/2017
Central Expenses,Central Expenses,Insurance Claims,80009762,ST GEORGE'S MEDICAL CENTRE, 50.00 ,19/04/2017
Central Expenses,Central Expenses,Insurance Claims,10013683,WEIGHTMANS LLP," 1,000.00 ",03/04/2017
Central Expenses,Central Expenses,Insurance Claims,60075719,WEIGHTMANS LLP," 1,187.50 ",03/04/2017
Central Expenses,Central Expenses,Insurance Claims,60076070,WEIGHTMANS LLP, 298.00 ,03/04/2017
Central Expenses,Central Expenses,Insurance Claims,60076075,WEIGHTMANS LLP, 787.50 ,03/04/2017
Central Expenses,Central Expenses,Insurance Claims,60076082,WEIGHTMANS LLP, 140.00 ,03/04/2017
Central Expenses,Central Expenses,Insurance Claims,60076187,WEIGHTMANS LLP, 161.50 ,03/04/2017
Central Expenses,Central Expenses,Insurance Claims,60076246,WEIGHTMANS LLP, 178.50 ,03/04/2017
Central Expenses,Central Expenses,Insurance Claims,60076284,WEIGHTMANS LLP, 600.00 ,03/04/2017
Central Expenses,Central Expenses,Other Establishments - Third P,EBX0168821,ENVIRONMENT AGENCY," 78,860.00 ",28/04/2017
Central Expenses,Central Expenses,Other Establishments - Third P,EBX0168825,LEE VALLEY REGIONAL PARK AUTH.," 30,430.58 ",28/04/2017
Central Expenses,Central Expenses,Other Establishments - Third P,EBX0168818,LONDON PENSIONS FUND AUTHORITY," 49,828.80 ",28/04/2017
Central Expenses,Central Expenses,Subscriptions,60076421,LONDON BOROUGH OF EALING," 36,269.00 ",03/04/2017
Central Expenses,Central Expenses,Subscriptions,60076603,LONDON BOROUGH OF EALING," 39,000.00 ",05/04/2017
Commercial,Births Deaths & Marriages,Cleaning and domestic material,60073146,CHURCHILL CONTRACT SERVICES,-489.80 ,27/04/2017
Commercial,Births Deaths & Marriages,Cleaning and domestic material,60076814,CHURCHILL CONTRACT SERVICES, 664.48 ,27/04/2017
Commercial,Births Deaths & Marriages,Other Services,60077418,LONDON BOROUGH OF BRENT," 105,785.00 ",13/04/2017
Commercial,Customer Support Group,Books-CDs-Audio-Video,60075289,SM ELECTRICAL SERVICES, 85.00 ,12/04/2017
Commercial,Customer Support Group,Books-CDs-Audio-Video,60075753,SM ELECTRICAL SERVICES, 300.00 ,20/04/2017
Commercial,Customer Support Group,Building Repairs & Maintenance,60077722,ABEL ALARM COMPANY LIMITED, 40.00 ,24/04/2017
Commercial,Customer Support Group,Building Repairs & Maintenance,60076095,ADAMS ENVIRONMENTAL LTD, 500.00 ,21/04/2017
Commercial,Customer Support Group,Building Repairs & Maintenance,60078039,ADAMS ENVIRONMENTAL LTD, 750.00 ,28/04/2017
Commercial,Customer Support Group,Building Repairs & Maintenance,60074451,AJS LTD, 296.87 ,18/04/2017
Commercial,Customer Support Group,Building Repairs & Maintenance,60074874,AJS LTD, 336.00 ,05/04/2017
Commercial,Customer Support Group,Building Repairs & Maintenance,60076599,AJS LTD, 250.88 ,05/04/2017
Commercial,Customer Support Group,Building Repairs & Maintenance,60076610,AJS LTD, 7.84 ,05/04/2017
Commercial,Customer Support Group,Building Repairs & Maintenance,60076616,AJS LTD, 15.68 ,05/04/2017
Commercial,Customer Support Group,Building Repairs & Maintenance,60076620,AJS LTD, 39.20 ,05/04/2017
Commercial,Customer Support Group,Building Repairs & Maintenance,60076639,AJS LTD, 7.84 ,05/04/2017
Commercial,Customer Support Group,Building Repairs & Maintenance,60076647,AJS LTD, 54.88 ,05/04/2017
Commercial,Customer Support Group,Building Repairs & Maintenance,60076670,AJS LTD, 54.88 ,05/04/2017
Commercial,Customer Support Group,Building Repairs & Maintenance,60076686,AJS LTD, 54.88 ,05/04/2017
Commercial,Customer Support Group,Building Repairs & Maintenance,60076960,AJS LTD, 243.04 ,10/04/2017
Commercial,Customer Support Group,Building Repairs & Maintenance,60077446,AJS LTD, 156.80 ,18/04/2017
Commercial,Customer Support Group,Building Repairs & Maintenance,60077475,AJS LTD, 23.52 ,18/04/2017
Commercial,Customer Support Group,Building Repairs & Maintenance,60077497,AJS LTD, 23.52 ,18/04/2017
Commercial,Customer Support Group,Building Repairs & Maintenance,60077509,AJS LTD, 31.36 ,18/04/2017
Commercial,Customer Support Group,Building Repairs & Maintenance,60077534,AJS LTD, 39.20 ,19/04/2017
Commercial,Customer Support Group,Building Repairs & Maintenance,60077554,AJS LTD, 31.36 ,19/04/2017
Commercial,Customer Support Group,Building Repairs & Maintenance,60077558,AJS LTD, 23.52 ,19/04/2017
Commercial,Customer Support Group,Building Repairs & Maintenance,60076643,BLUE 9 SECURITY LIMITED," 1,485.00 ",07/04/2017
Commercial,Customer Support Group,Building Repairs & Maintenance,60077499,CAMBS-PAT LTD, 358.45 ,18/04/2017
Commercial,Customer Support Group,Building Repairs & Maintenance,60078042,CHARLES WILSON ENGINEERS LTD, 800.00 ,28/04/2017
Commercial,Customer Support Group,Building Repairs & Maintenance,60078064,CHARLES WILSON ENGINEERS LTD, 800.00 ,28/04/2017
Commercial,Customer Support Group,Building Repairs & Maintenance,60078095,CHARLES WILSON ENGINEERS LTD, 220.00 ,28/04/2017
Commercial,Customer Support Group,Building Repairs & Maintenance,60076453,DORMA UK LTD, 129.00 ,05/04/2017
Commercial,Customer Support Group,Building Repairs & Maintenance,60076658,DORMA UK LTD, 231.50 ,05/04/2017
Commercial,Customer Support Group,Building Repairs & Maintenance,60078074,GEESINK NORBA LTD," 1,401.63 ",28/04/2017
Commercial,Customer Support Group,Building Repairs & Maintenance,60071160,HERTEL (UK) LTD, 34.91 ,12/04/2017
Commercial,Customer Support Group,Building Repairs & Maintenance,60071187,HERTEL (UK) LTD, 34.91 ,05/04/2017
Commercial,Customer Support Group,Building Repairs & Maintenance,60071512,HERTEL (UK) LTD, 34.91 ,12/04/2017
Commercial,Customer Support Group,Building Repairs & Maintenance,60071628,HERTEL (UK) LTD, 34.91 ,12/04/2017
Commercial,Customer Support Group,Building Repairs & Maintenance,60075714,HERTEL (UK) LTD, 119.70 ,20/04/2017
Commercial,Customer Support Group,Building Repairs & Maintenance,60076327,HERTEL (UK) LTD, 75.00 ,03/04/2017
Commercial,Customer Support Group,Building Repairs & Maintenance,60076336,HERTEL (UK) LTD, 75.00 ,03/04/2017
Commercial,Customer Support Group,Building Repairs & Maintenance,60076337,HERTEL (UK) LTD, 90.00 ,03/04/2017
Commercial,Customer Support Group,Building Repairs & Maintenance,60076346,HERTEL (UK) LTD, 150.00 ,03/04/2017
Commercial,Customer Support Group,Building Repairs & Maintenance,60076355,HERTEL (UK) LTD, 34.91 ,12/04/2017
Commercial,Customer Support Group,Building Repairs & Maintenance,60076363,HERTEL (UK) LTD, 45.00 ,03/04/2017
Commercial,Customer Support Group,Building Repairs & Maintenance,60076364,HERTEL (UK) LTD, 150.00 ,03/04/2017
Commercial,Customer Support Group,Building Repairs & Maintenance,60076372,HERTEL (UK) LTD, 120.00 ,03/04/2017
Commercial,Customer Support Group,Building Repairs & Maintenance,60076373,HERTEL (UK) LTD, 45.00 ,12/04/2017
Commercial,Customer Support Group,Building Repairs & Maintenance,60076379,HERTEL (UK) LTD, 34.91 ,12/04/2017
Commercial,Customer Support Group,Building Repairs & Maintenance,60076388,HERTEL (UK) LTD, 34.91 ,12/04/2017
Commercial,Customer Support Group,Building Repairs & Maintenance,60076391,HERTEL (UK) LTD, 75.00 ,03/04/2017
Commercial,Customer Support Group,Building Repairs & Maintenance,60076399,HERTEL (UK) LTD, 45.00 ,03/04/2017
Commercial,Customer Support Group,Building Repairs & Maintenance,60076412,HERTEL (UK) LTD, 120.00 ,03/04/2017
Commercial,Customer Support Group,Building Repairs & Maintenance,60076413,HERTEL (UK) LTD, 120.00 ,03/04/2017
Commercial,Customer Support Group,Building Repairs & Maintenance,60076414,HERTEL (UK) LTD, 189.00 ,03/04/2017
Commercial,Customer Support Group,Building Repairs & Maintenance,60076560,HERTEL (UK) LTD, 119.70 ,05/04/2017
Commercial,Customer Support Group,Building Repairs & Maintenance,60076584,HERTEL (UK) LTD, 90.00 ,12/04/2017
Commercial,Customer Support Group,Building Repairs & Maintenance,60076609,HERTEL (UK) LTD, 133.00 ,05/04/2017
Commercial,Customer Support Group,Building Repairs & Maintenance,60076656,HERTEL (UK) LTD, 200.00 ,12/04/2017
Commercial,Customer Support Group,Building Repairs & Maintenance,60076660,HERTEL (UK) LTD," 3,160.11 ",05/04/2017
Commercial,Customer Support Group,Building Repairs & Maintenance,60076663,HERTEL (UK) LTD, 119.70 ,05/04/2017
Commercial,Customer Support Group,Building Repairs & Maintenance,60077183,HERTEL (UK) LTD, 119.70 ,11/04/2017
Commercial,Customer Support Group,Building Repairs & Maintenance,60077227,HERTEL (UK) LTD, 34.91 ,13/04/2017
Commercial,Customer Support Group,Building Repairs & Maintenance,60077281,HERTEL (UK) LTD, 34.91 ,13/04/2017
Commercial,Customer Support Group,Building Repairs & Maintenance,60077292,HERTEL (UK) LTD, 34.91 ,12/04/2017
Commercial,Customer Support Group,Building Repairs & Maintenance,60077316,HERTEL (UK) LTD, 34.91 ,13/04/2017
Commercial,Customer Support Group,Building Repairs & Maintenance,60077330,HERTEL (UK) LTD, 34.91 ,12/04/2017
Commercial,Customer Support Group,Building Repairs & Maintenance,60051128,KENT COUNTY COUNCIL (KCS),-64.14 ,26/04/2017
Commercial,Customer Support Group,Building Repairs & Maintenance,60075008,LEE SECURITY LONDON LIMITED, 83.00 ,06/04/2017
Commercial,Customer Support Group,Building Repairs & Maintenance,60077228,LEE SECURITY LONDON LIMITED, 88.60 ,27/04/2017
Commercial,Customer Support Group,Building Repairs & Maintenance,60077257,LEE SECURITY LONDON LIMITED, 83.00 ,12/04/2017
Commercial,Customer Support Group,Building Repairs & Maintenance,60075646,LIFT & ENGINEERING SERVICES LTD, 510.00 ,19/04/2017
Commercial,Customer Support Group,Building Repairs & Maintenance,60076580,LIFT & ENGINEERING SERVICES LTD," 4,360.00 ",05/04/2017
Commercial,Customer Support Group,Building Repairs & Maintenance,60075570,MIDDLESEX UNIVERSITY," 8,187.50 ",10/04/2017
Commercial,Customer Support Group,Building Repairs & Maintenance,60077246,OAKRAY LIMITED," 1,578.62 ",27/04/2017
Commercial,Customer Support Group,Building Repairs & Maintenance,60076116,REDACTED - PERSONAL DATA," 1,236.25 ",26/04/2017
Commercial,Customer Support Group,Building Repairs & Maintenance,60074898,RGE SERVICES, 558.81 ,06/04/2017
Commercial,Customer Support Group,Building Repairs & Maintenance,60074899,RGE SERVICES, 62.00 ,06/04/2017
Commercial,Customer Support Group,Building Repairs & Maintenance,60074901,RGE SERVICES, 64.89 ,06/04/2017
Commercial,Customer Support Group,Building Repairs & Maintenance,60074904,RGE SERVICES, 44.72 ,06/04/2017
Commercial,Customer Support Group,Building Repairs & Maintenance,60074913,RGE SERVICES, 729.65 ,06/04/2017
Commercial,Customer Support Group,Building Repairs & Maintenance,60074938,RGE SERVICES, 72.60 ,06/04/2017
Commercial,Customer Support Group,Building Repairs & Maintenance,60074939,RGE SERVICES, 333.60 ,06/04/2017
Commercial,Customer Support Group,Building Repairs & Maintenance,60074940,RGE SERVICES, 62.00 ,06/04/2017
Commercial,Customer Support Group,Building Repairs & Maintenance,60074968,RGE SERVICES, 128.26 ,06/04/2017
Commercial,Customer Support Group,Building Repairs & Maintenance,60075130,RGE SERVICES, 538.45 ,06/04/2017
Commercial,Customer Support Group,Building Repairs & Maintenance,60075161,RGE SERVICES, 576.48 ,06/04/2017
Commercial,Customer Support Group,Building Repairs & Maintenance,60075171,RGE SERVICES, 62.00 ,06/04/2017
Commercial,Customer Support Group,Building Repairs & Maintenance,60075183,RGE SERVICES, 425.35 ,06/04/2017
Commercial,Customer Support Group,Building Repairs & Maintenance,60075642,RGE SERVICES, 47.03 ,12/04/2017
Commercial,Customer Support Group,Building Repairs & Maintenance,60075647,RGE SERVICES, 238.55 ,12/04/2017
Commercial,Customer Support Group,Building Repairs & Maintenance,60075653,RGE SERVICES, 136.96 ,12/04/2017
Commercial,Customer Support Group,Building Repairs & Maintenance,60075657,RGE SERVICES, 228.76 ,12/04/2017
Commercial,Customer Support Group,Building Repairs & Maintenance,60075676,RGE SERVICES, 268.17 ,12/04/2017
Commercial,Customer Support Group,Building Repairs & Maintenance,60075686,RGE SERVICES, 115.43 ,12/04/2017
Commercial,Customer Support Group,Building Repairs & Maintenance,60076250,RGE SERVICES, 292.97 ,20/04/2017
Commercial,Customer Support Group,Building Repairs & Maintenance,60076255,RGE SERVICES, 547.72 ,12/04/2017
Commercial,Customer Support Group,Building Repairs & Maintenance,60076309,RGE SERVICES, 65.93 ,20/04/2017
Commercial,Customer Support Group,Building Repairs & Maintenance,60076335,RGE SERVICES, 433.68 ,03/04/2017
Commercial,Customer Support Group,Building Repairs & Maintenance,60076339,RGE SERVICES, 232.64 ,03/04/2017
Commercial,Customer Support Group,Building Repairs & Maintenance,60076348,RGE SERVICES, 119.71 ,03/04/2017
Commercial,Customer Support Group,Building Repairs & Maintenance,60076390,RGE SERVICES, 136.81 ,12/04/2017
Commercial,Customer Support Group,Building Repairs & Maintenance,60076430,RGE SERVICES, 62.82 ,20/04/2017
Commercial,Customer Support Group,Building Repairs & Maintenance,60076446,RGE SERVICES, 401.85 ,20/04/2017
Commercial,Customer Support Group,Building Repairs & Maintenance,60076482,RGE SERVICES, 57.29 ,12/04/2017
Commercial,Customer Support Group,Building Repairs & Maintenance,60076506,RGE SERVICES, 444.80 ,26/04/2017
Commercial,Customer Support Group,Building Repairs & Maintenance,60076534,RGE SERVICES, 180.62 ,25/04/2017
Commercial,Customer Support Group,Building Repairs & Maintenance,60076536,RGE SERVICES, 15.42 ,26/04/2017
Commercial,Customer Support Group,Building Repairs & Maintenance,60076546,RGE SERVICES, 135.09 ,20/04/2017
Commercial,Customer Support Group,Building Repairs & Maintenance,60076617,RGE SERVICES, 94.05 ,20/04/2017
Commercial,Customer Support Group,Building Repairs & Maintenance,60076923,RGE SERVICES, 197.81 ,27/04/2017
Commercial,Customer Support Group,Building Repairs & Maintenance,60076968,RGE SERVICES, 51.60 ,27/04/2017
Commercial,Customer Support Group,Building Repairs & Maintenance,60077027,RGE SERVICES, 126.73 ,27/04/2017
Commercial,Customer Support Group,Building Repairs & Maintenance,60077170,RGE SERVICES, 37.00 ,27/04/2017
Commercial,Customer Support Group,Building Repairs & Maintenance,60077207,RGE SERVICES, 62.00 ,27/04/2017
Commercial,Customer Support Group,Building Repairs & Maintenance,60077209,RGE SERVICES, 502.08 ,27/04/2017
Commercial,Customer Support Group,Building Repairs & Maintenance,60077213,RGE SERVICES, 62.00 ,27/04/2017
Commercial,Customer Support Group,Building Repairs & Maintenance,60077214,RGE SERVICES, 345.73 ,27/04/2017
Commercial,Customer Support Group,Building Repairs & Maintenance,60077239,RGE SERVICES, 163.67 ,27/04/2017
Commercial,Customer Support Group,Building Repairs & Maintenance,60077261,RGE SERVICES, 65.79 ,27/04/2017
Commercial,Customer Support Group,Building Repairs & Maintenance,60077269,RGE SERVICES, 62.00 ,27/04/2017
Commercial,Customer Support Group,Building Repairs & Maintenance,60077271,RGE SERVICES, 156.02 ,27/04/2017
Commercial,Customer Support Group,Building Repairs & Maintenance,60077303,RGE SERVICES, 117.80 ,27/04/2017
Commercial,Customer Support Group,Building Repairs & Maintenance,60077308,RGE SERVICES, 135.16 ,27/04/2017
Commercial,Customer Support Group,Building Repairs & Maintenance,60077313,RGE SERVICES, 352.65 ,27/04/2017
Commercial,Customer Support Group,Building Repairs & Maintenance,60077322,RGE SERVICES, 309.62 ,12/04/2017
Commercial,Customer Support Group,Building Repairs & Maintenance,60077337,RGE SERVICES, 443.16 ,12/04/2017
Commercial,Customer Support Group,Building Repairs & Maintenance,60077409,RGE SERVICES," 1,379.91 ",27/04/2017
Commercial,Customer Support Group,Building Repairs & Maintenance,60077424,RGE SERVICES, 160.52 ,27/04/2017
Commercial,Customer Support Group,Building Repairs & Maintenance,60077520,RGE SERVICES, 3.50 ,18/04/2017
Commercial,Customer Support Group,Building Repairs & Maintenance,60077783,RGE SERVICES, 354.01 ,25/04/2017
Commercial,Customer Support Group,Building Repairs & Maintenance,60056796,S W BRUCE & CO LTD,"-1,440.25 ",27/04/2017
Commercial,Customer Support Group,Building Repairs & Maintenance,60061182,S W BRUCE & CO LTD,-86.10 ,27/04/2017
Commercial,Customer Support Group,Building Repairs & Maintenance,60075112,S W BRUCE & CO LTD," 3,015.00 ",06/04/2017
Commercial,Customer Support Group,Building Repairs & Maintenance,60075633,S W BRUCE & CO LTD, 57.00 ,19/04/2017
Commercial,Customer Support Group,Building Repairs & Maintenance,60075640,S W BRUCE & CO LTD, 68.24 ,20/04/2017
Commercial,Customer Support Group,Building Repairs & Maintenance,60075661,S W BRUCE & CO LTD, 842.25 ,19/04/2017
Commercial,Customer Support Group,Building Repairs & Maintenance,60075687,S W BRUCE & CO LTD, 546.25 ,20/04/2017
Commercial,Customer Support Group,Building Repairs & Maintenance,60075701,S W BRUCE & CO LTD, 66.56 ,20/04/2017
Commercial,Customer Support Group,Building Repairs & Maintenance,60075706,S W BRUCE & CO LTD, 67.63 ,20/04/2017
Commercial,Customer Support Group,Building Repairs & Maintenance,60075715,S W BRUCE & CO LTD, 57.00 ,20/04/2017
Commercial,Customer Support Group,Building Repairs & Maintenance,60075725,S W BRUCE & CO LTD, 66.56 ,20/04/2017
Commercial,Customer Support Group,Building Repairs & Maintenance,60075732,S W BRUCE & CO LTD, 112.56 ,19/04/2017
Commercial,Customer Support Group,Building Repairs & Maintenance,60075781,S W BRUCE & CO LTD, 149.50 ,19/04/2017
Commercial,Customer Support Group,Building Repairs & Maintenance,60075787,S W BRUCE & CO LTD, 57.00 ,19/04/2017
Commercial,Customer Support Group,Building Repairs & Maintenance,60075822,S W BRUCE & CO LTD, 95.06 ,20/04/2017
Commercial,Customer Support Group,Building Repairs & Maintenance,60075823,S W BRUCE & CO LTD, 97.37 ,19/04/2017
Commercial,Customer Support Group,Building Repairs & Maintenance,60075824,S W BRUCE & CO LTD, 68.24 ,20/04/2017
Commercial,Customer Support Group,Building Repairs & Maintenance,60075825,S W BRUCE & CO LTD, 128.33 ,20/04/2017
Commercial,Customer Support Group,Building Repairs & Maintenance,60075827,S W BRUCE & CO LTD, 57.00 ,19/04/2017
Commercial,Customer Support Group,Building Repairs & Maintenance,60075830,S W BRUCE & CO LTD, 64.72 ,20/04/2017
Commercial,Customer Support Group,Building Repairs & Maintenance,60075836,S W BRUCE & CO LTD, 90.09 ,20/04/2017
Commercial,Customer Support Group,Building Repairs & Maintenance,60075844,S W BRUCE & CO LTD, 148.99 ,20/04/2017
Commercial,Customer Support Group,Building Repairs & Maintenance,60075851,S W BRUCE & CO LTD, 66.56 ,20/04/2017
Commercial,Customer Support Group,Building Repairs & Maintenance,60075865,S W BRUCE & CO LTD, 101.44 ,20/04/2017
Commercial,Customer Support Group,Building Repairs & Maintenance,60075866,S W BRUCE & CO LTD, 66.56 ,20/04/2017
Commercial,Customer Support Group,Building Repairs & Maintenance,60077286,S W BRUCE & CO LTD, 25.00 ,12/04/2017
Commercial,Customer Support Group,Building Repairs & Maintenance,60076347,SECOM PLC, 450.00 ,03/04/2017
Commercial,Customer Support Group,Building Repairs & Maintenance,60077388,SECOM PLC, 89.00 ,13/04/2017
Commercial,Customer Support Group,Building Repairs & Maintenance,60077433,SECOM PLC, 89.00 ,13/04/2017
Commercial,Customer Support Group,Building Repairs & Maintenance,60077532,SECOM PLC, 696.94 ,19/04/2017
Commercial,Customer Support Group,Building Repairs & Maintenance,60078066,SECOM PLC, 541.00 ,28/04/2017
Commercial,Customer Support Group,Building Repairs & Maintenance,60076277,UNITED FORKTRUCKS (1992) LTD, 297.50 ,19/04/2017
Commercial,Customer Support Group,Cleaning and domestic material,60074205,CHURCHILL CONTRACT SERVICES, 294.16 ,24/04/2017
Commercial,Customer Support Group,Cleaning and domestic material,60074239,CHURCHILL CONTRACT SERVICES," 1,133.45 ",24/04/2017
Commercial,Customer Support Group,Cleaning and domestic material,60074915,CHURCHILL CONTRACT SERVICES, 75.22 ,05/04/2017
Commercial,Customer Support Group,Cleaning and domestic material,60076774,CHURCHILL CONTRACT SERVICES," 1,032.37 ",27/04/2017
Commercial,Customer Support Group,Cleaning and domestic material,60076828,CHURCHILL CONTRACT SERVICES," 11,562.54 ",27/04/2017
Commercial,Customer Support Group,Cleaning and domestic material,60076849,CHURCHILL CONTRACT SERVICES," 7,329.82 ",27/04/2017
Commercial,Customer Support Group,Cleaning and domestic material,60076866,CHURCHILL CONTRACT SERVICES, 661.80 ,27/04/2017
Commercial,Customer Support Group,Cleaning and domestic material,60077199,HERTFORDSHIRE COUNTY COUNCIL, 399.40 ,11/04/2017
Commercial,Customer Support Group,Cleaning and domestic material,60071735,HERTFORDSHIRE SUPPLIES   COUNTY CO," 2,124.19 ",03/04/2017
Commercial,Customer Support Group,Cleaning and domestic material,60071745,HERTFORDSHIRE SUPPLIES   COUNTY CO, 250.90 ,03/04/2017
Commercial,Customer Support Group,Cleaning and domestic material,60071752,HERTFORDSHIRE SUPPLIES   COUNTY CO, 781.80 ,03/04/2017
Commercial,Customer Support Group,Cleaning and domestic material,60071754,HERTFORDSHIRE SUPPLIES   COUNTY CO, 297.80 ,03/04/2017
Commercial,Customer Support Group,Cleaning and domestic material,60071810,HERTFORDSHIRE SUPPLIES   COUNTY CO, 212.40 ,03/04/2017
Commercial,Customer Support Group,Cleaning and domestic material,60077094,HERTFORDSHIRE SUPPLIES   COUNTY CO, 259.68 ,11/04/2017
Commercial,Customer Support Group,Cleaning and domestic material,60077125,HERTFORDSHIRE SUPPLIES   COUNTY CO," 1,916.80 ",11/04/2017
Commercial,Customer Support Group,Cleaning and domestic material,60077165,HERTFORDSHIRE SUPPLIES   COUNTY CO, 46.00 ,12/04/2017
Commercial,Customer Support Group,Cleaning and domestic material,60077173,HERTFORDSHIRE SUPPLIES   COUNTY CO," 2,166.30 ",11/04/2017
Commercial,Customer Support Group,Contract Cleaning,60071462,CHURCHILL CONTRACT SERVICES, 294.16 ,13/04/2017
Commercial,Customer Support Group,CSG Services Contract Payment,60069417,CAPITA BUSINESS SERVICES LTD," 228,753.71 ",28/04/2017
Commercial,Customer Support Group,CSG Services Contract Payment,60074895,CAPITA BUSINESS SERVICES LTD," 56,608.39 ",05/04/2017
Commercial,Customer Support Group,CSG Services Contract Payment,60075346,CAPITA BUSINESS SERVICES LTD,"-9,072.28 ",26/04/2017
Commercial,Customer Support Group,CSG Services Contract Payment,60075717,CAPITA BUSINESS SERVICES LTD," 9,311.50 ",06/04/2017
Commercial,Customer Support Group,CSG Services Contract Payment,60075853,CAPITA BUSINESS SERVICES LTD," 1,475.00 ",06/04/2017
Commercial,Customer Support Group,CSG Services Contract Payment,60076442,CAPITA BUSINESS SERVICES LTD," 45,835.87 ",12/04/2017
Commercial,Customer Support Group,CSG Services Contract Payment,60076479,CAPITA BUSINESS SERVICES LTD," 69,385.96 ",12/04/2017
Commercial,Customer Support Group,CSG Services Contract Payment,60076880,CAPITA BUSINESS SERVICES LTD," 247,000.00 ",20/04/2017
Commercial,Customer Support Group,CSG Services Contract Payment,60077574,CAPITA BUSINESS SERVICES LTD," 9,710.95 ",28/04/2017
Commercial,Customer Support Group,CSG Services Contract Payment,60077593,CAPITA BUSINESS SERVICES LTD," 50,137.50 ",26/04/2017
Commercial,Customer Support Group,Electricity,60075796,BRITISH GAS BUSINESS, 118.54 ,05/04/2017
Commercial,Customer Support Group,Electricity,60075944,BRITISH GAS BUSINESS," 1,075.66 ",05/04/2017
Commercial,Customer Support Group,Electricity,60078070,BRITISH GAS BUSINESS, 1.12 ,28/04/2017
Commercial,Customer Support Group,Electricity,60078088,BRITISH GAS BUSINESS, 26.91 ,28/04/2017
Commercial,Customer Support Group,Electricity,60075730,E-ON ENERGY, 746.86 ,10/04/2017
Commercial,Customer Support Group,Electricity,60076423,E-ON ENERGY, 684.45 ,06/04/2017
Commercial,Customer Support Group,Electricity,60077041,E-ON ENERGY, 164.70 ,10/04/2017
Commercial,Customer Support Group,Electricity,60058169,KENT COUNTY COUNCIL (KCS),-227.45 ,26/04/2017
Commercial,Customer Support Group,Electricity,60058216,KENT COUNTY COUNCIL (KCS),-77.44 ,26/04/2017
Commercial,Customer Support Group,Electricity,60074906,KENT COUNTY COUNCIL (KCS), 345.16 ,05/04/2017
Commercial,Customer Support Group,Electricity,60075518,KENT COUNTY COUNCIL (KCS), 672.20 ,03/04/2017
Commercial,Customer Support Group,Electricity,60075733,KENT COUNTY COUNCIL (KCS), 96.17 ,12/04/2017
Commercial,Customer Support Group,Electricity,60076305,KENT COUNTY COUNCIL (KCS)," 1,162.72 ",11/04/2017
Commercial,Customer Support Group,Electricity,60076326,KENT COUNTY COUNCIL (KCS)," 1,753.32 ",18/04/2017
Commercial,Customer Support Group,Electricity,60077505,KENT COUNTY COUNCIL (KCS), 415.15 ,18/04/2017
Commercial,Customer Support Group,Electricity,60077828,KENT COUNTY COUNCIL (KCS), 447.44 ,26/04/2017
Commercial,Customer Support Group,Electricity,60077831,KENT COUNTY COUNCIL (KCS)," 1,540.56 ",26/04/2017
Commercial,Customer Support Group,Electricity,60077856,KENT COUNTY COUNCIL (KCS)," 1,550.46 ",26/04/2017
Commercial,Customer Support Group,Electricity,60077865,KENT COUNTY COUNCIL (KCS)," 1,533.61 ",26/04/2017
Commercial,Customer Support Group,Electricity,60077898,KENT COUNTY COUNCIL (KCS)," 1,372.45 ",26/04/2017
Commercial,Customer Support Group,Electricity,60077906,KENT COUNTY COUNCIL (KCS)," 1,956.94 ",26/04/2017
Commercial,Customer Support Group,Electricity,60076460,MIDDLESEX UNIVERSITY," 19,528.23 ",06/04/2017
Commercial,Customer Support Group,Electricity,60076490,MIDDLESEX UNIVERSITY," 16,795.40 ",06/04/2017
Commercial,Customer Support Group,Electricity,60076507,MIDDLESEX UNIVERSITY," 1,469.60 ",06/04/2017
Commercial,Customer Support Group,Electricity,60076545,MIDDLESEX UNIVERSITY," 1,347.71 ",06/04/2017
Commercial,Customer Support Group,Electricity,60076563,MIDDLESEX UNIVERSITY," 1,946.27 ",06/04/2017
Commercial,Customer Support Group,Electricity,60076602,MIDDLESEX UNIVERSITY, 830.44 ,05/04/2017
Commercial,Customer Support Group,Electricity,60076635,MIDDLESEX UNIVERSITY," 32,766.23 ",06/04/2017
Commercial,Customer Support Group,Electricity,60077631,NPOWER, 778.01 ,24/04/2017
Commercial,Customer Support Group,Electricity,60077637,NPOWER," 1,195.66 ",24/04/2017
Commercial,Customer Support Group,Electricity,60077638,NPOWER, 294.66 ,24/04/2017
Commercial,Customer Support Group,Electricity,60077639,NPOWER," 1,375.67 ",24/04/2017
Commercial,Customer Support Group,Electricity,60077655,NPOWER, 918.56 ,24/04/2017
Commercial,Customer Support Group,Electricity,60077656,NPOWER, 478.94 ,27/04/2017
Commercial,Customer Support Group,Electricity,60077657,NPOWER, 650.47 ,25/04/2017
Commercial,Customer Support Group,Electricity,60077659,NPOWER, 873.87 ,24/04/2017
Commercial,Customer Support Group,Electricity,60077670,NPOWER, 964.06 ,24/04/2017
Commercial,Customer Support Group,Electricity,60077676,NPOWER, 620.74 ,24/04/2017
Commercial,Customer Support Group,Electricity,60077682,NPOWER, 934.18 ,24/04/2017
Commercial,Customer Support Group,Electricity,60077686,NPOWER, 207.56 ,24/04/2017
Commercial,Customer Support Group,Electricity,60075722,OPUS ENERGY LTD, 5.80 ,13/04/2017
Commercial,Customer Support Group,Electricity,60075783,OPUS ENERGY LTD, 6.00 ,13/04/2017
Commercial,Customer Support Group,Electricity,60075790,OPUS ENERGY LTD, 9.93 ,13/04/2017
Commercial,Customer Support Group,Electricity,60075847,OPUS ENERGY LTD, 11.00 ,13/04/2017
Commercial,Customer Support Group,Electricity,60075849,OPUS ENERGY LTD, 11.00 ,13/04/2017
Commercial,Customer Support Group,Electricity,60075864,OPUS ENERGY LTD, 9.39 ,13/04/2017
Commercial,Customer Support Group,Equipment and Materials Purcha,60075137,EVAC & CHAIR INTERNATIONAL LTD, 90.00 ,12/04/2017
Commercial,Customer Support Group,Equipment and Materials Purcha,60071524,HERTEL (UK) LTD, 34.91 ,05/04/2017
Commercial,Customer Support Group,Furniture-Purchase-Repair,60069817,SCREWFIX DIRECT LTD,-10.00 ,26/04/2017
Commercial,Customer Support Group,Furniture-Purchase-Repair,60077829,SCREWFIX DIRECT LTD, 58.03 ,26/04/2017
Commercial,Customer Support Group,Furniture-Purchase-Repair,60077897,SCREWFIX DIRECT LTD, 23.75 ,26/04/2017
Commercial,Customer Support Group,Furniture-Purchase-Repair,60073675,WAGSTAFF INTERIORS GROUP, 25.00 ,06/04/2017
Commercial,Customer Support Group,Furniture-Purchase-Repair,60076591,WAGSTAFF INTERIORS GROUP, 10.00 ,20/04/2017
Commercial,Customer Support Group,Furniture-Purchase-Repair,60076687,WAGSTAFF INTERIORS GROUP, 10.00 ,06/04/2017
Commercial,Customer Support Group,Gas,10013684,KENT COUNTY COUNCIL (KCS)," 9,265.16 ",03/04/2017
Commercial,Customer Support Group,Gas,60044324,KENT COUNTY COUNCIL (KCS),-79.87 ,26/04/2017
Commercial,Customer Support Group,Gas,60050383,KENT COUNTY COUNCIL (KCS),-363.04 ,26/04/2017
Commercial,Customer Support Group,Gas,60055305,KENT COUNTY COUNCIL (KCS),"-1,158.31 ",26/04/2017
Commercial,Customer Support Group,Gas,60076465,MIDDLESEX UNIVERSITY, 907.95 ,06/04/2017
Commercial,Customer Support Group,Gas,60076550,MIDDLESEX UNIVERSITY, 717.33 ,06/04/2017
Commercial,Customer Support Group,Gas,60076691,MIDDLESEX UNIVERSITY, 304.81 ,06/04/2017
Commercial,Customer Support Group,Other Services,60076307,BLUE 9 SECURITY LIMITED," 6,757.38 ",05/04/2017
Commercial,Customer Support Group,Other Services,60076314,BLUE 9 SECURITY LIMITED, 934.21 ,05/04/2017
Commercial,Customer Support Group,Other Services,60076317,BLUE 9 SECURITY LIMITED," 11,584.08 ",05/04/2017
Commercial,Customer Support Group,Other Services,60076321,BLUE 9 SECURITY LIMITED," 20,004.79 ",05/04/2017
Commercial,Customer Support Group,Other Services,60076323,BLUE 9 SECURITY LIMITED," 5,888.21 ",05/04/2017
Commercial,Customer Support Group,Other Services,60076324,BLUE 9 SECURITY LIMITED, 53.72 ,06/04/2017
Commercial,Customer Support Group,Other Services,60076420,BLUE 9 SECURITY LIMITED," 22,773.84 ",05/04/2017
Commercial,Customer Support Group,Other Services,60076426,BLUE 9 SECURITY LIMITED, 214.88 ,06/04/2017
Commercial,Customer Support Group,Other Services,60076462,BLUE 9 SECURITY LIMITED, 188.02 ,05/04/2017
Commercial,Customer Support Group,Other Services,60076472,BLUE 9 SECURITY LIMITED, 53.72 ,05/04/2017
Commercial,Customer Support Group,Other Services,60076488,BLUE 9 SECURITY LIMITED, 823.07 ,05/04/2017
Commercial,Customer Support Group,Other Services,60077046,BLUE 9 SECURITY LIMITED, 308.89 ,10/04/2017
Commercial,Customer Support Group,Other Services,60078096,BLUE 9 SECURITY LIMITED, 416.33 ,28/04/2017
Commercial,Customer Support Group,Postage,10013667,ROYAL MAIL GROUP LIMITED," 6,345.84 ",06/04/2017
Commercial,Customer Support Group,Postage,60074175,ROYAL MAIL GROUP LIMITED," 3,358.92 ",06/04/2017
Commercial,Customer Support Group,Postage,60075059,ROYAL MAIL GROUP LIMITED," 4,578.24 ",06/04/2017
Commercial,Customer Support Group,Postage,60077445,ROYAL MAIL GROUP LIMITED," 5,626.38 ",18/04/2017
Commercial,Customer Support Group,Postage,60077476,ROYAL MAIL GROUP LIMITED,-85.23 ,21/04/2017
Commercial,Customer Support Group,Postage,60077510,ROYAL MAIL GROUP LIMITED," 5,227.85 ",18/04/2017
Commercial,Customer Support Group,Postage,60078059,ROYAL MAIL GROUP LIMITED," 6,705.85 ",28/04/2017
Commercial,Customer Support Group,Postage,60078099,ROYAL MAIL GROUP LIMITED, 271.57 ,28/04/2017
Commercial,Customer Support Group,Postage,60078126,ROYAL MAIL GROUP LIMITED," 6,000.99 ",28/04/2017
Commercial,Customer Support Group,Professional Services,60075068,EQUITA LTD HIGH COURT ENFORCEMENT, 141.00 ,13/04/2017
Commercial,Customer Support Group,Professional Services,60075861,LEWISHAM COUNCIL," 10,000.00 ",20/04/2017
Commercial,Customer Support Group,Publications,60077507,RADIOCOMS SYSTEMS LTD, 266.66 ,18/04/2017
Commercial,Customer Support Group,Rents,60074907,CANAL & RIVER TRUST," 2,000.00 ",05/04/2017
Commercial,Customer Support Group,Rubbish Collection,60059058,G.B.HOLDINGS LTD, 25.20 ,06/04/2017
Commercial,Customer Support Group,Rubbish Collection,60077221,G.B.HOLDINGS LTD, 77.40 ,12/04/2017
Commercial,Customer Support Group,Rubbish Collection,60077247,G.B.HOLDINGS LTD, 843.00 ,12/04/2017
Commercial,Customer Support Group,Rubbish Collection,60077314,G.B.HOLDINGS LTD, 789.00 ,12/04/2017
Commercial,Customer Support Group,Rubbish Collection,60077090,PEARCE RECYCLING CO. LTD, 25.00 ,27/04/2017
Commercial,Customer Support Group,Rubbish Collection,60077149,PEARCE RECYCLING CO. LTD, 25.00 ,27/04/2017
Commercial,Customer Support Group,Rubbish Collection,60077190,PEARCE RECYCLING CO. LTD, 25.00 ,27/04/2017
Commercial,Customer Support Group,Rubbish Collection,60078103,PREMIER SHREDDING, 55.00 ,28/04/2017
Commercial,Customer Support Group,Rubbish Collection,60078106,PREMIER SHREDDING, 50.00 ,28/04/2017
Commercial,Customer Support Group,Training,80009633,PROJECT SKILLS SOLUTIONS, 449.00 ,07/04/2017
Commercial,Customer Support Group,Training,60077070,SKILLS TRAINING CENTRE LTD, 680.00 ,11/04/2017
Commercial,Customer Support Group,Ttl IT & Comms,60076316,TELEFONICA UK LTD," 14,162.01 ",10/04/2017
Commercial,Customer Support Group,Ttl IT & Comms,60076394,TELEFONICA UK LTD, 8.29 ,05/04/2017
Commercial,Customer Support Group,Ttl IT & Comms,60076422,TELEFONICA UK LTD," 1,237.93 ",18/04/2017
Commercial,Customer Support Group,Water Services,60071172,AFFINITY WATER LIMITED, 101.68 ,06/04/2017
Commercial,Customer Support Group,Water Services,60076308,AFFINITY WATER LIMITED, 557.28 ,03/04/2017
Commercial,Customer Support Group,Water Services,60076596,AFFINITY WATER LIMITED, 16.29 ,10/04/2017
Commercial,Customer Support Group,Water Services,60074928,ANGEL SPRINGS LTD, 208.00 ,18/04/2017
Commercial,Customer Support Group,Water Services,60076115,ANGEL SPRINGS LTD, 24.43 ,19/04/2017
Commercial,Customer Support Group,Water Services,60077378,ANGEL SPRINGS LTD, 120.00 ,27/04/2017
Commercial,Customer Support Group,Water Services,60077398,ANGEL SPRINGS LTD, 344.00 ,27/04/2017
Commercial,Customer Support Group,Water Services,60077416,ANGEL SPRINGS LTD, 93.00 ,27/04/2017
Commercial,Customer Support Group,Water Services,60077436,ANGEL SPRINGS LTD, 308.00 ,27/04/2017
Commercial,Customer Support Group,Water Services,60077463,ANGEL SPRINGS LTD, 226.85 ,18/04/2017
Commercial,HB LAW,Legal and Court Fees,60077244,LONDON BOROUGH OF HARROW," 183,260.00 ",18/04/2017
Commercial,HB LAW,Legal Disbursements,60077272,LONDON BOROUGH OF HARROW," 119,820.86 ",13/04/2017
Commercial,HB LAW,Legal Disbursements,60077280,LONDON BOROUGH OF HARROW," 203,731.60 ",13/04/2017
Commercial,HB LAW,Legal Disbursements,60077291,LONDON BOROUGH OF HARROW," 103,327.35 ",13/04/2017
Commercial,HB LAW,Legal Disbursements,60077319,LONDON BOROUGH OF HARROW," 47,047.01 ",13/04/2017
Commercial,Housing Needs Resources,Legal and Court Fees,60077289,THE BARNETGROUP LIMITED," 7,750.00 ",20/04/2017
Commercial,Housing Needs Resources,Other Services,60065366,THE BARNETGROUP LIMITED," 5,750.00 ",27/04/2017
Commercial,Housing Needs Resources,Other Services,60078001,THE BARNETGROUP LIMITED," 22,474.56 ",28/04/2017
Commercial,Housing Needs Resources,Private Contractors - Third Pa,60077341,THE BARNETGROUP LIMITED," 136,908.71 ",25/04/2017
Commercial,Housing Needs Resources,Private Contractors - Third Pa,60077359,THE BARNETGROUP LIMITED," 1,757,160.93 ",13/04/2017
Commercial,Housing Needs Resources,Private Contractors - Third Pa,60077411,THE BARNETGROUP LIMITED," 68,468.34 ",25/04/2017
Commercial,Housing Needs Resources,Private Contractors - Third Pa,60077914,THE BARNETGROUP LIMITED," 1,853,222.33 ",28/04/2017
Commercial,Housing Needs Resources,Reducing Demand,60065322,THE BARNETGROUP LIMITED," 1,444.00 ",20/04/2017
Commercial,HRA,Consultants Fees,60074946,COPPING JOYCE SURVEYORS LIMITED," 2,730.00 ",05/04/2017
Commercial,HRA,Consultants Fees,60076087,PRIORITY ESTATES PROJECT LTD," 2,339.98 ",06/04/2017
Commercial,HRA,Consultants Fees,60077513,PRIORITY ESTATES PROJECT LTD," 2,584.45 ",18/04/2017
Commercial,HRA,Consultants Fees,60053570,THE BARNETGROUP LIMITED," 2,739.50 ",21/04/2017
Commercial,HRA,Consultants Fees,60059958,THE BARNETGROUP LIMITED," 1,336.50 ",25/04/2017
Commercial,HRA,Consultants Fees,60059995,THE BARNETGROUP LIMITED, 295.55 ,11/04/2017
Commercial,HRA,Consultants Fees,60076166,THE BARNETGROUP LIMITED," 157,507.86 ",20/04/2017
Commercial,HRA,Consultants Fees,60077222,THE BARNETGROUP LIMITED," 4,497.92 ",12/04/2017
Commercial,HRA,Consultants Fees,60077243,THE BARNETGROUP LIMITED, 116.44 ,13/04/2017
Commercial,HRA,Consultants Fees,60077295,THE BARNETGROUP LIMITED," 1,796.00 ",12/04/2017
Commercial,HRA,Consultants Fees,60077304,THE BARNETGROUP LIMITED," 13,970.00 ",12/04/2017
Commercial,HRA,Consultants Fees,60077327,THE BARNETGROUP LIMITED," 3,241.19 ",13/04/2017
Commercial,HRA,Consultants Fees,60077484,THE BARNETGROUP LIMITED," 2,936.14 ",18/04/2017
Commercial,HRA,Other Services,60077363,THE BARNETGROUP LIMITED," 1,500.00 ",25/04/2017
Commercial,HRA,Other Services,60077859,THE BARNETGROUP LIMITED," 2,048,526.26 ",28/04/2017
Commercial,HRA,Printing-Contract,60077253,TMP (UK) LTD," 7,516.16 ",13/04/2017
Commercial,HRA,Printing-Contract,60077333,TMP (UK) LTD," 3,273.96 ",13/04/2017
Commercial,HRA,Private Contractors - Third Pa,60077232,THE BARNETGROUP LIMITED," 4,652.00 ",12/04/2017
Commercial,HRA,Private Contractors - Third Pa,60077331,THE BARNETGROUP LIMITED, 970.00 ,12/04/2017
Commercial,Parking & Infrastructure,Electricity,60076077,BARNET LIGHTING SERVICES LTD," 459,533.05 ",03/04/2017
Commercial,Parking & Infrastructure,Electricity,60077551,BARNET LIGHTING SERVICES LTD, 668.15 ,19/04/2017
Commercial,Parking & Infrastructure,Equipment and Materials Purcha,60074983,GREENHAM TRADING LIMITED, 508.64 ,06/04/2017
Commercial,Parking & Infrastructure,Equipment and Materials Purcha,60076177,GREENHAM TRADING LIMITED, 141.02 ,25/04/2017
Commercial,Parking & Infrastructure,Equipment and Materials Purcha,60076205,KLOECKNER METALS UK, 175.00 ,18/04/2017
Commercial,Parking & Infrastructure,Equipment and Materials Purcha,60077230,KLOECKNER METALS UK, 55.00 ,27/04/2017
Commercial,Parking & Infrastructure,Equipment and Materials Purcha,60077288,KLOECKNER METALS UK," 3,027.60 ",26/04/2017
Commercial,Parking & Infrastructure,Equipment and Materials Purcha,60075067,LAFARGE TARMAC TRADING LIMITED, 99.55 ,03/04/2017
Commercial,Parking & Infrastructure,Equipment and Materials Purcha,60075922,LAFARGE TARMAC TRADING LIMITED, 97.60 ,04/04/2017
Commercial,Parking & Infrastructure,Equipment and Materials Purcha,60076004,LAFARGE TARMAC TRADING LIMITED, 122.98 ,06/04/2017
Commercial,Parking & Infrastructure,Equipment and Materials Purcha,60076008,LAFARGE TARMAC TRADING LIMITED, 97.60 ,06/04/2017
Commercial,Parking & Infrastructure,Equipment and Materials Purcha,60076561,LAFARGE TARMAC TRADING LIMITED, 216.67 ,11/04/2017
Commercial,Parking & Infrastructure,Equipment and Materials Purcha,60076566,LAFARGE TARMAC TRADING LIMITED, 119.07 ,12/04/2017
Commercial,Parking & Infrastructure,Equipment and Materials Purcha,60076567,LAFARGE TARMAC TRADING LIMITED, 99.55 ,12/04/2017
Commercial,Parking & Infrastructure,Equipment and Materials Purcha,60077297,LAFARGE TARMAC TRADING LIMITED, 97.60 ,20/04/2017
Commercial,Parking & Infrastructure,Equipment and Materials Purcha,60077567,LAFARGE TARMAC TRADING LIMITED, 300.61 ,27/04/2017
Commercial,Parking & Infrastructure,Equipment and Materials Purcha,60077018,NSL LTD," 2,055.18 ",19/04/2017
Commercial,Parking & Infrastructure,Equipment and Materials Purcha,60075512,RENNICK UK LTD, 611.54 ,12/04/2017
Commercial,Parking & Infrastructure,Equipment and Materials Purcha,60075952,RENNICK UK LTD, 756.80 ,20/04/2017
Commercial,Parking & Infrastructure,Equipment and Materials Purcha,60074116,W. FAYERS & SONS, 162.40 ,07/04/2017
Commercial,Parking & Infrastructure,Equipment and Materials Purcha,60076214,WM SMITH & SONS LIMITED, 138.77 ,06/04/2017
Commercial,Parking & Infrastructure,Equipment and Materials Purcha,60077259,WM SMITH & SONS LIMITED, 85.35 ,12/04/2017
Commercial,Parking & Infrastructure,Miscellaneous Expenses,60077538,BARNET LIGHTING SERVICES LTD," 1,781.76 ",19/04/2017
Commercial,Parking & Infrastructure,Miscellaneous Expenses,60074958,LANDOR LINKS LTD," 1,950.00 ",06/04/2017
Commercial,Parking & Infrastructure,Miscellaneous Expenses,60076925,LEWISHAM COUNCIL," 15,000.00 ",26/04/2017
Commercial,Parking & Infrastructure,Other Services,60074711,LONDON COUNCILS," 19,560.00 ",11/04/2017
Commercial,Parking & Infrastructure,Other Services,60075649,PARKEON LIMITED, 810.00 ,19/04/2017
Commercial,Parking & Infrastructure,Other Services,60075659,PARKEON LIMITED," 2,163.68 ",19/04/2017
Commercial,Parking & Infrastructure,Professional Services,60076629,NSL LTD," 10,926.80 ",12/04/2017
Commercial,Parking & Infrastructure,Professional Services,60076634,NSL LTD," 3,059.93 ",12/04/2017
Commercial,Parking & Infrastructure,Ttl IT & Comms,60077788,NSL LTD," 1,300.00 ",25/04/2017
Commercial,Parking & Infrastructure,Water Services,60075010,ANGEL SPRINGS LTD, 39.50 ,18/04/2017
Commercial,Public Health,Other Transfer Payments to Soc,60075218,CENTRAL LONDONCOMMUNITY HEALTHCARE," 16,664.00 ",24/04/2017
Commercial,Public Health,Other Transfer Payments to Soc,60075224,CENTRAL LONDONCOMMUNITY HEALTHCARE," 356,003.00 ",24/04/2017
Commercial,Public Health,Professional Services,60075202,CENTRAL LONDONCOMMUNITY HEALTHCARE," 4,914.00 ",24/04/2017
Commercial,Public Health,Professional Services,60075208,CENTRAL LONDONCOMMUNITY HEALTHCARE," 9,586.00 ",24/04/2017
Commercial,Public Health,Professional Services,60075219,CENTRAL LONDONCOMMUNITY HEALTHCARE," 85,834.00 ",20/04/2017
Commercial,Regional Enterprise,Advertising,60070710,TMP (UK) LTD, 144.16 ,03/04/2017
Commercial,Regional Enterprise,Advertising,60072429,TMP (UK) LTD, 122.77 ,04/04/2017
Commercial,Regional Enterprise,Advertising,60073009,TMP (UK) LTD, 42.77 ,04/04/2017
Commercial,Regional Enterprise,Advertising,60076476,TMP (UK) LTD, 212.77 ,05/04/2017
Commercial,Regional Enterprise,Advertising,60076888,TMP (UK) LTD, 112.08 ,10/04/2017
Commercial,Regional Enterprise,Advertising,60077310,TMP (UK) LTD, 32.08 ,19/04/2017
Commercial,Regional Enterprise,Cleaning and domestic material,60076908,CHURCHILL CONTRACT SERVICES, 488.56 ,27/04/2017
Commercial,Regional Enterprise,Consultants Fees,60076791,EVERSHEDS LLP," 7,622.10 ",18/04/2017
Commercial,Regional Enterprise,Consultants Fees,60076827,EVERSHEDS LLP," 13,484.15 ",18/04/2017
Commercial,Regional Enterprise,Consultants Fees,60076773,GOWLING WLG, 291.82 ,18/04/2017
Commercial,Regional Enterprise,Consultants Fees,60076783,GOWLING WLG," 1,328.85 ",18/04/2017
Commercial,Regional Enterprise,Consultants Fees,60076784,GOWLING WLG," 2,855.11 ",27/04/2017
Commercial,Regional Enterprise,Consultants Fees,60076787,GOWLING WLG, 620.31 ,18/04/2017
Commercial,Regional Enterprise,Consultants Fees,60076848,GOWLING WLG," 1,010.16 ",18/04/2017
Commercial,Regional Enterprise,Consultants Fees,60076851,GOWLING WLG," 1,345.96 ",18/04/2017
Commercial,Regional Enterprise,Consultants Fees,60076860,GOWLING WLG," 1,346.88 ",18/04/2017
Commercial,Regional Enterprise,Consultants Fees,60076877,GOWLING WLG," 5,932.53 ",18/04/2017
Commercial,Regional Enterprise,Consultants Fees,60076982,GOWLING WLG," 4,877.38 ",18/04/2017
Commercial,Regional Enterprise,Consultants Fees,60077021,GOWLING WLG," 11,914.87 ",18/04/2017
Commercial,Regional Enterprise,Consultants Fees,60077338,NORTH LONDON WASTE AUTHORITY," 5,361.85 ",12/04/2017
Commercial,Regional Enterprise,Consultants Fees,60075899,PRIORITY ESTATES PROJECT LTD," 3,422.65 ",04/04/2017
Commercial,Regional Enterprise,Consultants Fees,60075911,PRIORITY ESTATES PROJECT LTD," 2,653.23 ",04/04/2017
Commercial,Regional Enterprise,Consultants Fees,60076785,PRIORITY ESTATES PROJECT LTD," 5,677.38 ",13/04/2017
Commercial,Regional Enterprise,Consultants Fees,60076825,PRIORITY ESTATES PROJECT LTD," 5,378.45 ",13/04/2017
Commercial,Regional Enterprise,Consultants Fees,60077449,RAILFREIGHT CONSULTING LTD," 4,620.00 ",18/04/2017
Commercial,Regional Enterprise,Consultants Fees,60077480,RAILFREIGHT CONSULTING LTD," 5,115.00 ",25/04/2017
Commercial,Regional Enterprise,Consultants Fees,60068174,TFL," 3,250.00 ",20/04/2017
Commercial,Regional Enterprise,Electricity,60077381,BARNET LIGHTING SERVICES LTD," 53,838.53 ",13/04/2017
Commercial,Regional Enterprise,Equipment and Materials Purcha,10013714,E-CAR CLUB," 6,800.00 ",28/04/2017
Commercial,Regional Enterprise,Grant Payments,80009716,ACCESS AUTOMATION," 1,650.00 ",20/04/2017
Commercial,Regional Enterprise,Grant Payments,80009597,AMWELL CONSTRUCTION LTD," 7,922.00 ",10/04/2017
Commercial,Regional Enterprise,Grant Payments,80009602,AMWELL CONSTRUCTION LTD," 5,677.00 ",10/04/2017
Commercial,Regional Enterprise,Grant Payments,80009834,AMWELL CONSTRUCTION LTD," 5,436.00 ",26/04/2017
Commercial,Regional Enterprise,Grant Payments,80009892,AMWELL CONSTRUCTION LTD," 10,993.00 ",28/04/2017
Commercial,Regional Enterprise,Grant Payments,80009740,ARTHUR J. FERRYMAN ASSOCIATES," 1,592.40 ",20/04/2017
Commercial,Regional Enterprise,Grant Payments,80009572,CAPITAL  LOCKSMITHS, 356.40 ,12/04/2017
Commercial,Regional Enterprise,Grant Payments,80009574,CAPITAL  LOCKSMITHS, 228.00 ,12/04/2017
Commercial,Regional Enterprise,Grant Payments,80009646,CAPITAL  LOCKSMITHS, 356.40 ,20/04/2017
Commercial,Regional Enterprise,Grant Payments,80009647,CAPITAL  LOCKSMITHS, 96.00 ,20/04/2017
Commercial,Regional Enterprise,Grant Payments,80009648,CAPITAL  LOCKSMITHS, 96.00 ,20/04/2017
Commercial,Regional Enterprise,Grant Payments,80009837,D S & L R FRANKS," 27,000.00 ",26/04/2017
Commercial,Regional Enterprise,Grant Payments,80009612,DOLPHIN MOBILITY LTD.," 2,765.00 ",10/04/2017
Commercial,Regional Enterprise,Grant Payments,80009711,DOLPHIN MOBILITY LTD.," 3,582.00 ",20/04/2017
Commercial,Regional Enterprise,Grant Payments,80009791,DOLPHIN MOBILITY LTD.," 2,065.00 ",21/04/2017
Commercial,Regional Enterprise,Grant Payments,80009808,DOLPHIN MOBILITY LTD.," 2,703.00 ",26/04/2017
Commercial,Regional Enterprise,Grant Payments,80009701,DP BUILDERS DISABLED ADAPTATIONS," 8,858.00 ",20/04/2017
Commercial,Regional Enterprise,Grant Payments,80009710,DP BUILDERS DISABLED ADAPTATIONS," 7,990.00 ",20/04/2017
Commercial,Regional Enterprise,Grant Payments,80009713,DP BUILDERS DISABLED ADAPTATIONS," 6,595.00 ",20/04/2017
Commercial,Regional Enterprise,Grant Payments,80009739,DP BUILDERS DISABLED ADAPTATIONS," 13,270.00 ",20/04/2017
Commercial,Regional Enterprise,Grant Payments,80009785,ECOLOGIC ENERGY," 2,887.50 ",21/04/2017
Commercial,Regional Enterprise,Grant Payments,80009588,H D PROPERTY SERVICES LTD," 9,762.00 ",07/04/2017
Commercial,Regional Enterprise,Grant Payments,80009598,H D PROPERTY SERVICES LTD," 3,380.00 ",10/04/2017
Commercial,Regional Enterprise,Grant Payments,80009625,H D PROPERTY SERVICES LTD, 228.00 ,07/04/2017
Commercial,Regional Enterprise,Grant Payments,80009692,H D PROPERTY SERVICES LTD," 4,443.79 ",20/04/2017
Commercial,Regional Enterprise,Grant Payments,80009698,H D PROPERTY SERVICES LTD," 5,062.00 ",20/04/2017
Commercial,Regional Enterprise,Grant Payments,80009755,H D PROPERTY SERVICES LTD," 3,150.00 ",20/04/2017
Commercial,Regional Enterprise,Grant Payments,80009778,H D PROPERTY SERVICES LTD," 5,051.00 ",20/04/2017
Commercial,Regional Enterprise,Grant Payments,80009835,H D PROPERTY SERVICES LTD," 5,226.07 ",26/04/2017
Commercial,Regional Enterprise,Grant Payments,80009580,JANSHOP," 1,268.00 ",07/04/2017
Commercial,Regional Enterprise,Grant Payments,80009847,M&Z BUILDERS & DECORATORS LTD," 7,387.00 ",27/04/2017
Commercial,Regional Enterprise,Grant Payments,80009786,NORTH LONDON WINDOWS," 3,030.00 ",21/04/2017
Commercial,Regional Enterprise,Grant Payments,80009617,PRISM MEDICAL UK," 4,014.54 ",06/04/2017
Commercial,Regional Enterprise,Grant Payments,80009769,R & H, 290.00 ,21/04/2017
Commercial,Regional Enterprise,Grant Payments,80009538,REDACTED - PERSONAL DATA," 3,360.00 ",06/04/2017
Commercial,Regional Enterprise,Grant Payments,80009540,REDACTED - PERSONAL DATA," 3,360.00 ",06/04/2017
Commercial,Regional Enterprise,Grant Payments,80009542,REDACTED - PERSONAL DATA," 2,709.00 ",06/04/2017
Commercial,Regional Enterprise,Grant Payments,80009784,REDACTED - PERSONAL DATA," 2,992.50 ",21/04/2017
Commercial,Regional Enterprise,Grant Payments,80009790,REDACTED - PERSONAL DATA," 5,980.00 ",21/04/2017
Commercial,Regional Enterprise,Grant Payments,80009488,SEVO LTD," 2,974.00 ",04/04/2017
Commercial,Regional Enterprise,Grant Payments,80009714,SOUTH HERTFORDSHIRE," 1,165.00 ",20/04/2017
Commercial,Regional Enterprise,Grant Payments,80009753,SOUTH HERTFORDSHIRE," 4,466.00 ",20/04/2017
Commercial,Regional Enterprise,Legal and Court Fees,80009800,BEN DEVONS," 8,500.00 ",21/04/2017
Commercial,Regional Enterprise,Other Services,60056274,AFFINITY WATER LIMITED, 26.62 ,20/04/2017
Commercial,Regional Enterprise,Other Services,60074935,AFFINITY WATER LIMITED, 25.74 ,19/04/2017
Commercial,Regional Enterprise,Other Services,60076512,AYESHA COMMUNITY EDUCATION," 1,000.00 ",18/04/2017
Commercial,Regional Enterprise,Other Services,60076169,B3 CREATIVE LTD," 7,470.00 ",18/04/2017
Commercial,Regional Enterprise,Other Services,60077625,BARNET LIGHTING SERVICES LTD, 500.00 ,21/04/2017
Commercial,Regional Enterprise,Other Services,60077693,BARNET LIGHTING SERVICES LTD, 500.00 ,24/04/2017
Commercial,Regional Enterprise,Other Services,60077696,BARNET LIGHTING SERVICES LTD, 500.00 ,24/04/2017
Commercial,Regional Enterprise,Other Services,60077697,BARNET LIGHTING SERVICES LTD," 2,064.03 ",24/04/2017
Commercial,Regional Enterprise,Other Services,60077701,BARNET LIGHTING SERVICES LTD, 500.00 ,24/04/2017
Commercial,Regional Enterprise,Other Services,60077703,BARNET LIGHTING SERVICES LTD, 500.00 ,24/04/2017
Commercial,Regional Enterprise,Other Services,60077712,BARNET LIGHTING SERVICES LTD, 500.00 ,24/04/2017
Commercial,Regional Enterprise,Other Services,60077731,BARNET LIGHTING SERVICES LTD, 500.00 ,24/04/2017
Commercial,Regional Enterprise,Other Services,60077739,BARNET LIGHTING SERVICES LTD," 1,465.11 ",25/04/2017
Commercial,Regional Enterprise,Other Services,60078029,BARNET LIGHTING SERVICES LTD," 24,495.00 ",27/04/2017
Commercial,Regional Enterprise,Other Services,60076483,BRIGHT KIDZ," 2,100.00 ",27/04/2017
Commercial,Regional Enterprise,Other Services,60076508,COLAN LTD," 4,100.00 ",27/04/2017
Commercial,Regional Enterprise,Other Services,60052236,CONWAY AECOM LTD," 2,050.02 ",21/04/2017
Commercial,Regional Enterprise,Other Services,60052399,CONWAY AECOM LTD," 3,775.59 ",21/04/2017
Commercial,Regional Enterprise,Other Services,60054123,CONWAY AECOM LTD, 706.08 ,03/04/2017
Commercial,Regional Enterprise,Other Services,60055059,CONWAY AECOM LTD," 4,878.47 ",21/04/2017
Commercial,Regional Enterprise,Other Services,60055117,CONWAY AECOM LTD," 1,384.58 ",21/04/2017
Commercial,Regional Enterprise,Other Services,60055853,CONWAY AECOM LTD,"-3,456.12 ",26/04/2017
Commercial,Regional Enterprise,Other Services,60061150,CONWAY AECOM LTD,"-9,045.89 ",27/04/2017
Commercial,Regional Enterprise,Other Services,60061155,CONWAY AECOM LTD,"-5,409.67 ",27/04/2017
Commercial,Regional Enterprise,Other Services,60062656,CONWAY AECOM LTD,"-2,274.19 ",27/04/2017
Commercial,Regional Enterprise,Other Services,60062713,CONWAY AECOM LTD,"-29,298.50 ",27/04/2017
Commercial,Regional Enterprise,Other Services,60072524,CONWAY AECOM LTD, 40.02 ,05/04/2017
Commercial,Regional Enterprise,Other Services,60074363,CONWAY AECOM LTD, 12.53 ,04/04/2017
Commercial,Regional Enterprise,Other Services,60074769,CONWAY AECOM LTD," 53,257.60 ",05/04/2017
Commercial,Regional Enterprise,Other Services,60074819,CONWAY AECOM LTD," 17,639.20 ",05/04/2017
Commercial,Regional Enterprise,Other Services,60074882,CONWAY AECOM LTD," 42,959.00 ",05/04/2017
Commercial,Regional Enterprise,Other Services,60075323,CONWAY AECOM LTD," 29,233.63 ",06/04/2017
Commercial,Regional Enterprise,Other Services,60075560,CONWAY AECOM LTD, 14.62 ,11/04/2017
Commercial,Regional Enterprise,Other Services,60075926,CONWAY AECOM LTD, 954.11 ,12/04/2017
Commercial,Regional Enterprise,Other Services,60075927,CONWAY AECOM LTD," 1,273.24 ",12/04/2017
Commercial,Regional Enterprise,Other Services,60075935,CONWAY AECOM LTD," 1,864.98 ",12/04/2017
Commercial,Regional Enterprise,Other Services,60075937,CONWAY AECOM LTD," 4,805.48 ",12/04/2017
Commercial,Regional Enterprise,Other Services,60075938,CONWAY AECOM LTD, 689.39 ,12/04/2017
Commercial,Regional Enterprise,Other Services,60075939,CONWAY AECOM LTD, 952.44 ,12/04/2017
Commercial,Regional Enterprise,Other Services,60075946,CONWAY AECOM LTD, 123.55 ,19/04/2017
Commercial,Regional Enterprise,Other Services,60075959,CONWAY AECOM LTD, 262.76 ,19/04/2017
Commercial,Regional Enterprise,Other Services,60075960,CONWAY AECOM LTD," 3,593.10 ",12/04/2017
Commercial,Regional Enterprise,Other Services,60075961,CONWAY AECOM LTD, 233.16 ,19/04/2017
Commercial,Regional Enterprise,Other Services,60075964,CONWAY AECOM LTD," 1,087.13 ",12/04/2017
Commercial,Regional Enterprise,Other Services,60075971,CONWAY AECOM LTD," 5,540.44 ",12/04/2017
Commercial,Regional Enterprise,Other Services,60075973,CONWAY AECOM LTD, 559.73 ,19/04/2017
Commercial,Regional Enterprise,Other Services,60075976,CONWAY AECOM LTD, 327.97 ,19/04/2017
Commercial,Regional Enterprise,Other Services,60075977,CONWAY AECOM LTD, 216.16 ,19/04/2017
Commercial,Regional Enterprise,Other Services,60075979,CONWAY AECOM LTD, 792.94 ,12/04/2017
Commercial,Regional Enterprise,Other Services,60075984,CONWAY AECOM LTD," 2,989.64 ",19/04/2017
Commercial,Regional Enterprise,Other Services,60075986,CONWAY AECOM LTD," 1,590.53 ",12/04/2017
Commercial,Regional Enterprise,Other Services,60075988,CONWAY AECOM LTD," 1,998.83 ",19/04/2017
Commercial,Regional Enterprise,Other Services,60075994,CONWAY AECOM LTD," 1,485.28 ",12/04/2017
Commercial,Regional Enterprise,Other Services,60076001,CONWAY AECOM LTD, 224.66 ,19/04/2017
Commercial,Regional Enterprise,Other Services,60076003,CONWAY AECOM LTD," 3,673.18 ",19/04/2017
Commercial,Regional Enterprise,Other Services,60076015,CONWAY AECOM LTD," 2,620.64 ",12/04/2017
Commercial,Regional Enterprise,Other Services,60076019,CONWAY AECOM LTD," 3,666.84 ",19/04/2017
Commercial,Regional Enterprise,Other Services,60076020,CONWAY AECOM LTD," 2,255.17 ",12/04/2017
Commercial,Regional Enterprise,Other Services,60076028,CONWAY AECOM LTD, 863.75 ,12/04/2017
Commercial,Regional Enterprise,Other Services,60076030,CONWAY AECOM LTD," 2,763.08 ",12/04/2017
Commercial,Regional Enterprise,Other Services,60076033,CONWAY AECOM LTD," 1,198.82 ",12/04/2017
Commercial,Regional Enterprise,Other Services,60076035,CONWAY AECOM LTD, 24.80 ,11/04/2017
Commercial,Regional Enterprise,Other Services,60076040,CONWAY AECOM LTD, 504.89 ,12/04/2017
Commercial,Regional Enterprise,Other Services,60076047,CONWAY AECOM LTD," 1,399.23 ",12/04/2017
Commercial,Regional Enterprise,Other Services,60076050,CONWAY AECOM LTD, 295.50 ,19/04/2017
Commercial,Regional Enterprise,Other Services,60076078,CONWAY AECOM LTD, 240.13 ,19/04/2017
Commercial,Regional Enterprise,Other Services,60076091,CONWAY AECOM LTD, 243.73 ,19/04/2017
Commercial,Regional Enterprise,Other Services,60076092,CONWAY AECOM LTD, 108.08 ,19/04/2017
Commercial,Regional Enterprise,Other Services,60076096,CONWAY AECOM LTD, 324.25 ,19/04/2017
Commercial,Regional Enterprise,Other Services,60076102,CONWAY AECOM LTD, 216.16 ,19/04/2017
Commercial,Regional Enterprise,Other Services,60076197,CONWAY AECOM LTD, 123.55 ,19/04/2017
Commercial,Regional Enterprise,Other Services,60076265,CONWAY AECOM LTD, 216.16 ,19/04/2017
Commercial,Regional Enterprise,Other Services,60076286,CONWAY AECOM LTD, 339.72 ,19/04/2017
Commercial,Regional Enterprise,Other Services,60076306,CONWAY AECOM LTD, 432.82 ,05/04/2017
Commercial,Regional Enterprise,Other Services,60076318,CONWAY AECOM LTD, 21.40 ,12/04/2017
Commercial,Regional Enterprise,Other Services,60076398,CONWAY AECOM LTD," 2,028.82 ",06/04/2017
Commercial,Regional Enterprise,Other Services,60076415,CONWAY AECOM LTD, 26.10 ,18/04/2017
Commercial,Regional Enterprise,Other Services,60076428,CONWAY AECOM LTD, 11.48 ,12/04/2017
Commercial,Regional Enterprise,Other Services,60076697,CONWAY AECOM LTD, 276.60 ,20/04/2017
Commercial,Regional Enterprise,Other Services,60076698,CONWAY AECOM LTD, 116.58 ,20/04/2017
Commercial,Regional Enterprise,Other Services,60076701,CONWAY AECOM LTD, 112.94 ,20/04/2017
Commercial,Regional Enterprise,Other Services,60076703,CONWAY AECOM LTD, 247.10 ,20/04/2017
Commercial,Regional Enterprise,Other Services,60076707,CONWAY AECOM LTD," 4,266.80 ",19/04/2017
Commercial,Regional Enterprise,Other Services,60076712,CONWAY AECOM LTD," 2,600.00 ",26/04/2017
Commercial,Regional Enterprise,Other Services,60076714,CONWAY AECOM LTD, 377.21 ,20/04/2017
Commercial,Regional Enterprise,Other Services,60076718,CONWAY AECOM LTD," 3,587.93 ",26/04/2017
Commercial,Regional Enterprise,Other Services,60076720,CONWAY AECOM LTD," 3,000.00 ",26/04/2017
Commercial,Regional Enterprise,Other Services,60076729,CONWAY AECOM LTD, 132.38 ,20/04/2017
Commercial,Regional Enterprise,Other Services,60076730,CONWAY AECOM LTD, 128.74 ,20/04/2017
Commercial,Regional Enterprise,Other Services,60076735,CONWAY AECOM LTD," 2,600.00 ",26/04/2017
Commercial,Regional Enterprise,Other Services,60076746,CONWAY AECOM LTD, 16.97 ,18/04/2017
Commercial,Regional Enterprise,Other Services,60076748,CONWAY AECOM LTD," 2,985.08 ",26/04/2017
Commercial,Regional Enterprise,Other Services,60076756,CONWAY AECOM LTD," 2,600.00 ",26/04/2017
Commercial,Regional Enterprise,Other Services,60076758,CONWAY AECOM LTD," 2,600.00 ",26/04/2017
Commercial,Regional Enterprise,Other Services,60076763,CONWAY AECOM LTD," 2,600.00 ",26/04/2017
Commercial,Regional Enterprise,Other Services,60076766,CONWAY AECOM LTD, 116.58 ,20/04/2017
Commercial,Regional Enterprise,Other Services,60076775,CONWAY AECOM LTD," 9,480.97 ",27/04/2017
Commercial,Regional Enterprise,Other Services,60076790,CONWAY AECOM LTD," 1,156.09 ",27/04/2017
Commercial,Regional Enterprise,Other Services,60076802,CONWAY AECOM LTD," 1,311.45 ",07/04/2017
Commercial,Regional Enterprise,Other Services,60076804,CONWAY AECOM LTD," 6,128.41 ",07/04/2017
Commercial,Regional Enterprise,Other Services,60076811,CONWAY AECOM LTD," 4,972.97 ",07/04/2017
Commercial,Regional Enterprise,Other Services,60076815,CONWAY AECOM LTD," 8,677.42 ",27/04/2017
Commercial,Regional Enterprise,Other Services,60076819,CONWAY AECOM LTD," 70,000.00 ",26/04/2017
Commercial,Regional Enterprise,Other Services,60076832,CONWAY AECOM LTD, 13.05 ,26/04/2017
Commercial,Regional Enterprise,Other Services,60076835,CONWAY AECOM LTD," 9,231.83 ",10/04/2017
Commercial,Regional Enterprise,Other Services,60076838,CONWAY AECOM LTD," 1,311.45 ",07/04/2017
Commercial,Regional Enterprise,Other Services,60076852,CONWAY AECOM LTD," 41,130.41 ",07/04/2017
Commercial,Regional Enterprise,Other Services,60076859,CONWAY AECOM LTD," 5,290.94 ",12/04/2017
Commercial,Regional Enterprise,Other Services,60076891,CONWAY AECOM LTD," 4,601.44 ",10/04/2017
Commercial,Regional Enterprise,Other Services,60076892,CONWAY AECOM LTD," 3,891.99 ",27/04/2017
Commercial,Regional Enterprise,Other Services,60076898,CONWAY AECOM LTD," 1,311.45 ",07/04/2017
Commercial,Regional Enterprise,Other Services,60076910,CONWAY AECOM LTD," 3,888.15 ",12/04/2017
Commercial,Regional Enterprise,Other Services,60076930,CONWAY AECOM LTD, 776.61 ,12/04/2017
Commercial,Regional Enterprise,Other Services,60076932,CONWAY AECOM LTD," 4,000.00 ",27/04/2017
Commercial,Regional Enterprise,Other Services,60076935,CONWAY AECOM LTD, 171.60 ,10/04/2017
Commercial,Regional Enterprise,Other Services,60076941,CONWAY AECOM LTD, 122.92 ,27/04/2017
Commercial,Regional Enterprise,Other Services,60076943,CONWAY AECOM LTD, 122.92 ,27/04/2017
Commercial,Regional Enterprise,Other Services,60076946,CONWAY AECOM LTD," 100,000.00 ",27/04/2017
Commercial,Regional Enterprise,Other Services,60076947,CONWAY AECOM LTD, 107.90 ,27/04/2017
Commercial,Regional Enterprise,Other Services,60076950,CONWAY AECOM LTD, 131.56 ,27/04/2017
Commercial,Regional Enterprise,Other Services,60076977,CONWAY AECOM LTD," 2,663.67 ",26/04/2017
Commercial,Regional Enterprise,Other Services,60076981,CONWAY AECOM LTD, 247.65 ,27/04/2017
Commercial,Regional Enterprise,Other Services,60076985,CONWAY AECOM LTD, 247.65 ,27/04/2017
Commercial,Regional Enterprise,Other Services,60076997,CONWAY AECOM LTD," 4,000.00 ",27/04/2017
Commercial,Regional Enterprise,Other Services,60077008,CONWAY AECOM LTD," 2,488.32 ",26/04/2017
Commercial,Regional Enterprise,Other Services,60077012,CONWAY AECOM LTD," 19,885.02 ",26/04/2017
Commercial,Regional Enterprise,Other Services,60077016,CONWAY AECOM LTD," 13,379.60 ",27/04/2017
Commercial,Regional Enterprise,Other Services,60077024,CONWAY AECOM LTD," 4,841.73 ",12/04/2017
Commercial,Regional Enterprise,Other Services,60077043,CONWAY AECOM LTD," 14,921.48 ",26/04/2017
Commercial,Regional Enterprise,Other Services,60077045,CONWAY AECOM LTD," 7,000.00 ",27/04/2017
Commercial,Regional Enterprise,Other Services,60077047,CONWAY AECOM LTD," 4,000.00 ",27/04/2017
Commercial,Regional Enterprise,Other Services,60077051,CONWAY AECOM LTD," 2,630.27 ",27/04/2017
Commercial,Regional Enterprise,Other Services,60077054,CONWAY AECOM LTD, 380.80 ,26/04/2017
Commercial,Regional Enterprise,Other Services,60077652,CONWAY AECOM LTD," 38,674.67 ",27/04/2017
Commercial,Regional Enterprise,Other Services,60077925,CONWAY AECOM LTD," 35,000.00 ",27/04/2017
Commercial,Regional Enterprise,Other Services,60077926,CONWAY AECOM LTD," 22,500.00 ",27/04/2017
Commercial,Regional Enterprise,Other Services,60077928,CONWAY AECOM LTD," 8,819.60 ",27/04/2017
Commercial,Regional Enterprise,Other Services,60077934,CONWAY AECOM LTD," 29,462.53 ",27/04/2017
Commercial,Regional Enterprise,Other Services,60077952,CONWAY AECOM LTD, 789.36 ,27/04/2017
Commercial,Regional Enterprise,Other Services,60077955,CONWAY AECOM LTD," 22,368.21 ",27/04/2017
Commercial,Regional Enterprise,Other Services,60077956,CONWAY AECOM LTD," 13,410.51 ",27/04/2017
Commercial,Regional Enterprise,Other Services,60077963,CONWAY AECOM LTD," 2,633.00 ",27/04/2017
Commercial,Regional Enterprise,Other Services,60077969,CONWAY AECOM LTD," 49,473.46 ",27/04/2017
Commercial,Regional Enterprise,Other Services,60077971,CONWAY AECOM LTD," 2,118.17 ",28/04/2017
Commercial,Regional Enterprise,Other Services,60077975,CONWAY AECOM LTD," 6,563.64 ",27/04/2017
Commercial,Regional Enterprise,Other Services,60077988,CONWAY AECOM LTD," 85,918.00 ",27/04/2017
Commercial,Regional Enterprise,Other Services,60078002,CONWAY AECOM LTD," 91,718.40 ",27/04/2017
Commercial,Regional Enterprise,Other Services,60078006,CONWAY AECOM LTD," 39,107.29 ",27/04/2017
Commercial,Regional Enterprise,Other Services,60078010,CONWAY AECOM LTD," 3,482.07 ",28/04/2017
Commercial,Regional Enterprise,Other Services,60078027,CONWAY AECOM LTD," 27,000.00 ",27/04/2017
Commercial,Regional Enterprise,Other Services,60078028,CONWAY AECOM LTD, 76.60 ,28/04/2017
Commercial,Regional Enterprise,Other Services,60075794,CYCLE CONFIDENT LTD," 15,000.00 ",19/04/2017
Commercial,Regional Enterprise,Other Services,60075894,CYCLE CONFIDENT LTD," 7,729.38 ",19/04/2017
Commercial,Regional Enterprise,Other Services,60074893,EBADGES, 397.25 ,06/04/2017
Commercial,Regional Enterprise,Other Services,60077123,ETZ CHAIM JEWISH PRIMARY SCHOOL," 5,000.00 ",20/04/2017
Commercial,Regional Enterprise,Other Services,60074674,FOR2FEET LTD," 9,429.00 ",24/04/2017
Commercial,Regional Enterprise,Other Services,60077137,GRASVENOR AVENUE INFANT SCHOOL (ACA," 5,000.00 ",19/04/2017
Commercial,Regional Enterprise,Other Services,60071525,HIGHWAY SURVEYORS LTD," 46,265.04 ",25/04/2017
Commercial,Regional Enterprise,Other Services,60077630,J C DECAUX UK LTD," 21,553.48 ",21/04/2017
Commercial,Regional Enterprise,Other Services,60074285,KENT COUNTY COUNCIL (KCS), 26.41 ,06/04/2017
Commercial,Regional Enterprise,Other Services,60076128,KONFLUX THEATRE LTD," 9,350.00 ",25/04/2017
Commercial,Regional Enterprise,Other Services,60075263,LIVING STREETS SERVICES LTD," 3,260.00 ",11/04/2017
Commercial,Regional Enterprise,Other Services,60074932,LYONSDOWN SCHOOL TRUST LTD," 1,100.00 ",18/04/2017
Commercial,Regional Enterprise,Other Services,60076503,MODESHIFT, 399.00 ,20/04/2017
Commercial,Regional Enterprise,Other Services,60076358,RIMON JEWISH PRIMARY SCHOOL," 1,100.00 ",18/04/2017
Commercial,Regional Enterprise,Other Services,60076666,RM COUNTRYSIDE SERVICES LTD, 475.00 ,05/04/2017
Commercial,Regional Enterprise,Other Services,60077654,RM COUNTRYSIDE SERVICES LTD, 315.00 ,27/04/2017
Commercial,Regional Enterprise,Other Services,60077933,RM COUNTRYSIDE SERVICES LTD, 80.00 ,27/04/2017
Commercial,Regional Enterprise,Other Services,60074746,STORYSACK, 45.45 ,18/04/2017
Commercial,Regional Enterprise,Other Services,60074876,SUN HILL SURVEYS," 1,725.00 ",05/04/2017
Commercial,Regional Enterprise,Other Services,60075936,SUN HILL SURVEYS, 900.00 ,20/04/2017
Commercial,Regional Enterprise,Other Services,60076331,SUN HILL SURVEYS," 1,475.00 ",25/04/2017
Commercial,Regional Enterprise,Other Services,60072266,TASHBAR OF EDGWARE PRIMARY SCHOOL," 1,300.00 ",18/04/2017
Commercial,Regional Enterprise,Other Services,60076361,THE MILL HILL SCHOOL FOUNDATION, 300.00 ,07/04/2017
Commercial,Regional Enterprise,Other Services,60062471,TRAFFIC SURVEY PARTNERS (TSP) LTD, 295.00 ,24/04/2017
Commercial,Regional Enterprise,Other Services,60062474,TRAFFIC SURVEY PARTNERS (TSP) LTD," 1,150.00 ",24/04/2017
Commercial,Regional Enterprise,Other Services,60075248,WHITEFIELD SCHOOL ACADEMY TRUST CO.," 1,800.00 ",20/04/2017
Commercial,Regional Enterprise,Other Services,60076380,WREN ACADEMY," 5,000.00 ",18/04/2017
Commercial,Regional Enterprise,Professional Services,60075493,LONDON BOROUGH OF CAMDEN," 21,260.00 ",19/04/2017
Commercial,Regional Enterprise,Professional Services,60075192,LONDON BUSES SERVICES LIMITED," 14,318.34 ",12/04/2017
Commercial,Regional Enterprise,Professional Services,60076072,PUBLIC ANALYST SCIENTIFIC SERVS. LT, 600.00 ,06/04/2017
Commercial,Regional Enterprise,Professional Services,60077746,RE (REGIONAL ENTERPRISE) LIMITED," 731,858.74 ",25/04/2017
Commercial,Regional Enterprise,RE Services Contract Payment,10013678,RE (REGIONAL ENTERPRISE) LIMITED," 64,844.00 ",03/04/2017
Commercial,Regional Enterprise,RE Services Contract Payment,10013679,RE (REGIONAL ENTERPRISE) LIMITED," 64,844.00 ",03/04/2017
Commercial,Regional Enterprise,RE Services Contract Payment,10013680,RE (REGIONAL ENTERPRISE) LIMITED,"-39,844.00 ",03/04/2017
Commercial,Regional Enterprise,RE Services Contract Payment,10013681,RE (REGIONAL ENTERPRISE) LIMITED,"-39,844.00 ",03/04/2017
Commercial,Regional Enterprise,RE Services Contract Payment,10013706,RE (REGIONAL ENTERPRISE) LIMITED," 30,298.95 ",27/04/2017
Commercial,Regional Enterprise,RE Services Contract Payment,10013707,RE (REGIONAL ENTERPRISE) LIMITED," 31,411.56 ",27/04/2017
Commercial,Regional Enterprise,RE Services Contract Payment,10013708,RE (REGIONAL ENTERPRISE) LIMITED," 52,500.00 ",27/04/2017
Commercial,Regional Enterprise,RE Services Contract Payment,10013709,RE (REGIONAL ENTERPRISE) LIMITED," 87,583.00 ",27/04/2017
Commercial,Regional Enterprise,RE Services Contract Payment,10013710,RE (REGIONAL ENTERPRISE) LIMITED," 150,390.35 ",27/04/2017
Commercial,Regional Enterprise,RE Services Contract Payment,10013711,RE (REGIONAL ENTERPRISE) LIMITED," 17,500.00 ",27/04/2017
Commercial,Regional Enterprise,RE Services Contract Payment,10013712,RE (REGIONAL ENTERPRISE) LIMITED," 121,935.86 ",27/04/2017
Commercial,Regional Enterprise,RE Services Contract Payment,10013713,RE (REGIONAL ENTERPRISE) LIMITED," 919,218.60 ",27/04/2017
Commercial,Regional Enterprise,RE Services Contract Payment,60077803,RE (REGIONAL ENTERPRISE) LIMITED," 843,940.64 ",25/04/2017
Commercial,Regional Enterprise,RE Services Contract Payment,60077808,RE (REGIONAL ENTERPRISE) LIMITED," 60,681.35 ",25/04/2017
Commissioning,Commissioning,Agency/Interim Hays,60075728,SUE HILL RECRUITMENT & SERVICES LTD, 938.16 ,06/04/2017
Commissioning,Commissioning,Agency/Interim Hays,60075837,SUE HILL RECRUITMENT & SERVICES LTD, 755.74 ,12/04/2017
Commissioning,Commissioning,Agency/Interim Hays,60075969,SUE HILL RECRUITMENT & SERVICES LTD, 912.10 ,20/04/2017
Commissioning,Commissioning,Agency/Interim Hays,60076823,SUE HILL RECRUITMENT & SERVICES LTD, 742.71 ,27/04/2017
Commissioning,Commissioning,Agency/Interim Hays,60076916,SUE HILL RECRUITMENT & SERVICES LTD, 925.13 ,12/04/2017
Commissioning,Commissioning,Agency/Interim Hays,60076965,SUE HILL RECRUITMENT & SERVICES LTD, 755.74 ,12/04/2017
Commissioning,Commissioning,Building Repairs & Maintenance,60074596,HARROW GREEN LTD," 1,110.23 ",04/04/2017
Commissioning,Commissioning,Building Repairs & Maintenance,60070876,MIDDLESEX UNIVERSITY," 140,000.00 ",04/04/2017
Commissioning,Commissioning,Building Repairs & Maintenance,60076343,RGE SERVICES," 16,683.12 ",12/04/2017
Commissioning,Commissioning,Building Repairs & Maintenance,60075179,SECOM PLC, 185.00 ,27/04/2017
Commissioning,Commissioning,Building Repairs & Maintenance,60078043,SECOM PLC, 652.00 ,28/04/2017
Commissioning,Commissioning,Consultants Fees,60077132,CAPITA BUSINESS SERVICES LTD," 4,225.00 ",11/04/2017
Commissioning,Commissioning,Consultants Fees,60077546,COMMUNITY BARNET," 15,000.00 ",27/04/2017
Commissioning,Commissioning,Consultants Fees,60077492,GALLIFORD TRY," 503,757.02 ",19/04/2017
Commissioning,Commissioning,Consultants Fees,80009665,HJC ACTUARIAL CONSULTING, 500.00 ,13/04/2017
Commissioning,Commissioning,Consultants Fees,80009586,HOSPITALITY 2 YOU, 52.50 ,05/04/2017
Commissioning,Commissioning,Consultants Fees,60074921,JEWISH DEAF ASSOCIATION, 110.00 ,18/04/2017
Commissioning,Commissioning,Consultants Fees,60076839,JON SHEAFF AND ASSOCIATES," 3,669.00 ",07/04/2017
Commissioning,Commissioning,Consultants Fees,60077367,JON SHEAFF AND ASSOCIATES," 6,097.00 ",13/04/2017
Commissioning,Commissioning,Consultants Fees,60076155,LEIDOS INNOVATIONS UK LTD," 14,527.00 ",20/04/2017
Commissioning,Commissioning,Consultants Fees,60076808,MOTT MACDONALD LTD/CAMBRIDGE EDUCATION," 106,189.00 ",20/04/2017
Commissioning,Commissioning,Consultants Fees,60076435,NOVUS - LCCC," 3,000.00 ",27/04/2017
Commissioning,Commissioning,Consultants Fees,60076532,NOVUS - LCCC," 3,000.00 ",24/04/2017
Commissioning,Commissioning,Consultants Fees,60077031,NOVUS - LCCC," 3,000.00 ",27/04/2017
Commissioning,Commissioning,Consultants Fees,60077595,PROJECT CENTRE LTD," 5,408.75 ",20/04/2017
Commissioning,Commissioning,Consultants Fees,60077613,PROJECT CENTRE LTD," 1,375.00 ",20/04/2017
Commissioning,Commissioning,Consultants Fees,60077622,PROJECT CENTRE LTD," 2,762.50 ",20/04/2017
Commissioning,Commissioning,Consultants Fees,80009615,THE GREEK CYPRIOT COMMUNITY TRUST, 140.00 ,11/04/2017
Commissioning,Commissioning,Consultants Fees,60068726,THE SOCIAL MARKETING GATEWAY," 1,485.00 ",27/04/2017
Commissioning,Commissioning,Consultants Fees,60075126,THE SOCIAL MARKETING GATEWAY," 8,365.00 ",27/04/2017
Commissioning,Commissioning,Consultants Fees,60076471,WATES CONSTRUCTION LTD," 114,871.00 ",05/04/2017
Commissioning,Commissioning,Consultants Fees,60075544,WESTCO TRADING LTD," 14,250.00 ",12/04/2017
Commissioning,Commissioning,Consultants Fees,60075679,WESTCO TRADING LTD," 19,300.00 ",12/04/2017
Commissioning,Commissioning,Consultants Fees,60077665,WILLMOTT DIXON CONSTRUCTION LTD," 1,006,315.00 ",26/04/2017
Commissioning,Commissioning,Discretionary awards,80009779,LOVE BURNT OAK COMMUNITY," 9,400.00 ",27/04/2017
Commissioning,Commissioning,Discretionary awards,80009606,MILL HILL BOWLING CLUB," 4,000.00 ",06/04/2017
Commissioning,Commissioning,Equipment and Materials Purcha,60075780,NISBETS PLC, 23.87 ,11/04/2017
Commissioning,Commissioning,Equipment and Materials Purcha,60077981,OCS GROUP UK LIMITED," 46,521.00 ",27/04/2017
Commissioning,Commissioning,Equipment and Materials Purcha,60071387,SYNERGY HEALTH LABORATORY SERVICES," 1,964.04 ",04/04/2017
Commissioning,Commissioning,Grant Payments,80009664,CARITAS ST JOSEPH'S CENTRE," 10,000.00 ",11/04/2017
Commissioning,Commissioning,Grant Payments,80009634,COMMUNITYBARNET," 1,500.00 ",11/04/2017
Commissioning,Commissioning,Grant Payments,80009651,STONEGROVE EST YOUTH PROJECT," 2,405.00 ",11/04/2017
Commissioning,Commissioning,Grant Payments,60077473,THE BARNETGROUP LIMITED," 40,960.00 ",25/04/2017
Commissioning,Commissioning,Grant Payments,80009852,THE LARCHES COMMUNITY," 2,500.00 ",27/04/2017
Commissioning,Commissioning,Grounds maintenance,60077758,BARNET LIGHTING SERVICES LTD," 2,750.00 ",26/04/2017
Commissioning,Commissioning,Health authorities - Third Par,60076029,REDACTED - PERSONAL DATA, 50.00 ,19/04/2017
Commissioning,Commissioning,Non Education Staff GPay,60074291,NHS BARNET CCG," 78,460.00 ",24/04/2017
Commissioning,Commissioning,Other Agencies - Third Party P,60059199,FAMILY FUND TRADING LTD,-684.92 ,27/04/2017
Commissioning,Commissioning,Other Agencies - Third Party P,60061145,FAMILY FUND TRADING LTD,"-1,970.25 ",27/04/2017
Commissioning,Commissioning,Other Agencies - Third Party P,60063978,FAMILY FUND TRADING LTD,-69.17 ,27/04/2017
Commissioning,Commissioning,Other Agencies - Third Party P,60064973,FAMILY FUND TRADING LTD,-237.23 ,27/04/2017
Commissioning,Commissioning,Other Agencies - Third Party P,60064980,FAMILY FUND TRADING LTD,-754.20 ,27/04/2017
Commissioning,Commissioning,Other Agencies - Third Party P,60070855,FAMILY FUND TRADING LTD,-775.44 ,27/04/2017
Commissioning,Commissioning,Other Agencies - Third Party P,60071287,FAMILY FUND TRADING LTD, 295.83 ,27/04/2017
Commissioning,Commissioning,Other Agencies - Third Party P,60071479,FAMILY FUND TRADING LTD, 85.00 ,27/04/2017
Commissioning,Commissioning,Other Agencies - Third Party P,60074132,FAMILY FUND TRADING LTD," 4,098.33 ",27/04/2017
Commissioning,Commissioning,Other Agencies - Third Party P,60074965,FAMILY FUND TRADING LTD," 4,750.00 ",27/04/2017
Commissioning,Commissioning,Other Agencies - Third Party P,60075721,FAMILY FUND TRADING LTD, 68.00 ,27/04/2017
Commissioning,Commissioning,Other Agencies - Third Party P,60075856,FAMILY FUND TRADING LTD,-498.24 ,27/04/2017
Commissioning,Commissioning,Other Agencies - Third Party P,60075867,FAMILY FUND TRADING LTD,-547.45 ,27/04/2017
Commissioning,Commissioning,Other Agencies - Third Party P,60076847,FAMILY FUND TRADING LTD, 174.00 ,27/04/2017
Commissioning,Commissioning,Other Agencies - Third Party P,60077015,FAMILY FUND TRADING LTD," 18,383.34 ",27/04/2017
Commissioning,Commissioning,Other Services,60077691,BARNET LIGHTING SERVICES LTD, 588.00 ,24/04/2017
Commissioning,Commissioning,Other Services,60077707,BARNET LIGHTING SERVICES LTD," 1,111.62 ",24/04/2017
Commissioning,Commissioning,Other Services,60077713,BARNET LIGHTING SERVICES LTD, 500.00 ,24/04/2017
Commissioning,Commissioning,Other Services,60076710,BLUE 9 SECURITY LIMITED," 3,713.45 ",06/04/2017
Commissioning,Commissioning,Other Services,60073715,CONWAY AECOM LTD, 173.68 ,04/04/2017
Commissioning,Commissioning,Other Services,60075614,CONWAY AECOM LTD, 18.27 ,11/04/2017
Commissioning,Commissioning,Other Services,60076085,CONWAY AECOM LTD, 133.82 ,19/04/2017
Commissioning,Commissioning,Other Services,60076283,CONWAY AECOM LTD, 66.96 ,19/04/2017
Commissioning,Commissioning,Other Services,60076301,CONWAY AECOM LTD, 142.80 ,19/04/2017
Commissioning,Commissioning,Other Services,60075882,CYCLE CONFIDENT LTD," 18,022.46 ",19/04/2017
Commissioning,Commissioning,Other Services,10013686,HARROW GREEN LTD, 396.55 ,04/04/2017
Commissioning,Commissioning,Other Services,10013687,HARROW GREEN LTD, 663.12 ,04/04/2017
Commissioning,Commissioning,Other Services,10013688,HARROW GREEN LTD, 324.00 ,04/04/2017
Commissioning,Commissioning,Other Services,60068280,HARROW GREEN LTD, 66.00 ,04/04/2017
Commissioning,Commissioning,Other Services,60069934,HARROW GREEN LTD, 482.67 ,04/04/2017
Commissioning,Commissioning,Other Services,60070219,HARROW GREEN LTD, 88.00 ,04/04/2017
Commissioning,Commissioning,Other Services,60072217,HARROW GREEN LTD, 99.00 ,04/04/2017
Commissioning,Commissioning,Other Services,60074098,HARROW GREEN LTD," 1,908.26 ",04/04/2017
Commissioning,Commissioning,Other Services,60074369,HARROW GREEN LTD," 14,901.55 ",04/04/2017
Commissioning,Commissioning,Other Services,80009120,LOVE BURNT OAK COMMUNITY RESOURCE & SUPP," 13,714.50 ",03/04/2017
Commissioning,Commissioning,Other Services,60075617,MOTT MACDONALD LTD/CAMBRIDGE EDUCATION," 5,427.56 ",12/04/2017
Commissioning,Commissioning,Other Services,60077575,NORTH LONDON WASTE AUTHORITY," 5,697.66 ",21/04/2017
Commissioning,Commissioning,Other Services,60077370,PELL FRISCHMAN CONSULTING ENGINEERS LTD," 1,666.50 ",27/04/2017
Commissioning,Commissioning,Other Services,80009770,SHARED ASSETS," 17,350.00 ",20/04/2017
Commissioning,Commissioning,Printing-Contract,60070833,RAINCHARM COMMUNICATIONS LTD, 360.00 ,27/04/2017
Commissioning,Commissioning,Private Contractors - Third Pa,10013689,GREENWICH LEISURE LTD," 101,631.70 ",04/04/2017
Commissioning,Commissioning,Professional Services,60076760,CAN DIGITAL SOLUTIONS LTD," 3,000.00 ",27/04/2017
Commissioning,Commissioning,Professional Services,60074982,EJH TRAINING SERVICES LTD," 4,676.35 ",07/04/2017
Commissioning,Commissioning,Professional Services,60075529,EJH TRAINING SERVICES LTD," 3,578.41 ",12/04/2017
Commissioning,Commissioning,Professional Services,60075942,EJH TRAINING SERVICES LTD," 2,456.54 ",20/04/2017
Commissioning,Commissioning,Professional Services,60076628,EXTERION MEDIA (UK) LIMITED, 468.00 ,12/04/2017
Commissioning,Commissioning,Professional Services,60076659,EXTERION MEDIA (UK) LIMITED, 120.00 ,12/04/2017
Commissioning,Commissioning,Professional Services,60075288,GROUNDWORK LONDON," 25,000.00 ",05/04/2017
Commissioning,Commissioning,Professional Services,80009773,GROWING AGAINST VIOLENCE," 10,000.00 ",24/04/2017
Commissioning,Commissioning,Professional Services,60077074,INCLUSION BARNET," 2,660.00 ",18/04/2017
Commissioning,Commissioning,Professional Services,60076753,REDACTED - PERSONAL DATA, 150.00 ,18/04/2017
Commissioning,Commissioning,Professional Services,60077641,REDACTED - PERSONAL DATA, 90.00 ,27/04/2017
Commissioning,Commissioning,Professional Services,60077009,SUBERBOS COMMUNITY CIC," 1,795.84 ",18/04/2017
Commissioning,Commissioning,Professional Services,60077350,THE BARNETGROUP LIMITED," 45,524.92 ",19/04/2017
Commissioning,Commissioning,Professional Services,60077357,THE BARNETGROUP LIMITED," 20,186.90 ",19/04/2017
Commissioning,Commissioning,Publications,60075909,DIGITALISSUE LIMITED, 150.00 ,20/04/2017
Commissioning,Commissioning,Publications,60076529,LETTERBOX DISTRIBUTION.COM," 9,828.00 ",05/04/2017
Commissioning,Commissioning,Rents,60075833,ARIANA BANQUETING HALL," 2,250.00 ",20/04/2017
Commissioning,Commissioning,Subscriptions,60076726,ACT NOW TRAINING LTD, 49.00 ,10/04/2017
Commissioning,Commissioning,Subscriptions,60076459,CITY OF LONDON," 5,000.00 ",05/04/2017
Commissioning,Commissioning,Subscriptions,60075663,COPYRIGHT LICENSING AGENCY LTD," 8,953.58 ",10/04/2017
Commissioning,Commissioning,Subscriptions,60075680,INFORMATION & RECORDS MANAGEMENT SO, 300.00 ,19/04/2017
Commissioning,Commissioning,Subscriptions,60077699,LONDON YOUTH GAMES," 7,000.00 ",24/04/2017
Commissioning,Commissioning,Subscriptions,10013702,THE INFORMATION COMMISSIONER, 500.00 ,21/04/2017
Commissioning,Commissioning,Training,60076424,LOCAL GOVERNMENT IMPROVEMENT AND," 6,900.00 ",07/04/2017
Commissioning,Commissioning,Venue Hire,80009114,ARIANA BANQUETING HALL, 960.00 ,12/04/2017
Commissioning,Commissioning,Venue Hire,60077627,GREENWICH LEISURE LTD, 137.70 ,25/04/2017
Commissioning,Commissioning,Venue Hire,60077629,GREENWICH LEISURE LTD, 245.60 ,25/04/2017
Commissioning,Commissioning,Venue Hire,60077633,GREENWICH LEISURE LTD, 570.90 ,25/04/2017
Commissioning,Commissioning,Venue Hire,60077648,GREENWICH LEISURE LTD," 1,038.00 ",25/04/2017
Commissioning,Commissioning,Venue Hire,60077687,GREENWICH LEISURE LTD, 207.60 ,27/04/2017
Corporate Accounting,Corporate Accounting,Consultants Fees,60076329,THE BARNETGROUP LIMITED," 72,620.39 ",03/04/2017
Corporate Accounting,Corporate Accounting,Employee Expenses,10013690,EDENRED," 1,978.75 ",05/04/2017
Corporate Accounting,Corporate Accounting,Other Local Authorities - Thir,CHP4000171,GREATER LONDON AUTHORITY," 4,014,752.67 ",28/04/2017
Corporate Accounting,Corporate Accounting,Other Transfer Payments to Soc,60074384,CITIBANK NA LONDON," 1,406.10 ",18/04/2017
Corporate Accounting,Corporate Accounting,Other Transfer Payments to Soc,60076351,CITIBANK NA LONDON, 237.60 ,04/04/2017
Corporate Accounting,Corporate Accounting,Other Transfer Payments to Soc,60076359,CITIBANK NA LONDON, 381.60 ,04/04/2017
Corporate Accounting,Corporate Accounting,Other Transfer Payments to Soc,60076368,CITIBANK NA LONDON, 385.00 ,04/04/2017
Corporate Accounting,Corporate Accounting,Other Transfer Payments to Soc,60076385,CITIBANK NA LONDON, 268.50 ,04/04/2017
Corporate Accounting,Corporate Accounting,Other Transfer Payments to Soc,60076396,CITIBANK NA LONDON, 255.80 ,04/04/2017
Corporate Accounting,Corporate Accounting,Other Transfer Payments to Soc,60076400,CITIBANK NA LONDON, 304.00 ,04/04/2017
Corporate Accounting,Corporate Accounting,Other Transfer Payments to Soc,60076406,CITIBANK NA LONDON, 264.00 ,04/04/2017
Corporate Accounting,Corporate Accounting,Other Transfer Payments to Soc,60076408,CITIBANK NA LONDON, 107.90 ,04/04/2017
Corporate Accounting,Corporate Accounting,Other Transfer Payments to Soc,60076411,CITIBANK NA LONDON, 328.65 ,04/04/2017
Corporate Accounting,Corporate Accounting,Other Transfer Payments to Soc,60076583,CITIBANK NA LONDON, 250.00 ,06/04/2017
Corporate Accounting,Corporate Accounting,Other Transfer Payments to Soc,60076597,CITIBANK NA LONDON, 196.20 ,06/04/2017
Corporate Accounting,Corporate Accounting,Other Transfer Payments to Soc,60076608,CITIBANK NA LONDON, 127.90 ,06/04/2017
Corporate Accounting,Corporate Accounting,Other Transfer Payments to Soc,60076621,CITIBANK NA LONDON, 200.00 ,06/04/2017
Corporate Accounting,Corporate Accounting,Other Transfer Payments to Soc,60076640,CITIBANK NA LONDON, 447.80 ,06/04/2017
Corporate Accounting,Corporate Accounting,Other Transfer Payments to Soc,60076642,CITIBANK NA LONDON, 350.00 ,06/04/2017
Corporate Accounting,Corporate Accounting,Other Transfer Payments to Soc,60076671,CITIBANK NA LONDON, 276.88 ,06/04/2017
Corporate Accounting,Corporate Accounting,Other Transfer Payments to Soc,60076692,CITIBANK NA LONDON, 60.00 ,06/04/2017
Corporate Accounting,Corporate Accounting,Other Transfer Payments to Soc,60077080,CITIBANK NA LONDON, 198.70 ,12/04/2017
Corporate Accounting,Corporate Accounting,Other Transfer Payments to Soc,60077088,CITIBANK NA LONDON, 501.50 ,12/04/2017
Corporate Accounting,Corporate Accounting,Other Transfer Payments to Soc,60077102,CITIBANK NA LONDON, 368.60 ,12/04/2017
Corporate Accounting,Corporate Accounting,Other Transfer Payments to Soc,60077103,CITIBANK NA LONDON, 365.00 ,12/04/2017
Corporate Accounting,Corporate Accounting,Other Transfer Payments to Soc,60077111,CITIBANK NA LONDON, 446.60 ,12/04/2017
Corporate Accounting,Corporate Accounting,Other Transfer Payments to Soc,60077159,CITIBANK NA LONDON, 57.90 ,12/04/2017
Corporate Accounting,Corporate Accounting,Other Transfer Payments to Soc,60077193,CITIBANK NA LONDON, 252.00 ,12/04/2017
Corporate Accounting,Corporate Accounting,Other Transfer Payments to Soc,60077225,CITIBANK NA LONDON, 332.10 ,13/04/2017
Corporate Accounting,Corporate Accounting,Other Transfer Payments to Soc,60077245,CITIBANK NA LONDON, 123.78 ,13/04/2017
Corporate Accounting,Corporate Accounting,Other Transfer Payments to Soc,60077282,CITIBANK NA LONDON," 29,016.22 ",13/04/2017
Corporate Accounting,Corporate Accounting,Other Transfer Payments to Soc,60077324,CITIBANK NA LONDON, 352.00 ,13/04/2017
Corporate Accounting,Corporate Accounting,Other Transfer Payments to Soc,60077692,CITIBANK NA LONDON, 653.40 ,24/04/2017
Corporate Accounting,Corporate Accounting,Other Transfer Payments to Soc,60077716,CITIBANK NA LONDON, 600.80 ,24/04/2017
Corporate Accounting,Corporate Accounting,Other Transfer Payments to Soc,60077720,CITIBANK NA LONDON," 1,003.50 ",24/04/2017
Corporate Accounting,Corporate Accounting,Other Transfer Payments to Soc,60077728,CITIBANK NA LONDON, 261.95 ,24/04/2017
Corporate Accounting,Corporate Accounting,Other Transfer Payments to Soc,60077735,CITIBANK NA LONDON, 457.90 ,24/04/2017
Corporate Accounting,Corporate Accounting,Other Transfer Payments to Soc,60077813,CITIBANK NA LONDON," 4,431.67 ",26/04/2017
Corporate Accounting,Corporate Accounting,Other Transfer Payments to Soc,60077874,CITIBANK NA LONDON, 57.90 ,26/04/2017
Corporate Accounting,Corporate Accounting,Other Transfer Payments to Soc,60077877,CITIBANK NA LONDON, 224.00 ,26/04/2017
Corporate Accounting,Corporate Accounting,Other Transfer Payments to Soc,60077881,CITIBANK NA LONDON," 3,762.30 ",26/04/2017
Corporate Accounting,Corporate Accounting,Other Transfer Payments to Soc,60077885,CITIBANK NA LONDON, 57.90 ,26/04/2017
Corporate Accounting,Corporate Accounting,Other Transfer Payments to Soc,60077907,CITIBANK NA LONDON," 2,871.19 ",26/04/2017
Corporate Accounting,Corporate Accounting,Other Transfer Payments to Soc,60077908,CITIBANK NA LONDON," 2,069.00 ",26/04/2017
Corporate Accounting,Corporate Accounting,Other Transfer Payments to Soc,60077937,CITIBANK NA LONDON, 288.66 ,28/04/2017
Corporate Accounting,Corporate Accounting,Other Transfer Payments to Soc,60077958,CITIBANK NA LONDON, 35.00 ,28/04/2017
Corporate Accounting,Corporate Accounting,Other Transfer Payments to Soc,60077990,CITIBANK NA LONDON, 406.40 ,28/04/2017
Corporate Accounting,Corporate Accounting,Other Transfer Payments to Soc,60078024,CITIBANK NA LONDON, 162.90 ,28/04/2017
Delivery Units,Adults and Communities,Agency/Interim Hays,10013649,PPL (PRIVATE PUBLIC LTD) CONSULTING," 14,850.00 ",07/04/2017
Delivery Units,Adults and Communities,Agency/Interim Hays,60074601,PPL (PRIVATE PUBLIC LTD) CONSULTING," 5,025.00 ",03/04/2017
Delivery Units,Adults and Communities,Agency/Interim Hays,60077785,PPL (PRIVATE PUBLIC LTD) CONSULTING," 3,975.00 ",27/04/2017
Delivery Units,Adults and Communities,Capital Construction and Works,60070432,BRIDGEWAY CONSULTING LTD," 5,348.00 ",04/04/2017
Delivery Units,Adults and Communities,Cleaning and domestic material,60076841,CHURCHILL CONTRACT SERVICES, 391.37 ,27/04/2017
Delivery Units,Adults and Communities,Cleaning and domestic material,60076902,CHURCHILL CONTRACT SERVICES, 377.81 ,27/04/2017
Delivery Units,Adults and Communities,Consultants Fees,60075919,VOICEABILITY," 2,356.00 ",20/04/2017
Delivery Units,Adults and Communities,Consultants Fees,60076867,VOICEABILITY," 1,204.00 ",20/04/2017
Delivery Units,Adults and Communities,Copying and Printing Charges,60076149,GOOD IMPRESSIONS (LONDON) LIMITED, 295.00 ,25/04/2017
Delivery Units,Adults and Communities,Equipment and Materials Purcha,60064243,DIRECT MOBILITY HIRE LTD, 53.00 ,04/04/2017
Delivery Units,Adults and Communities,Equipment and Materials Purcha,60075552,JOHN GRAHAM CONSTRUCTION LTD," 196,564.00 ",18/04/2017
Delivery Units,Adults and Communities,Equipment and Materials Purcha,60075601,JOHN GRAHAM CONSTRUCTION LTD," 167,674.00 ",18/04/2017
Delivery Units,Adults and Communities,Food Costs,60076800,MULLER MILK & INGREDIENTS, 1.65 ,11/04/2017
Delivery Units,Adults and Communities,Food Costs,60077142,MULLER MILK & INGREDIENTS, 1.65 ,21/04/2017
Delivery Units,Adults and Communities,Food Costs,60077515,MULLER MILK & INGREDIENTS, 1.65 ,25/04/2017
Delivery Units,Adults and Communities,Furniture-Purchase-Repair,60076112,REDACTED - PERSONAL DATA, 200.00 ,03/04/2017
Delivery Units,Adults and Communities,Furniture-Purchase-Repair,60076215,REDACTED - PERSONAL DATA, 600.00 ,03/04/2017
Delivery Units,Adults and Communities,Furniture-Purchase-Repair,60076840,REDACTED - PERSONAL DATA, 425.00 ,07/04/2017
Delivery Units,Adults and Communities,Furniture-Purchase-Repair,60076903,REDACTED - PERSONAL DATA, 300.00 ,07/04/2017
Delivery Units,Adults and Communities,Grant Payments,80008978,DP BUILDERS DISABLED ADAPTATIONS, 126.00 ,04/04/2017
Delivery Units,Adults and Communities,Non Education Staff GPay,60075693,BARNET ENFIELD & HARINGEY MENTAL," 51,173.00 ",19/04/2017
Delivery Units,Adults and Communities,Other Agencies - Third Party P,30162264,AARANDALE LODGE, 185.71 ,13/04/2017
Delivery Units,Adults and Communities,Other Agencies - Third Party P,30163015,AARON COURT CARE HOME, 143.00 ,25/04/2017
Delivery Units,Adults and Communities,Other Agencies - Third Party P,30162256,ABBEY RAVENSCROFT PARK NURSING HOME," 1,700.00 ",13/04/2017
Delivery Units,Adults and Communities,Other Agencies - Third Party P,30162257,ABBEY RAVENSCROFT PARK NURSING HOME," 3,100.00 ",13/04/2017
Delivery Units,Adults and Communities,Other Agencies - Third Party P,30162258,ABBEY RAVENSCROFT PARK NURSING HOME," 2,200.00 ",13/04/2017
Delivery Units,Adults and Communities,Other Agencies - Third Party P,30162259,ABBEY RAVENSCROFT PARK NURSING HOME," 1,285.71 ",13/04/2017
Delivery Units,Adults and Communities,Other Agencies - Third Party P,30162260,ABBEY RAVENSCROFT PARK NURSING HOME," 3,321.43 ",13/04/2017
Delivery Units,Adults and Communities,Other Agencies - Third Party P,30162261,ABBEY RAVENSCROFT PARK NURSING HOME, 114.29 ,13/04/2017
Delivery Units,Adults and Communities,Other Agencies - Third Party P,30163226,ABBEY RAVENSCROFT PARK NURSING HOME," 3,257.14 ",27/04/2017
Delivery Units,Adults and Communities,Other Agencies - Third Party P,30163227,ABBEY RAVENSCROFT PARK NURSING HOME," 2,571.43 ",27/04/2017
Delivery Units,Adults and Communities,Other Agencies - Third Party P,30163228,ABBEY RAVENSCROFT PARK NURSING HOME,"-2,571.43 ",27/04/2017
Delivery Units,Adults and Communities,Other Agencies - Third Party P,30162404,ALDWYCK HOUSING GROUP, 145.13 ,19/04/2017
Delivery Units,Adults and Communities,Other Agencies - Third Party P,30162405,ALDWYCK HOUSING GROUP, 145.13 ,19/04/2017
Delivery Units,Adults and Communities,Other Agencies - Third Party P,30162377,ALEXANDRA HOUSE (RUNWOOD HOMES)," 2,262.69 ",13/04/2017
Delivery Units,Adults and Communities,Other Agencies - Third Party P,30162424,ANASTASIA LODGE, 200.00 ,20/04/2017
Delivery Units,Adults and Communities,Other Agencies - Third Party P,30162425,ANASTASIA LODGE, 214.28 ,20/04/2017
Delivery Units,Adults and Communities,Other Agencies - Third Party P,30162266,AREA 51 EDUCATION LTD, 632.00 ,13/04/2017
Delivery Units,Adults and Communities,Other Agencies - Third Party P,30162267,AREA 51 EDUCATION LTD," 1,580.00 ",13/04/2017
Delivery Units,Adults and Communities,Other Agencies - Third Party P,30162268,AREA 51 EDUCATION LTD, 948.00 ,13/04/2017
Delivery Units,Adults and Communities,Other Agencies - Third Party P,30162269,AREA 51 EDUCATION LTD, 632.00 ,13/04/2017
Delivery Units,Adults and Communities,Other Agencies - Third Party P,30163280,AREA 51 EDUCATION LTD, 237.00 ,27/04/2017
Delivery Units,Adults and Communities,Other Agencies - Third Party P,30162781,ASH COURT CARE CENTRE, 242.86 ,27/04/2017
Delivery Units,Adults and Communities,Other Agencies - Third Party P,30161973,ASHFIELDS RESIDENTIAL CARE HOME, 552.29 ,11/04/2017
Delivery Units,Adults and Communities,Other Agencies - Third Party P,30162384,ASHFIELDS RESIDENTIAL CARE HOME," 5,185.71 ",13/04/2017
Delivery Units,Adults and Communities,Other Agencies - Third Party P,30163004,ASHFIELDS RESIDENTIAL CARE HOME, 157.99 ,25/04/2017
Delivery Units,Adults and Communities,Other Agencies - Third Party P,30163005,ASHFIELDS RESIDENTIAL CARE HOME, 157.99 ,25/04/2017
Delivery Units,Adults and Communities,Other Agencies - Third Party P,30163006,ASHFIELDS RESIDENTIAL CARE HOME, 157.99 ,25/04/2017
Delivery Units,Adults and Communities,Other Agencies - Third Party P,30163007,ASHFIELDS RESIDENTIAL CARE HOME, 171.43 ,25/04/2017
Delivery Units,Adults and Communities,Other Agencies - Third Party P,30163008,ASHFIELDS RESIDENTIAL CARE HOME, 157.99 ,25/04/2017
Delivery Units,Adults and Communities,Other Agencies - Third Party P,30163009,ASHFIELDS RESIDENTIAL CARE HOME, 145.11 ,25/04/2017
Delivery Units,Adults and Communities,Other Agencies - Third Party P,30163010,ASHFIELDS RESIDENTIAL CARE HOME, 157.14 ,25/04/2017
Delivery Units,Adults and Communities,Other Agencies - Third Party P,30163011,ASHFIELDS RESIDENTIAL CARE HOME, 157.99 ,25/04/2017
Delivery Units,Adults and Communities,Other Agencies - Third Party P,30163012,ASHFIELDS RESIDENTIAL CARE HOME, 157.99 ,25/04/2017
Delivery Units,Adults and Communities,Other Agencies - Third Party P,30161969,ASHTON LODGE CARE CENTRE," 1,933.64 ",11/04/2017
Delivery Units,Adults and Communities,Other Agencies - Third Party P,30161974,ASHTON LODGE CARE CENTRE, 171.33 ,11/04/2017
Delivery Units,Adults and Communities,Other Agencies - Third Party P,30161978,ASHTON LODGE CARE CENTRE, 228.57 ,11/04/2017
Delivery Units,Adults and Communities,Other Agencies - Third Party P,30161984,ASHTON LODGE CARE CENTRE, 179.89 ,11/04/2017
Delivery Units,Adults and Communities,Other Agencies - Third Party P,30161998,ASHTON LODGE CARE CENTRE, 214.29 ,11/04/2017
Delivery Units,Adults and Communities,Other Agencies - Third Party P,30161999,ASHTON LODGE CARE CENTRE, 214.29 ,11/04/2017
Delivery Units,Adults and Communities,Other Agencies - Third Party P,30162000,ASHTON LODGE CARE CENTRE, 171.33 ,11/04/2017
Delivery Units,Adults and Communities,Other Agencies - Third Party P,30162002,ASHTON LODGE CARE CENTRE, 154.69 ,11/04/2017
Delivery Units,Adults and Communities,Other Agencies - Third Party P,30162003,ASHTON LODGE CARE CENTRE, 171.43 ,11/04/2017
Delivery Units,Adults and Communities,Other Agencies - Third Party P,30162008,ASHTON LODGE CARE CENTRE, 171.43 ,11/04/2017
Delivery Units,Adults and Communities,Other Agencies - Third Party P,30162009,ASHTON LODGE CARE CENTRE, 157.99 ,11/04/2017
Delivery Units,Adults and Communities,Other Agencies - Third Party P,30162038,ASHTON LODGE CARE CENTRE, 198.21 ,11/04/2017
Delivery Units,Adults and Communities,Other Agencies - Third Party P,30162040,ASHTON LODGE CARE CENTRE, 154.69 ,11/04/2017
Delivery Units,Adults and Communities,Other Agencies - Third Party P,30162055,ASHTON LODGE CARE CENTRE, 157.99 ,11/04/2017
Delivery Units,Adults and Communities,Other Agencies - Third Party P,30162056,ASHTON LODGE CARE CENTRE, 210.86 ,11/04/2017
Delivery Units,Adults and Communities,Other Agencies - Third Party P,30162062,ASHTON LODGE CARE CENTRE, 185.71 ,11/04/2017
Delivery Units,Adults and Communities,Other Agencies - Third Party P,30162063,ASHTON LODGE CARE CENTRE, 198.21 ,11/04/2017
Delivery Units,Adults and Communities,Other Agencies - Third Party P,30162064,ASHTON LODGE CARE CENTRE, 154.69 ,11/04/2017
Delivery Units,Adults and Communities,Other Agencies - Third Party P,30162066,ASHTON LODGE CARE CENTRE, 157.99 ,11/04/2017
Delivery Units,Adults and Communities,Other Agencies - Third Party P,30162332,ASHTON LODGE CARE CENTRE," 11,307.50 ",13/04/2017
Delivery Units,Adults and Communities,Other Agencies - Third Party P,30162380,ASHTON LODGE CARE CENTRE," 4,714.29 ",13/04/2017
Delivery Units,Adults and Communities,Other Agencies - Third Party P,30162381,ASHTON LODGE CARE CENTRE, 214.29 ,13/04/2017
Delivery Units,Adults and Communities,Other Agencies - Third Party P,30162509,ASHTON LODGE CARE CENTRE," 5,371.43 ",19/04/2017
Delivery Units,Adults and Communities,Other Agencies - Third Party P,30162791,ASPEN VILLAGES LTD, 142.99 ,24/04/2017
Delivery Units,Adults and Communities,Other Agencies - Third Party P,30162792,ASPEN VILLAGES LTD, 314.29 ,24/04/2017
Delivery Units,Adults and Communities,Other Agencies - Third Party P,30162793,ASPEN VILLAGES LTD, 214.29 ,24/04/2017
Delivery Units,Adults and Communities,Other Agencies - Third Party P,30162795,ASPEN VILLAGES LTD, 228.57 ,24/04/2017
Delivery Units,Adults and Communities,Other Agencies - Third Party P,30162796,ASPEN VILLAGES LTD, 385.71 ,24/04/2017
Delivery Units,Adults and Communities,Other Agencies - Third Party P,30162797,ASPEN VILLAGES LTD, 156.00 ,24/04/2017
Delivery Units,Adults and Communities,Other Agencies - Third Party P,30162798,ASPEN VILLAGES LTD, 314.29 ,24/04/2017
Delivery Units,Adults and Communities,Other Agencies - Third Party P,30162799,ASPEN VILLAGES LTD, 271.43 ,24/04/2017
Delivery Units,Adults and Communities,Other Agencies - Third Party P,30162800,ASPEN VILLAGES LTD, 228.57 ,24/04/2017
Delivery Units,Adults and Communities,Other Agencies - Third Party P,30162801,ASPEN VILLAGES LTD, 314.29 ,24/04/2017
Delivery Units,Adults and Communities,Other Agencies - Third Party P,30163021,ASPEN VILLAGES LTD," 10,971.43 ",25/04/2017
Delivery Units,Adults and Communities,Other Agencies - Third Party P,30162432,AUTUMN GARDENS, 225.71 ,19/04/2017
Delivery Units,Adults and Communities,Other Agencies - Third Party P,30162433,AUTUMN GARDENS, 342.86 ,19/04/2017
Delivery Units,Adults and Communities,Other Agencies - Third Party P,30162434,AUTUMN GARDENS, 205.71 ,19/04/2017
Delivery Units,Adults and Communities,Other Agencies - Third Party P,30162435,AUTUMN GARDENS, 200.00 ,19/04/2017
Delivery Units,Adults and Communities,Other Agencies - Third Party P,30162436,AUTUMN GARDENS, 156.00 ,19/04/2017
Delivery Units,Adults and Communities,Other Agencies - Third Party P,30162437,AUTUMN GARDENS, 342.86 ,19/04/2017
Delivery Units,Adults and Communities,Other Agencies - Third Party P,30161898,BARNET CARERS CENTRE, 219.75 ,11/04/2017
Delivery Units,Adults and Communities,Other Agencies - Third Party P,30161906,BAYTREE COMMUNITY CARE (LONDON) LTD, 186.47 ,12/04/2017
Delivery Units,Adults and Communities,Other Agencies - Third Party P,30161907,BAYTREE COMMUNITY CARE (LONDON) LTD, 173.33 ,12/04/2017
Delivery Units,Adults and Communities,Other Agencies - Third Party P,30161908,BAYTREE COMMUNITY CARE (LONDON) LTD, 134.32 ,12/04/2017
Delivery Units,Adults and Communities,Other Agencies - Third Party P,30161909,BAYTREE COMMUNITY CARE (LONDON) LTD, 228.28 ,12/04/2017
Delivery Units,Adults and Communities,Other Agencies - Third Party P,30162782,BELMONT LODGE CARE CENTRE, 155.14 ,24/04/2017
Delivery Units,Adults and Communities,Other Agencies - Third Party P,30161971,BIRCHWOOD GRANGE CARE HOME," 5,528.57 ",11/04/2017
Delivery Units,Adults and Communities,Other Agencies - Third Party P,30162247,BROOKDALE HEALTHCARE," 3,759.36 ",13/04/2017
Delivery Units,Adults and Communities,Other Agencies - Third Party P,30163237,BRUNSWICK SUPPORTED LIVING SERVICES," 1,412.68 ",27/04/2017
Delivery Units,Adults and Communities,Other Agencies - Third Party P,30163238,BRUNSWICK SUPPORTED LIVING SERVICES," 1,942.84 ",27/04/2017
Delivery Units,Adults and Communities,Other Agencies - Third Party P,30163244,BRUNSWICK SUPPORTED LIVING SERVICES," 2,153.92 ",27/04/2017
Delivery Units,Adults and Communities,Other Agencies - Third Party P,30161985,BUPA CARE HOMES," 6,586.83 ",11/04/2017
Delivery Units,Adults and Communities,Other Agencies - Third Party P,30161986,BUPA CARE HOMES," 9,096.70 ",11/04/2017
Delivery Units,Adults and Communities,Other Agencies - Third Party P,30161987,BUPA CARE HOMES," 2,466.76 ",12/04/2017
Delivery Units,Adults and Communities,Other Agencies - Third Party P,30161988,BUPA CARE HOMES," 2,314.24 ",12/04/2017
Delivery Units,Adults and Communities,Other Agencies - Third Party P,30161989,BUPA CARE HOMES," 2,448.78 ",12/04/2017
Delivery Units,Adults and Communities,Other Agencies - Third Party P,30161990,BUPA CARE HOMES," 2,314.24 ",12/04/2017
Delivery Units,Adults and Communities,Other Agencies - Third Party P,30161991,BUPA CARE HOMES, 114.29 ,11/04/2017
Delivery Units,Adults and Communities,Other Agencies - Third Party P,30161992,BUPA CARE HOMES," 2,384.57 ",11/04/2017
Delivery Units,Adults and Communities,Other Agencies - Third Party P,30161993,BUPA CARE HOMES," 7,964.70 ",11/04/2017
Delivery Units,Adults and Communities,Other Agencies - Third Party P,30161994,BUPA CARE HOMES," 2,464.06 ",11/04/2017
Delivery Units,Adults and Communities,Other Agencies - Third Party P,30161995,BUPA CARE HOMES," 2,464.06 ",11/04/2017
Delivery Units,Adults and Communities,Other Agencies - Third Party P,30161996,BUPA CARE HOMES," 6,824.50 ",11/04/2017
Delivery Units,Adults and Communities,Other Agencies - Third Party P,30161997,BUPA CARE HOMES, 571.43 ,11/04/2017
Delivery Units,Adults and Communities,Other Agencies - Third Party P,30162354,BUPA CARE HOMES," 2,464.06 ",13/04/2017
Delivery Units,Adults and Communities,Other Agencies - Third Party P,30162355,BUPA CARE HOMES," 2,464.06 ",13/04/2017
Delivery Units,Adults and Communities,Other Agencies - Third Party P,30162356,BUPA CARE HOMES," 3,468.06 ",13/04/2017
Delivery Units,Adults and Communities,Other Agencies - Third Party P,30162357,BUPA CARE HOMES," 3,500.00 ",13/04/2017
Delivery Units,Adults and Communities,Other Agencies - Third Party P,30162358,BUPA CARE HOMES," 2,466.05 ",18/04/2017
Delivery Units,Adults and Communities,Other Agencies - Third Party P,30162359,BUPA CARE HOMES," 3,007.40 ",18/04/2017
Delivery Units,Adults and Communities,Other Agencies - Third Party P,30162360,BUPA CARE HOMES," 2,466.05 ",18/04/2017
Delivery Units,Adults and Communities,Other Agencies - Third Party P,30162361,BUPA CARE HOMES," 3,875.00 ",18/04/2017
Delivery Units,Adults and Communities,Other Agencies - Third Party P,30162382,BUPA CARE HOMES," 2,730.97 ",13/04/2017
Delivery Units,Adults and Communities,Other Agencies - Third Party P,30163235,BUPA CARE HOMES," 1,005.49 ",27/04/2017
Delivery Units,Adults and Communities,Other Agencies - Third Party P,30163306,BUPA CARE HOMES," 2,165.68 ",27/04/2017
Delivery Units,Adults and Communities,Other Agencies - Third Party P,30161954,BUPA NURSING HOMES LTD - ARKLEY," 2,227.52 ",11/04/2017
Delivery Units,Adults and Communities,Other Agencies - Third Party P,30161955,BUPA NURSING HOMES LTD - ARKLEY," 2,227.24 ",11/04/2017
Delivery Units,Adults and Communities,Other Agencies - Third Party P,30161956,BUPA NURSING HOMES LTD - ARKLEY," 2,227.24 ",11/04/2017
Delivery Units,Adults and Communities,Other Agencies - Third Party P,30161957,BUPA NURSING HOMES LTD - ARKLEY," 2,089.68 ",11/04/2017
Delivery Units,Adults and Communities,Other Agencies - Third Party P,30161958,BUPA NURSING HOMES LTD - ARKLEY," 2,227.40 ",11/04/2017
Delivery Units,Adults and Communities,Other Agencies - Third Party P,30161959,BUPA NURSING HOMES LTD - ARKLEY," 2,375.44 ",11/04/2017
Delivery Units,Adults and Communities,Other Agencies - Third Party P,30161960,BUPA NURSING HOMES LTD - ARKLEY," 2,214.76 ",11/04/2017
Delivery Units,Adults and Communities,Other Agencies - Third Party P,30161961,BUPA NURSING HOMES LTD - ARKLEY," 2,165.68 ",11/04/2017
Delivery Units,Adults and Communities,Other Agencies - Third Party P,30161962,BUPA NURSING HOMES LTD - ARKLEY," 3,484.16 ",11/04/2017
Delivery Units,Adults and Communities,Other Agencies - Third Party P,30163000,BUPA NURSING HOMES LTD - ARKLEY," 2,227.40 ",25/04/2017
Delivery Units,Adults and Communities,Other Agencies - Third Party P,30162427,CAMPHILL DEVON COMMUNITY LIMITED," 1,288.00 ",19/04/2017
Delivery Units,Adults and Communities,Other Agencies - Third Party P,30163233,CARE ASSIST LIMITED, 271.43 ,27/04/2017
Delivery Units,Adults and Communities,Other Agencies - Third Party P,30163234,CARE ASSIST LIMITED, 271.43 ,27/04/2017
Delivery Units,Adults and Communities,Other Agencies - Third Party P,30158944,CARETECH COMMUNITY SERVICES LTD," 4,646.55 ",11/04/2017
Delivery Units,Adults and Communities,Other Agencies - Third Party P,30158958,CARETECH COMMUNITY SERVICES LTD," 1,088.14 ",06/04/2017
Delivery Units,Adults and Communities,Other Agencies - Third Party P,30162534,CARETECH COMMUNITY SERVICES LTD," 2,589.74 ",19/04/2017
Delivery Units,Adults and Communities,Other Agencies - Third Party P,30162535,CARETECH COMMUNITY SERVICES LTD," 2,149.94 ",19/04/2017
Delivery Units,Adults and Communities,Other Agencies - Third Party P,30163231,CARETECH COMMUNITY SERVICES LTD,-390.32 ,27/04/2017
Delivery Units,Adults and Communities,Other Agencies - Third Party P,30162302,CARING HOMES HEALTHCARE GROUP," 3,200.00 ",13/04/2017
Delivery Units,Adults and Communities,Other Agencies - Third Party P,30162363,CARMEN LODGE RESIDENTIAL HOME," 2,739.47 ",19/04/2017
Delivery Units,Adults and Communities,Other Agencies - Third Party P,30162989,CATHERINE LODGE," 2,892.86 ",27/04/2017
Delivery Units,Adults and Communities,Other Agencies - Third Party P,30162990,CATHERINE LODGE, 710.94 ,27/04/2017
Delivery Units,Adults and Communities,Other Agencies - Third Party P,30162993,CATHERINE LODGE," 1,658.85 ",27/04/2017
Delivery Units,Adults and Communities,Other Agencies - Third Party P,30162994,CATHERINE LODGE," 1,658.85 ",27/04/2017
Delivery Units,Adults and Communities,Other Agencies - Third Party P,30162995,CATHERINE LODGE, 157.99 ,27/04/2017
Delivery Units,Adults and Communities,Other Agencies - Third Party P,30162996,CATHERINE LODGE," 1,877.14 ",27/04/2017
Delivery Units,Adults and Communities,Other Agencies - Third Party P,30162276,CAVENDISH RADIO CARS, 901.40 ,13/04/2017
Delivery Units,Adults and Communities,Other Agencies - Third Party P,30162406,CDR CARE LTD, 800.00 ,19/04/2017
Delivery Units,Adults and Communities,Other Agencies - Third Party P,30162407,CDR CARE LTD, 800.00 ,19/04/2017
Delivery Units,Adults and Communities,Other Agencies - Third Party P,30162438,CDR CARE LTD," 1,680.00 ",19/04/2017
Delivery Units,Adults and Communities,Other Agencies - Third Party P,30163277,CDR CARE LTD, 800.00 ,27/04/2017
Delivery Units,Adults and Communities,Other Agencies - Third Party P,30163278,CDR CARE LTD," 1,500.00 ",27/04/2017
Delivery Units,Adults and Communities,Other Agencies - Third Party P,30163279,CDR CARE LTD," 1,500.00 ",27/04/2017
Delivery Units,Adults and Communities,Other Agencies - Third Party P,30162783,CEDARS NURSING HOME, 171.33 ,24/04/2017
Delivery Units,Adults and Communities,Other Agencies - Third Party P,30162784,CEDARS NURSING HOME, 171.33 ,24/04/2017
Delivery Units,Adults and Communities,Other Agencies - Third Party P,30162785,CEDARS NURSING HOME, 154.69 ,24/04/2017
Delivery Units,Adults and Communities,Other Agencies - Third Party P,30162786,CEDARS NURSING HOME, 171.33 ,24/04/2017
Delivery Units,Adults and Communities,Other Agencies - Third Party P,30162787,CEDARS NURSING HOME, 154.69 ,24/04/2017
Delivery Units,Adults and Communities,Other Agencies - Third Party P,30162788,CEDARS NURSING HOME, 154.69 ,24/04/2017
Delivery Units,Adults and Communities,Other Agencies - Third Party P,30157689,CENTRAL MIDDLESEX SKILLS," 1,085.52 ",05/04/2017
Delivery Units,Adults and Communities,Other Agencies - Third Party P,30157690,CENTRAL MIDDLESEX SKILLS, 723.68 ,05/04/2017
Delivery Units,Adults and Communities,Other Agencies - Third Party P,30157943,CENTRAL MIDDLESEX SKILLS,-544.16 ,06/04/2017
Delivery Units,Adults and Communities,Other Agencies - Third Party P,30162287,CHILTERN SUPPORT & HOUSING LTD," 2,914.29 ",13/04/2017
Delivery Units,Adults and Communities,Other Agencies - Third Party P,30162288,CHILTERN SUPPORT & HOUSING LTD," 13,600.00 ",13/04/2017
Delivery Units,Adults and Communities,Other Agencies - Third Party P,30162289,CHILTERN SUPPORT & HOUSING LTD," 13,600.00 ",13/04/2017
Delivery Units,Adults and Communities,Other Agencies - Third Party P,30162290,CHILTERN SUPPORT & HOUSING LTD," 13,600.00 ",13/04/2017
Delivery Units,Adults and Communities,Other Agencies - Third Party P,30162291,CHILTERN SUPPORT & HOUSING LTD," 13,600.00 ",13/04/2017
Delivery Units,Adults and Communities,Other Agencies - Third Party P,30162334,CLARE HOUSE NURSING HOME," 2,228.72 ",13/04/2017
Delivery Units,Adults and Communities,Other Agencies - Third Party P,30162277,CMG HOMES LTD," 3,240.96 ",13/04/2017
Delivery Units,Adults and Communities,Other Agencies - Third Party P,30162272,COMPLETE CARE SERVICES LTD, 350.12 ,13/04/2017
Delivery Units,Adults and Communities,Other Agencies - Third Party P,60076582,CRANSTOUN DRUG SERVICES, 964.29 ,18/04/2017
Delivery Units,Adults and Communities,Other Agencies - Third Party P,60076588,CRANSTOUN DRUG SERVICES," 2,989.29 ",18/04/2017
Delivery Units,Adults and Communities,Other Agencies - Third Party P,60076604,CRANSTOUN DRUG SERVICES," 2,796.43 ",18/04/2017
Delivery Units,Adults and Communities,Other Agencies - Third Party P,30161912,DANA CARE LIMITED," 9,902.29 ",11/04/2017
Delivery Units,Adults and Communities,Other Agencies - Third Party P,30162444,DEVELOPMENT AND LEARNING OPPORTUNIT," 1,440.00 ",19/04/2017
Delivery Units,Adults and Communities,Other Agencies - Third Party P,30162445,DEVELOPMENT AND LEARNING OPPORTUNIT," 1,440.00 ",19/04/2017
Delivery Units,Adults and Communities,Other Agencies - Third Party P,30162050,DIMENSIONS UK," 5,904.80 ",11/04/2017
Delivery Units,Adults and Communities,Other Agencies - Third Party P,30162068,DIMENSIONS UK," 4,405.84 ",11/04/2017
Delivery Units,Adults and Communities,Other Agencies - Third Party P,30162372,DIMENSIONS UK," 2,128.00 ",13/04/2017
Delivery Units,Adults and Communities,Other Agencies - Third Party P,30162530,DIMENSIONS UK," 1,541.00 ",19/04/2017
Delivery Units,Adults and Communities,Other Agencies - Third Party P,30162531,DIMENSIONS UK, 912.00 ,19/04/2017
Delivery Units,Adults and Communities,Other Agencies - Third Party P,30163054,DIMENSIONS UK, 149.60 ,25/04/2017
Delivery Units,Adults and Communities,Other Agencies - Third Party P,30163055,DIMENSIONS UK, 224.40 ,25/04/2017
Delivery Units,Adults and Communities,Other Agencies - Third Party P,30163056,DIMENSIONS UK, 149.60 ,25/04/2017
Delivery Units,Adults and Communities,Other Agencies - Third Party P,30163057,DIMENSIONS UK, 149.60 ,25/04/2017
Delivery Units,Adults and Communities,Other Agencies - Third Party P,30163058,DIMENSIONS UK, 74.80 ,25/04/2017
Delivery Units,Adults and Communities,Other Agencies - Third Party P,30163059,DIMENSIONS UK, 74.80 ,25/04/2017
Delivery Units,Adults and Communities,Other Agencies - Third Party P,30163060,DIMENSIONS UK, 74.80 ,25/04/2017
Delivery Units,Adults and Communities,Other Agencies - Third Party P,30163061,DIMENSIONS UK, 149.60 ,25/04/2017
Delivery Units,Adults and Communities,Other Agencies - Third Party P,30163062,DIMENSIONS UK, 149.60 ,25/04/2017
Delivery Units,Adults and Communities,Other Agencies - Third Party P,30163063,DIMENSIONS UK, 74.80 ,25/04/2017
Delivery Units,Adults and Communities,Other Agencies - Third Party P,30163064,DIMENSIONS UK, 149.60 ,25/04/2017
Delivery Units,Adults and Communities,Other Agencies - Third Party P,30163065,DIMENSIONS UK, 74.80 ,25/04/2017
Delivery Units,Adults and Communities,Other Agencies - Third Party P,30163066,DIMENSIONS UK, 74.80 ,25/04/2017
Delivery Units,Adults and Communities,Other Agencies - Third Party P,30163067,DIMENSIONS UK, 523.60 ,25/04/2017
Delivery Units,Adults and Communities,Other Agencies - Third Party P,30163068,DIMENSIONS UK, 299.20 ,25/04/2017
Delivery Units,Adults and Communities,Other Agencies - Third Party P,30163069,DIMENSIONS UK, 224.40 ,25/04/2017
Delivery Units,Adults and Communities,Other Agencies - Third Party P,30163070,DIMENSIONS UK, 299.20 ,25/04/2017
Delivery Units,Adults and Communities,Other Agencies - Third Party P,30163071,DIMENSIONS UK, 897.60 ,25/04/2017
Delivery Units,Adults and Communities,Other Agencies - Third Party P,30163072,DIMENSIONS UK, 448.80 ,25/04/2017
Delivery Units,Adults and Communities,Other Agencies - Third Party P,30163073,DIMENSIONS UK, 149.60 ,25/04/2017
Delivery Units,Adults and Communities,Other Agencies - Third Party P,30163074,DIMENSIONS UK, 112.20 ,25/04/2017
Delivery Units,Adults and Communities,Other Agencies - Third Party P,30163075,DIMENSIONS UK, 149.60 ,25/04/2017
Delivery Units,Adults and Communities,Other Agencies - Third Party P,30163076,DIMENSIONS UK, 149.60 ,25/04/2017
Delivery Units,Adults and Communities,Other Agencies - Third Party P,30163077,DIMENSIONS UK, 149.60 ,25/04/2017
Delivery Units,Adults and Communities,Other Agencies - Third Party P,30163078,DIMENSIONS UK, 448.80 ,25/04/2017
Delivery Units,Adults and Communities,Other Agencies - Third Party P,30163079,DIMENSIONS UK, 149.60 ,25/04/2017
Delivery Units,Adults and Communities,Other Agencies - Third Party P,30163081,DIMENSIONS UK, 149.60 ,25/04/2017
Delivery Units,Adults and Communities,Other Agencies - Third Party P,30163082,DIMENSIONS UK, 374.00 ,25/04/2017
Delivery Units,Adults and Communities,Other Agencies - Third Party P,30163083,DIMENSIONS UK, 149.60 ,25/04/2017
Delivery Units,Adults and Communities,Other Agencies - Third Party P,30163084,DIMENSIONS UK," 1,122.00 ",25/04/2017
Delivery Units,Adults and Communities,Other Agencies - Third Party P,30163085,DIMENSIONS UK," 1,570.80 ",25/04/2017
Delivery Units,Adults and Communities,Other Agencies - Third Party P,30163086,DIMENSIONS UK, 224.40 ,25/04/2017
Delivery Units,Adults and Communities,Other Agencies - Third Party P,30163087,DIMENSIONS UK, 74.80 ,25/04/2017
Delivery Units,Adults and Communities,Other Agencies - Third Party P,30163089,DIMENSIONS UK, 607.52 ,25/04/2017
Delivery Units,Adults and Communities,Other Agencies - Third Party P,30163091,DIMENSIONS UK, 309.96 ,25/04/2017
Delivery Units,Adults and Communities,Other Agencies - Third Party P,30163246,DIMENSIONS UK," 1,649.40 ",27/04/2017
Delivery Units,Adults and Communities,Other Agencies - Third Party P,30163248,DIMENSIONS UK, 532.00 ,27/04/2017
Delivery Units,Adults and Communities,Other Agencies - Third Party P,30163255,DIMENSIONS UK, 228.00 ,27/04/2017
Delivery Units,Adults and Communities,Other Agencies - Third Party P,30163258,DIMENSIONS UK, 385.25 ,27/04/2017
Delivery Units,Adults and Communities,Other Agencies - Third Party P,30163260,DIMENSIONS UK," 1,476.20 ",27/04/2017
Delivery Units,Adults and Communities,Other Agencies - Third Party P,30163261,DIMENSIONS UK," 1,101.46 ",27/04/2017
Delivery Units,Adults and Communities,Other Agencies - Third Party P,30163262,DIMENSIONS UK," 1,101.46 ",27/04/2017
Delivery Units,Adults and Communities,Other Agencies - Third Party P,30161902,DOWNLANDS CARE LTD, 134.14 ,11/04/2017
Delivery Units,Adults and Communities,Other Agencies - Third Party P,30163295,EAST SUSSEX COUNTY COUNCIL," 1,099.80 ",27/04/2017
Delivery Units,Adults and Communities,Other Agencies - Third Party P,30163296,EAST SUSSEX COUNTY COUNCIL, 672.10 ,27/04/2017
Delivery Units,Adults and Communities,Other Agencies - Third Party P,30163307,ELIZABETH HOUSE, 157.99 ,27/04/2017
Delivery Units,Adults and Communities,Other Agencies - Third Party P,30163308,ELIZABETH HOUSE," 2,448.78 ",27/04/2017
Delivery Units,Adults and Communities,Other Agencies - Third Party P,30163309,ELIZABETH HOUSE," 2,211.80 ",27/04/2017
Delivery Units,Adults and Communities,Other Agencies - Third Party P,30162001,ELM PARK LODGE," 18,000.00 ",11/04/2017
Delivery Units,Adults and Communities,Other Agencies - Third Party P,30162561,ELM PARK LODGE," 7,382.14 ",19/04/2017
Delivery Units,Adults and Communities,Other Agencies - Third Party P,30163029,ELM PARK LODGE," 16,125.00 ",25/04/2017
Delivery Units,Adults and Communities,Other Agencies - Third Party P,30162887,ENABLE U SENSORY SUPPORT LTD, 240.00 ,24/04/2017
Delivery Units,Adults and Communities,Other Agencies - Third Party P,30162888,ENABLE U SENSORY SUPPORT LTD, 240.00 ,24/04/2017
Delivery Units,Adults and Communities,Other Agencies - Third Party P,30162889,ENABLE U SENSORY SUPPORT LTD, 240.00 ,24/04/2017
Delivery Units,Adults and Communities,Other Agencies - Third Party P,30161944,FERNBANK NURSING HOME.," 2,397.54 ",11/04/2017
Delivery Units,Adults and Communities,Other Agencies - Third Party P,30161945,FERNBANK NURSING HOME.," 2,397.54 ",11/04/2017
Delivery Units,Adults and Communities,Other Agencies - Third Party P,30162527,FLAGSWAN TWO LTD," 2,546.43 ",19/04/2017
Delivery Units,Adults and Communities,Other Agencies - Third Party P,30162964,FLEXSERVE RESOURCE LTD, 734.30 ,25/04/2017
Delivery Units,Adults and Communities,Other Agencies - Third Party P,30162965,FLEXSERVE RESOURCE LTD, 35.85 ,25/04/2017
Delivery Units,Adults and Communities,Other Agencies - Third Party P,30162966,FLEXSERVE RESOURCE LTD, 376.60 ,25/04/2017
Delivery Units,Adults and Communities,Other Agencies - Third Party P,30162967,FLEXSERVE RESOURCE LTD, 83.65 ,25/04/2017
Delivery Units,Adults and Communities,Other Agencies - Third Party P,30163284,FLEXSERVE RESOURCE LTD, 143.40 ,27/04/2017
Delivery Units,Adults and Communities,Other Agencies - Third Party P,30163285,FLEXSERVE RESOURCE LTD, 334.60 ,27/04/2017
Delivery Units,Adults and Communities,Other Agencies - Third Party P,30163286,FLEXSERVE RESOURCE LTD," 2,937.20 ",27/04/2017
Delivery Units,Adults and Communities,Other Agencies - Third Party P,30163287,FLEXSERVE RESOURCE LTD," 2,820.70 ",27/04/2017
Delivery Units,Adults and Communities,Other Agencies - Third Party P,30163288,FLEXSERVE RESOURCE LTD," 1,506.40 ",27/04/2017
Delivery Units,Adults and Communities,Other Agencies - Third Party P,30163289,FLEXSERVE RESOURCE LTD, 718.90 ,27/04/2017
Delivery Units,Adults and Communities,Other Agencies - Third Party P,30152660,FOCUS CARE LINK LTD, 379.26 ,26/04/2017
Delivery Units,Adults and Communities,Other Agencies - Third Party P,30163030,FOUR SEASONS HEALTH CARE," 2,543.64 ",25/04/2017
Delivery Units,Adults and Communities,Other Agencies - Third Party P,30163031,FOUR SEASONS HEALTH CARE," 2,500.72 ",25/04/2017
Delivery Units,Adults and Communities,Other Agencies - Third Party P,30163032,FOUR SEASONS HEALTH CARE," 2,123.48 ",25/04/2017
Delivery Units,Adults and Communities,Other Agencies - Third Party P,30163033,FOUR SEASONS HEALTH CARE," 2,500.72 ",25/04/2017
Delivery Units,Adults and Communities,Other Agencies - Third Party P,30163034,FOUR SEASONS HEALTH CARE," 2,246.44 ",25/04/2017
Delivery Units,Adults and Communities,Other Agencies - Third Party P,30163035,FOUR SEASONS HEALTH CARE," 2,246.44 ",25/04/2017
Delivery Units,Adults and Communities,Other Agencies - Third Party P,30163036,FOUR SEASONS HEALTH CARE," 2,246.44 ",25/04/2017
Delivery Units,Adults and Communities,Other Agencies - Third Party P,30163037,FOUR SEASONS HEALTH CARE," 2,246.44 ",25/04/2017
Delivery Units,Adults and Communities,Other Agencies - Third Party P,30163038,FOUR SEASONS HEALTH CARE," 2,246.44 ",25/04/2017
Delivery Units,Adults and Communities,Other Agencies - Third Party P,30163039,FOUR SEASONS HEALTH CARE," 2,246.44 ",25/04/2017
Delivery Units,Adults and Communities,Other Agencies - Third Party P,30161012,FREEWAYS TRUST LIMITED, 829.80 ,07/04/2017
Delivery Units,Adults and Communities,Other Agencies - Third Party P,30162054,FREEWAYS TRUST LIMITED, 592.71 ,27/04/2017
Delivery Units,Adults and Communities,Other Agencies - Third Party P,30161976,FREMANTLE TRUST," 3,485.71 ",11/04/2017
Delivery Units,Adults and Communities,Other Agencies - Third Party P,30161977,FREMANTLE TRUST, 396.72 ,11/04/2017
Delivery Units,Adults and Communities,Other Agencies - Third Party P,30162012,FREMANTLE TRUST," 1,474.36 ",11/04/2017
Delivery Units,Adults and Communities,Other Agencies - Third Party P,30162344,FREMANTLE TRUST," 2,760.00 ",13/04/2017
Delivery Units,Adults and Communities,Other Agencies - Third Party P,30162345,FREMANTLE TRUST," 3,220.00 ",13/04/2017
Delivery Units,Adults and Communities,Other Agencies - Third Party P,30161963,FRIERN RESIDENTIAL CARE HOME," 2,103.31 ",11/04/2017
Delivery Units,Adults and Communities,Other Agencies - Third Party P,30161970,FRIERN RESIDENTIAL CARE HOME," 3,985.71 ",11/04/2017
Delivery Units,Adults and Communities,Other Agencies - Third Party P,30162061,FRIERN RESIDENTIAL CARE HOME," 2,878.57 ",11/04/2017
Delivery Units,Adults and Communities,Other Agencies - Third Party P,30163297,FRIERN RESIDENTIAL CARE HOME, 135.70 ,27/04/2017
Delivery Units,Adults and Communities,Other Agencies - Third Party P,30163301,FRIERN RESIDENTIAL CARE HOME, 257.14 ,27/04/2017
Delivery Units,Adults and Communities,Other Agencies - Third Party P,30163316,FRIERN RESIDENTIAL CARE HOME, 185.71 ,27/04/2017
Delivery Units,Adults and Communities,Other Agencies - Third Party P,30161975,GLENHOLME PSYCHIATRIC AFTER CARE HO," 4,097.05 ",11/04/2017
Delivery Units,Adults and Communities,Other Agencies - Third Party P,30161980,GLENHOLME PSYCHIATRIC AFTER CARE HO," 4,262.94 ",11/04/2017
Delivery Units,Adults and Communities,Other Agencies - Third Party P,30162010,GLENHOLME PSYCHIATRIC AFTER CARE HO," 3,986.16 ",11/04/2017
Delivery Units,Adults and Communities,Other Agencies - Third Party P,30162014,GLENHOLME PSYCHIATRIC AFTER CARE HO," 1,279.28 ",11/04/2017
Delivery Units,Adults and Communities,Other Agencies - Third Party P,30162015,GLENHOLME PSYCHIATRIC AFTER CARE HO," 4,406.43 ",11/04/2017
Delivery Units,Adults and Communities,Other Agencies - Third Party P,30162016,GLENHOLME PSYCHIATRIC AFTER CARE HO," 4,264.29 ",11/04/2017
Delivery Units,Adults and Communities,Other Agencies - Third Party P,30162017,GLENHOLME PSYCHIATRIC AFTER CARE HO," 4,406.43 ",11/04/2017
Delivery Units,Adults and Communities,Other Agencies - Third Party P,30162018,GLENHOLME PSYCHIATRIC AFTER CARE HO," 4,406.43 ",11/04/2017
Delivery Units,Adults and Communities,Other Agencies - Third Party P,30162019,GLENHOLME PSYCHIATRIC AFTER CARE HO," 3,980.00 ",11/04/2017
Delivery Units,Adults and Communities,Other Agencies - Third Party P,30162020,GLENHOLME PSYCHIATRIC AFTER CARE HO," 4,406.43 ",11/04/2017
Delivery Units,Adults and Communities,Other Agencies - Third Party P,30163016,GLENHOLME PSYCHIATRIC AFTER CARE HO, 264.33 ,27/04/2017
Delivery Units,Adults and Communities,Other Agencies - Third Party P,30163019,GLENHOLME PSYCHIATRIC AFTER CARE HO, 275.03 ,27/04/2017
Delivery Units,Adults and Communities,Other Agencies - Third Party P,30163048,GLENHOLME PSYCHIATRIC AFTER CARE HO, 257.17 ,27/04/2017
Delivery Units,Adults and Communities,Other Agencies - Third Party P,30163050,GLENHOLME PSYCHIATRIC AFTER CARE HO, 284.29 ,27/04/2017
Delivery Units,Adults and Communities,Other Agencies - Third Party P,30158252,GOLDSMITH PERSONNEL LTD, 196.00 ,03/04/2017
Delivery Units,Adults and Communities,Other Agencies - Third Party P,30160524,GOLDSMITH PERSONNEL LTD, 284.00 ,13/04/2017
Delivery Units,Adults and Communities,Other Agencies - Third Party P,30162207,GOLDSMITH PERSONNEL LTD, 196.00 ,24/04/2017
Delivery Units,Adults and Communities,Other Agencies - Third Party P,30162208,GOLDSMITH PERSONNEL LTD, 300.00 ,24/04/2017
Delivery Units,Adults and Communities,Other Agencies - Third Party P,30162351,HALLMARK CARE (KINGS LYNN) LTD," 2,890.31 ",13/04/2017
Delivery Units,Adults and Communities,Other Agencies - Third Party P,30162352,HALLMARK CARE (KINGS LYNN) LTD, 186.47 ,13/04/2017
Delivery Units,Adults and Communities,Other Agencies - Third Party P,30162414,HEADWAY EAST LONDON, 376.08 ,27/04/2017
Delivery Units,Adults and Communities,Other Agencies - Third Party P,30162415,HEADWAY EAST LONDON, 634.84 ,27/04/2017
Delivery Units,Adults and Communities,Other Agencies - Third Party P,30162416,HEADWAY EAST LONDON, 634.84 ,27/04/2017
Delivery Units,Adults and Communities,Other Agencies - Third Party P,30159936,HEATHCOTES SOUTHERN LTD," 10,606.34 ",12/04/2017
Delivery Units,Adults and Communities,Other Agencies - Third Party P,30161899,HILLGREEN CARE LTD," 7,093.24 ",11/04/2017
Delivery Units,Adults and Communities,Other Agencies - Third Party P,30150237,HILLSIDE CLUBHOUSE LTD, 280.00 ,13/04/2017
Delivery Units,Adults and Communities,Other Agencies - Third Party P,30162521,HILLSIDE CLUBHOUSE LTD, 455.00 ,19/04/2017
Delivery Units,Adults and Communities,Other Agencies - Third Party P,80009702,HILLSIDE CLUBHOUSE LTD, 420.00 ,13/04/2017
Delivery Units,Adults and Communities,Other Agencies - Third Party P,30162471,HILTON LODGE LTD.," 1,500.00 ",19/04/2017
Delivery Units,Adults and Communities,Other Agencies - Third Party P,30162516,HILTON LODGE LTD.," 1,328.58 ",19/04/2017
Delivery Units,Adults and Communities,Other Agencies - Third Party P,30162517,HILTON LODGE LTD.," 1,328.57 ",19/04/2017
Delivery Units,Adults and Communities,Other Agencies - Third Party P,30162525,HILTON LODGE LTD.," 1,184.90 ",19/04/2017
Delivery Units,Adults and Communities,Other Agencies - Third Party P,30162562,HILTON LODGE LTD.," 1,184.89 ",19/04/2017
Delivery Units,Adults and Communities,Other Agencies - Third Party P,30162563,HILTON LODGE LTD.," 1,184.89 ",19/04/2017
Delivery Units,Adults and Communities,Other Agencies - Third Party P,30162948,HOFFMAN FOUNDATION FOR AUTISM," 3,556.80 ",25/04/2017
Delivery Units,Adults and Communities,Other Agencies - Third Party P,30162774,HOLLY HOUSE RESIDENTIAL HOME," 1,950.00 ",24/04/2017
Delivery Units,Adults and Communities,Other Agencies - Third Party P,30162866,INDEPENDENCE HOMES LIMITED," 2,900.00 ",24/04/2017
Delivery Units,Adults and Communities,Other Agencies - Third Party P,30162271,JANITH HOMES LTD," 2,962.05 ",13/04/2017
Delivery Units,Adults and Communities,Other Agencies - Third Party P,30161949,JEMINI RESPONSE," 9,100.00 ",11/04/2017
Delivery Units,Adults and Communities,Other Agencies - Third Party P,30162318,JEWISH CARE," 1,295.25 ",13/04/2017
Delivery Units,Adults and Communities,Other Agencies - Third Party P,30162319,JEWISH CARE, 381.04 ,13/04/2017
Delivery Units,Adults and Communities,Other Agencies - Third Party P,30162320,JEWISH CARE, 914.29 ,13/04/2017
Delivery Units,Adults and Communities,Other Agencies - Third Party P,30162325,JEWISH CARE, 588.77 ,13/04/2017
Delivery Units,Adults and Communities,Other Agencies - Third Party P,30163294,JEWISH CARE," 3,400.00 ",27/04/2017
Delivery Units,Adults and Communities,Other Agencies - Third Party P,30162409,JIGSAW CREATIVE CARE LIMITED," 3,021.76 ",19/04/2017
Delivery Units,Adults and Communities,Other Agencies - Third Party P,30162410,JIGSAW CREATIVE CARE LIMITED," 1,412.00 ",19/04/2017
Delivery Units,Adults and Communities,Other Agencies - Third Party P,30162411,JIGSAW CREATIVE CARE LIMITED," 2,783.00 ",19/04/2017
Delivery Units,Adults and Communities,Other Agencies - Third Party P,30162413,JIGSAW CREATIVE CARE LIMITED," 5,859.00 ",19/04/2017
Delivery Units,Adults and Communities,Other Agencies - Third Party P,30161910,KARE PLUS BARNET, 237.30 ,11/04/2017
Delivery Units,Adults and Communities,Other Agencies - Third Party P,30161911,KARE PLUS BARNET, 97.29 ,11/04/2017
Delivery Units,Adults and Communities,Other Agencies - Third Party P,30161913,KARE PLUS BARNET, 323.58 ,11/04/2017
Delivery Units,Adults and Communities,Other Agencies - Third Party P,30161914,KARE PLUS BARNET, 104.24 ,11/04/2017
Delivery Units,Adults and Communities,Other Agencies - Third Party P,30161915,KARE PLUS BARNET, 78.34 ,11/04/2017
Delivery Units,Adults and Communities,Other Agencies - Third Party P,30161916,KARE PLUS BARNET, 257.03 ,11/04/2017
Delivery Units,Adults and Communities,Other Agencies - Third Party P,30161917,KARE PLUS BARNET, 12.24 ,11/04/2017
Delivery Units,Adults and Communities,Other Agencies - Third Party P,30161918,KARE PLUS BARNET, 297.07 ,11/04/2017
Delivery Units,Adults and Communities,Other Agencies - Third Party P,30161919,KARE PLUS BARNET, 152.00 ,11/04/2017
Delivery Units,Adults and Communities,Other Agencies - Third Party P,30161920,KARE PLUS BARNET, 88.36 ,11/04/2017
Delivery Units,Adults and Communities,Other Agencies - Third Party P,30161921,KARE PLUS BARNET, 661.17 ,11/04/2017
Delivery Units,Adults and Communities,Other Agencies - Third Party P,30161922,KARE PLUS BARNET, 183.77 ,11/04/2017
Delivery Units,Adults and Communities,Other Agencies - Third Party P,30161923,KARE PLUS BARNET, 86.23 ,11/04/2017
Delivery Units,Adults and Communities,Other Agencies - Third Party P,30161924,KARE PLUS BARNET, 319.60 ,11/04/2017
Delivery Units,Adults and Communities,Other Agencies - Third Party P,30161925,KARE PLUS BARNET, 161.79 ,11/04/2017
Delivery Units,Adults and Communities,Other Agencies - Third Party P,30161926,KARE PLUS BARNET, 146.86 ,11/04/2017
Delivery Units,Adults and Communities,Other Agencies - Third Party P,30161927,KARE PLUS BARNET, 58.90 ,11/04/2017
Delivery Units,Adults and Communities,Other Agencies - Third Party P,30161928,KARE PLUS BARNET, 150.44 ,11/04/2017
Delivery Units,Adults and Communities,Other Agencies - Third Party P,30161929,KARE PLUS BARNET, 104.24 ,11/04/2017
Delivery Units,Adults and Communities,Other Agencies - Third Party P,30161930,KARE PLUS BARNET, 26.51 ,11/04/2017
Delivery Units,Adults and Communities,Other Agencies - Third Party P,30161931,KARE PLUS BARNET, 27.80 ,11/04/2017
Delivery Units,Adults and Communities,Other Agencies - Third Party P,30161932,KARE PLUS BARNET, 41.24 ,11/04/2017
Delivery Units,Adults and Communities,Other Agencies - Third Party P,30161933,KARE PLUS BARNET, 34.36 ,11/04/2017
Delivery Units,Adults and Communities,Other Agencies - Third Party P,30161934,KARE PLUS BARNET, 51.45 ,11/04/2017
Delivery Units,Adults and Communities,Other Agencies - Third Party P,30161935,KARE PLUS BARNET, 91.44 ,11/04/2017
Delivery Units,Adults and Communities,Other Agencies - Third Party P,30161936,KARE PLUS BARNET, 150.84 ,11/04/2017
Delivery Units,Adults and Communities,Other Agencies - Third Party P,30161937,KARE PLUS BARNET, 73.43 ,11/04/2017
Delivery Units,Adults and Communities,Other Agencies - Third Party P,30161938,KARE PLUS BARNET, 53.02 ,11/04/2017
Delivery Units,Adults and Communities,Other Agencies - Third Party P,30161939,KARE PLUS BARNET, 104.24 ,11/04/2017
Delivery Units,Adults and Communities,Other Agencies - Third Party P,30161940,KARE PLUS BARNET, 104.24 ,11/04/2017
Delivery Units,Adults and Communities,Other Agencies - Third Party P,30161941,KARE PLUS BARNET, 14.73 ,11/04/2017
Delivery Units,Adults and Communities,Other Agencies - Third Party P,30162210,KARE PLUS BARNET, 286.61 ,13/04/2017
Delivery Units,Adults and Communities,Other Agencies - Third Party P,30162212,KARE PLUS BARNET, 122.58 ,13/04/2017
Delivery Units,Adults and Communities,Other Agencies - Third Party P,30162213,KARE PLUS BARNET, 112.64 ,13/04/2017
Delivery Units,Adults and Communities,Other Agencies - Third Party P,30162214,KARE PLUS BARNET, 706.88 ,13/04/2017
Delivery Units,Adults and Communities,Other Agencies - Third Party P,30162215,KARE PLUS BARNET, 247.46 ,13/04/2017
Delivery Units,Adults and Communities,Other Agencies - Third Party P,30162216,KARE PLUS BARNET, 161.79 ,13/04/2017
Delivery Units,Adults and Communities,Other Agencies - Third Party P,30162217,KARE PLUS BARNET, 198.04 ,13/04/2017
Delivery Units,Adults and Communities,Other Agencies - Third Party P,30162218,KARE PLUS BARNET, 250.88 ,13/04/2017
Delivery Units,Adults and Communities,Other Agencies - Third Party P,30162219,KARE PLUS BARNET, 177.67 ,13/04/2017
Delivery Units,Adults and Communities,Other Agencies - Third Party P,30162220,KARE PLUS BARNET, 104.24 ,13/04/2017
Delivery Units,Adults and Communities,Other Agencies - Third Party P,30162221,KARE PLUS BARNET, 161.79 ,13/04/2017
Delivery Units,Adults and Communities,Other Agencies - Third Party P,30162222,KARE PLUS BARNET, 146.86 ,13/04/2017
Delivery Units,Adults and Communities,Other Agencies - Third Party P,30162223,KARE PLUS BARNET, 235.22 ,13/04/2017
Delivery Units,Adults and Communities,Other Agencies - Third Party P,30162224,KARE PLUS BARNET, 55.60 ,13/04/2017
Delivery Units,Adults and Communities,Other Agencies - Third Party P,30162225,KARE PLUS BARNET, 235.22 ,13/04/2017
Delivery Units,Adults and Communities,Other Agencies - Third Party P,30162226,KARE PLUS BARNET, 58.90 ,13/04/2017
Delivery Units,Adults and Communities,Other Agencies - Third Party P,30162227,KARE PLUS BARNET, 139.66 ,13/04/2017
Delivery Units,Adults and Communities,Other Agencies - Third Party P,30162228,KARE PLUS BARNET, 104.24 ,13/04/2017
Delivery Units,Adults and Communities,Other Agencies - Third Party P,30162229,KARE PLUS BARNET, 53.02 ,13/04/2017
Delivery Units,Adults and Communities,Other Agencies - Third Party P,30162230,KARE PLUS BARNET, 609.90 ,13/04/2017
Delivery Units,Adults and Communities,Other Agencies - Third Party P,30162231,KARE PLUS BARNET, 235.22 ,13/04/2017
Delivery Units,Adults and Communities,Other Agencies - Third Party P,30162296,KARE PLUS BARNET, 145.53 ,13/04/2017
Delivery Units,Adults and Communities,Other Agencies - Third Party P,30162300,KARE PLUS BARNET, 129.60 ,13/04/2017
Delivery Units,Adults and Communities,Other Agencies - Third Party P,30162301,KARE PLUS BARNET, 61.85 ,13/04/2017
Delivery Units,Adults and Communities,Other Agencies - Third Party P,30162303,KARE PLUS BARNET, 103.09 ,13/04/2017
Delivery Units,Adults and Communities,Other Agencies - Third Party P,30162304,KARE PLUS BARNET, 132.53 ,13/04/2017
Delivery Units,Adults and Communities,Other Agencies - Third Party P,30162305,KARE PLUS BARNET, 155.11 ,13/04/2017
Delivery Units,Adults and Communities,Other Agencies - Third Party P,30162306,KARE PLUS BARNET, 14.73 ,13/04/2017
Delivery Units,Adults and Communities,Other Agencies - Third Party P,30162307,KARE PLUS BARNET, 161.79 ,13/04/2017
Delivery Units,Adults and Communities,Other Agencies - Third Party P,30162308,KARE PLUS BARNET, 329.43 ,13/04/2017
Delivery Units,Adults and Communities,Other Agencies - Third Party P,30162309,KARE PLUS BARNET, 65.17 ,13/04/2017
Delivery Units,Adults and Communities,Other Agencies - Third Party P,30162310,KARE PLUS BARNET, 356.57 ,13/04/2017
Delivery Units,Adults and Communities,Other Agencies - Third Party P,30162311,KARE PLUS BARNET, 96.62 ,13/04/2017
Delivery Units,Adults and Communities,Other Agencies - Third Party P,30162312,KARE PLUS BARNET, 323.58 ,13/04/2017
Delivery Units,Adults and Communities,Other Agencies - Third Party P,30162313,KARE PLUS BARNET, 161.79 ,13/04/2017
Delivery Units,Adults and Communities,Other Agencies - Third Party P,30162315,KARE PLUS BARNET, 180.36 ,13/04/2017
Delivery Units,Adults and Communities,Other Agencies - Third Party P,30162316,KARE PLUS BARNET, 88.36 ,13/04/2017
Delivery Units,Adults and Communities,Other Agencies - Third Party P,30162317,KARE PLUS BARNET, 88.36 ,13/04/2017
Delivery Units,Adults and Communities,Other Agencies - Third Party P,30162368,KARE PLUS BARNET, 131.41 ,13/04/2017
Delivery Units,Adults and Communities,Other Agencies - Third Party P,30162439,KARE PLUS BARNET, 164.75 ,19/04/2017
Delivery Units,Adults and Communities,Other Agencies - Third Party P,30162528,KILCULLEN HOMES (UK) LLP," 1,569.48 ",19/04/2017
Delivery Units,Adults and Communities,Other Agencies - Third Party P,30162446,KISHARON DAY SCHOOL," 1,464.03 ",19/04/2017
Delivery Units,Adults and Communities,Other Agencies - Third Party P,30162448,KISHARON DAY SCHOOL," 2,144.10 ",19/04/2017
Delivery Units,Adults and Communities,Other Agencies - Third Party P,30162449,KISHARON DAY SCHOOL," 2,284.24 ",19/04/2017
Delivery Units,Adults and Communities,Other Agencies - Third Party P,30162450,KISHARON DAY SCHOOL," 1,373.49 ",19/04/2017
Delivery Units,Adults and Communities,Other Agencies - Third Party P,30162451,KISHARON DAY SCHOOL, 397.11 ,19/04/2017
Delivery Units,Adults and Communities,Other Agencies - Third Party P,30162452,KISHARON DAY SCHOOL," 1,679.87 ",19/04/2017
Delivery Units,Adults and Communities,Other Agencies - Third Party P,30162453,KISHARON DAY SCHOOL," 1,340.18 ",19/04/2017
Delivery Units,Adults and Communities,Other Agencies - Third Party P,30162454,KISHARON DAY SCHOOL," 1,241.16 ",19/04/2017
Delivery Units,Adults and Communities,Other Agencies - Third Party P,30162455,KISHARON DAY SCHOOL," 1,369.23 ",19/04/2017
Delivery Units,Adults and Communities,Other Agencies - Third Party P,30162456,KISHARON DAY SCHOOL," 1,373.68 ",19/04/2017
Delivery Units,Adults and Communities,Other Agencies - Third Party P,30162457,KISHARON DAY SCHOOL," 1,595.00 ",19/04/2017
Delivery Units,Adults and Communities,Other Agencies - Third Party P,30162459,KISHARON DAY SCHOOL," 1,275.96 ",19/04/2017
Delivery Units,Adults and Communities,Other Agencies - Third Party P,30162464,KISHARON DAY SCHOOL," 1,914.00 ",19/04/2017
Delivery Units,Adults and Communities,Other Agencies - Third Party P,30162780,KISHARON DAY SCHOOL, 733.72 ,24/04/2017
Delivery Units,Adults and Communities,Other Agencies - Third Party P,30162850,LANGDON COMMUNITY LTD, 482.04 ,24/04/2017
Delivery Units,Adults and Communities,Other Agencies - Third Party P,30163281,LANGDON COMMUNITY LTD," 7,651.28 ",27/04/2017
Delivery Units,Adults and Communities,Other Agencies - Third Party P,30163282,LANGDON COMMUNITY LTD, 638.40 ,27/04/2017
Delivery Units,Adults and Communities,Other Agencies - Third Party P,30163013,LEO BAECK HOUSING ASSOC. LTD, 157.99 ,25/04/2017
Delivery Units,Adults and Communities,Other Agencies - Third Party P,30163014,LEO BAECK HOUSING ASSOC. LTD, 145.13 ,25/04/2017
Delivery Units,Adults and Communities,Other Agencies - Third Party P,30163027,LEO BAECK HOUSING ASSOC. LTD, 145.13 ,25/04/2017
Delivery Units,Adults and Communities,Other Agencies - Third Party P,30163028,LEO BAECK HOUSING ASSOC. LTD, 157.99 ,25/04/2017
Delivery Units,Adults and Communities,Other Agencies - Third Party P,30163053,LEO BAECK HOUSING ASSOC. LTD, 150.14 ,25/04/2017
Delivery Units,Adults and Communities,Other Agencies - Third Party P,30163090,LEO BAECK HOUSING ASSOC. LTD, 152.38 ,25/04/2017
Delivery Units,Adults and Communities,Other Agencies - Third Party P,30163094,LEO BAECK HOUSING ASSOC. LTD, 145.13 ,25/04/2017
Delivery Units,Adults and Communities,Other Agencies - Third Party P,30163095,LEO BAECK HOUSING ASSOC. LTD, 152.38 ,25/04/2017
Delivery Units,Adults and Communities,Other Agencies - Third Party P,30162537,LEWIS.W.HAMMERSON MEMORIAL HOME, 149.54 ,19/04/2017
Delivery Units,Adults and Communities,Other Agencies - Third Party P,30162538,LEWIS.W.HAMMERSON MEMORIAL HOME, 149.54 ,19/04/2017
Delivery Units,Adults and Communities,Other Agencies - Third Party P,80009851,LEWIS.W.HAMMERSON MEMORIAL HOME," 2,161.51 ",27/04/2017
Delivery Units,Adults and Communities,Other Agencies - Third Party P,30162292,LIFESTYLE CARE PLC," 2,094.52 ",13/04/2017
Delivery Units,Adults and Communities,Other Agencies - Third Party P,30162293,LIFESTYLE CARE PLC," 2,398.56 ",13/04/2017
Delivery Units,Adults and Communities,Other Agencies - Third Party P,30162294,LIFESTYLE CARE PLC," 4,026.15 ",13/04/2017
Delivery Units,Adults and Communities,Other Agencies - Third Party P,30162473,LIFEWAYS," 3,145.24 ",19/04/2017
Delivery Units,Adults and Communities,Other Agencies - Third Party P,30162474,LIFEWAYS," 3,145.24 ",19/04/2017
Delivery Units,Adults and Communities,Other Agencies - Third Party P,30162477,LIFEWAYS," 5,037.40 ",19/04/2017
Delivery Units,Adults and Communities,Other Agencies - Third Party P,30162478,LIFEWAYS," 5,037.40 ",19/04/2017
Delivery Units,Adults and Communities,Other Agencies - Third Party P,30162479,LIFEWAYS," 5,943.00 ",19/04/2017
Delivery Units,Adults and Communities,Other Agencies - Third Party P,30162480,LIFEWAYS," 5,943.00 ",19/04/2017
Delivery Units,Adults and Communities,Other Agencies - Third Party P,30162491,LIFEWAYS," 3,656.00 ",19/04/2017
Delivery Units,Adults and Communities,Other Agencies - Third Party P,30162492,LIFEWAYS," 3,656.00 ",19/04/2017
Delivery Units,Adults and Communities,Other Agencies - Third Party P,30162493,LIFEWAYS," 5,766.44 ",19/04/2017
Delivery Units,Adults and Communities,Other Agencies - Third Party P,30162494,LIFEWAYS," 5,766.44 ",19/04/2017
Delivery Units,Adults and Communities,Other Agencies - Third Party P,30162495,LIFEWAYS," 2,377.20 ",19/04/2017
Delivery Units,Adults and Communities,Other Agencies - Third Party P,30162496,LIFEWAYS," 2,377.20 ",19/04/2017
Delivery Units,Adults and Communities,Other Agencies - Third Party P,30162497,LIFEWAYS," 4,828.24 ",19/04/2017
Delivery Units,Adults and Communities,Other Agencies - Third Party P,30162505,LIFEWAYS," 5,275.20 ",19/04/2017
Delivery Units,Adults and Communities,Other Agencies - Third Party P,30162506,LIFEWAYS," 5,275.20 ",19/04/2017
Delivery Units,Adults and Communities,Other Agencies - Third Party P,30162507,LIFEWAYS," 2,622.64 ",19/04/2017
Delivery Units,Adults and Communities,Other Agencies - Third Party P,30162508,LIFEWAYS," 2,993.64 ",19/04/2017
Delivery Units,Adults and Communities,Other Agencies - Third Party P,30162882,LIFEWAYS," 6,930.00 ",24/04/2017
Delivery Units,Adults and Communities,Other Agencies - Third Party P,30162883,LIFEWAYS," 6,930.00 ",24/04/2017
Delivery Units,Adults and Communities,Other Agencies - Third Party P,80009789,LIFEWAYS," 77,412.50 ",27/04/2017
Delivery Units,Adults and Communities,Other Agencies - Third Party P,30162827,MACINTYRE CARE, 623.30 ,24/04/2017
Delivery Units,Adults and Communities,Other Agencies - Third Party P,30162052,MADELAYNE COURT," 2,216.41 ",11/04/2017
Delivery Units,Adults and Communities,Other Agencies - Third Party P,30162373,MAISON MOTI LTD, 343.40 ,13/04/2017
Delivery Units,Adults and Communities,Other Agencies - Third Party P,30162331,MEERA NURSING HOME LIMITED, 154.69 ,13/04/2017
Delivery Units,Adults and Communities,Other Agencies - Third Party P,30162346,MEERA NURSING HOME LIMITED, 154.69 ,13/04/2017
Delivery Units,Adults and Communities,Other Agencies - Third Party P,30162353,MEERA NURSING HOME LIMITED, 154.69 ,13/04/2017
Delivery Units,Adults and Communities,Other Agencies - Third Party P,30162366,MEERA NURSING HOME LIMITED, 183.93 ,13/04/2017
Delivery Units,Adults and Communities,Other Agencies - Third Party P,30162374,MEERA NURSING HOME LIMITED, 154.69 ,13/04/2017
Delivery Units,Adults and Communities,Other Agencies - Third Party P,30162375,MEERA NURSING HOME LIMITED, 154.69 ,13/04/2017
Delivery Units,Adults and Communities,Other Agencies - Third Party P,30162376,MEERA NURSING HOME LIMITED, 154.69 ,13/04/2017
Delivery Units,Adults and Communities,Other Agencies - Third Party P,30162803,MENTAL HEALTH CARE (UK) LTD, 718.75 ,24/04/2017
Delivery Units,Adults and Communities,Other Agencies - Third Party P,30162515,METHODIST HOMES FOR THE AGED," 2,631.76 ",19/04/2017
Delivery Units,Adults and Communities,Other Agencies - Third Party P,30162523,METHODIST HOMES FOR THE AGED," 2,001.92 ",19/04/2017
Delivery Units,Adults and Communities,Other Agencies - Third Party P,30162529,METHODIST HOMES FOR THE AGED," 2,500.00 ",19/04/2017
Delivery Units,Adults and Communities,Other Agencies - Third Party P,30163024,METHODIST HOMES FOR THE AGED, 93.99 ,27/04/2017
Delivery Units,Adults and Communities,Other Agencies - Third Party P,30163049,METHODIST HOMES FOR THE AGED, 71.49 ,27/04/2017
Delivery Units,Adults and Communities,Other Agencies - Third Party P,30163051,METHODIST HOMES FOR THE AGED, 89.28 ,27/04/2017
Delivery Units,Adults and Communities,Other Agencies - Third Party P,30162297,METRO RADIO CARS, 118.80 ,13/04/2017
Delivery Units,Adults and Communities,Other Agencies - Third Party P,30158807,METROPOLITAN HOUSING TRUST, 288.41 ,06/04/2017
Delivery Units,Adults and Communities,Other Agencies - Third Party P,30161981,MISSION CARE (ELMWOOD NURSING HOME)," 3,300.17 ",11/04/2017
Delivery Units,Adults and Communities,Other Agencies - Third Party P,30163232,MISSION CARE (ELMWOOD NURSING HOME)," 2,767.88 ",27/04/2017
Delivery Units,Adults and Communities,Other Agencies - Third Party P,30162789,MOREWAYS HEALTHCARE," 2,907.00 ",24/04/2017
Delivery Units,Adults and Communities,Other Agencies - Third Party P,30162805,MOREWAYS HEALTHCARE," 1,800.00 ",24/04/2017
Delivery Units,Adults and Communities,Other Agencies - Third Party P,30162367,MURRAYFIELD CARE HOME," 2,211.80 ",13/04/2017
Delivery Units,Adults and Communities,Other Agencies - Third Party P,30157894,N & I HEALTHCARE LTD," 2,211.80 ",04/04/2017
Delivery Units,Adults and Communities,Other Agencies - Third Party P,30162362,N & I HEALTHCARE LTD," 2,445.90 ",20/04/2017
Delivery Units,Adults and Communities,Other Agencies - Third Party P,80009813,NAFAO TREASURER, 200.00 ,25/04/2017
Delivery Units,Adults and Communities,Other Agencies - Third Party P,30163242,NAS SERVICES LTD," 31,532.38 ",27/04/2017
Delivery Units,Adults and Communities,Other Agencies - Third Party P,30162350,NAZARETH HOUSE," 2,031.76 ",13/04/2017
Delivery Units,Adults and Communities,Other Agencies - Third Party P,30162952,NEEM TREE CARE CENTRE, 435.36 ,25/04/2017
Delivery Units,Adults and Communities,Other Agencies - Third Party P,30163202,NEEM TREE CARE CENTRE," 2,438.00 ",27/04/2017
Delivery Units,Adults and Communities,Other Agencies - Third Party P,30163203,NEEM TREE CARE CENTRE," 2,436.00 ",27/04/2017
Delivery Units,Adults and Communities,Other Agencies - Third Party P,30163204,NEEM TREE CARE CENTRE," 2,699.21 ",27/04/2017
Delivery Units,Adults and Communities,Other Agencies - Third Party P,30163205,NEEM TREE CARE CENTRE," 2,697.00 ",27/04/2017
Delivery Units,Adults and Communities,Other Agencies - Third Party P,30161867,NEWCENTURY CARE LTD," 1,798.92 ",11/04/2017
Delivery Units,Adults and Communities,Other Agencies - Third Party P,30162251,NEWCENTURY CARE LTD," 3,764.29 ",13/04/2017
Delivery Units,Adults and Communities,Other Agencies - Third Party P,30162879,NEXT STEP SUPPORT LIMITED," 1,680.00 ",24/04/2017
Delivery Units,Adults and Communities,Other Agencies - Third Party P,30162890,NEXT STEP SUPPORT LIMITED," 3,700.00 ",24/04/2017
Delivery Units,Adults and Communities,Other Agencies - Third Party P,30162891,NEXT STEP SUPPORT LIMITED," 2,461.89 ",24/04/2017
Delivery Units,Adults and Communities,Other Agencies - Third Party P,30162905,NEXT STEP SUPPORT LIMITED," 1,848.20 ",24/04/2017
Delivery Units,Adults and Communities,Other Agencies - Third Party P,30162906,NEXT STEP SUPPORT LIMITED," 2,000.00 ",24/04/2017
Delivery Units,Adults and Communities,Other Agencies - Third Party P,30162770,NIGHTINGALES RESIDENTIAL CARE HOME, 214.59 ,24/04/2017
Delivery Units,Adults and Communities,Other Agencies - Third Party P,30162771,NIGHTINGALES RESIDENTIAL CARE HOME, 214.59 ,24/04/2017
Delivery Units,Adults and Communities,Other Agencies - Third Party P,30162539,NORWOOD RAVENSWOOD SCHOOLS LTD, 113.73 ,19/04/2017
Delivery Units,Adults and Communities,Other Agencies - Third Party P,30162555,NORWOOD RAVENSWOOD SCHOOLS LTD, 395.71 ,19/04/2017
Delivery Units,Adults and Communities,Other Agencies - Third Party P,30162831,NORWOOD RAVENSWOOD SCHOOLS LTD, 547.20 ,24/04/2017
Delivery Units,Adults and Communities,Other Agencies - Third Party P,30162832,NORWOOD RAVENSWOOD SCHOOLS LTD," 3,383.96 ",24/04/2017
Delivery Units,Adults and Communities,Other Agencies - Third Party P,30162833,NORWOOD RAVENSWOOD SCHOOLS LTD," 6,767.92 ",24/04/2017
Delivery Units,Adults and Communities,Other Agencies - Third Party P,30162817,ONE STEP (SUPPORT) LTD," 1,339.80 ",24/04/2017
Delivery Units,Adults and Communities,Other Agencies - Third Party P,30162819,ONE STEP (SUPPORT) LTD," 3,395.80 ",24/04/2017
Delivery Units,Adults and Communities,Other Agencies - Third Party P,30162820,ONE STEP (SUPPORT) LTD," 2,618.20 ",24/04/2017
Delivery Units,Adults and Communities,Other Agencies - Third Party P,30162821,ONE STEP (SUPPORT) LTD, 638.00 ,24/04/2017
Delivery Units,Adults and Communities,Other Agencies - Third Party P,30162822,ONE STEP (SUPPORT) LTD, 638.00 ,24/04/2017
Delivery Units,Adults and Communities,Other Agencies - Third Party P,30162823,ONE STEP (SUPPORT) LTD," 7,692.72 ",24/04/2017
Delivery Units,Adults and Communities,Other Agencies - Third Party P,30162824,ONE STEP (SUPPORT) LTD," 1,020.80 ",24/04/2017
Delivery Units,Adults and Communities,Other Agencies - Third Party P,30162378,ORIGIN HOUSING LIMITED, 576.00 ,13/04/2017
Delivery Units,Adults and Communities,Other Agencies - Third Party P,30162557,ORIGIN HOUSING LIMITED," 1,065.60 ",19/04/2017
Delivery Units,Adults and Communities,Other Agencies - Third Party P,30162558,ORIGIN HOUSING LIMITED, 288.00 ,19/04/2017
Delivery Units,Adults and Communities,Other Agencies - Third Party P,30162559,ORIGIN HOUSING LIMITED," 1,728.00 ",19/04/2017
Delivery Units,Adults and Communities,Other Agencies - Third Party P,30162560,ORIGIN HOUSING LIMITED, 576.00 ,19/04/2017
Delivery Units,Adults and Communities,Other Agencies - Third Party P,30162835,ORIGIN HOUSING LIMITED," 4,293.90 ",24/04/2017
Delivery Units,Adults and Communities,Other Agencies - Third Party P,30162838,ORIGIN HOUSING LIMITED," 1,065.60 ",24/04/2017
Delivery Units,Adults and Communities,Other Agencies - Third Party P,30162839,ORIGIN HOUSING LIMITED, 288.00 ,24/04/2017
Delivery Units,Adults and Communities,Other Agencies - Third Party P,30162840,ORIGIN HOUSING LIMITED," 1,728.00 ",24/04/2017
Delivery Units,Adults and Communities,Other Agencies - Third Party P,30162841,ORIGIN HOUSING LIMITED, 576.00 ,24/04/2017
Delivery Units,Adults and Communities,Other Agencies - Third Party P,30162842,ORIGIN HOUSING LIMITED," 3,793.98 ",24/04/2017
Delivery Units,Adults and Communities,Other Agencies - Third Party P,30162790,PARADISE INDEPENDENT LIVING," 5,356.00 ",24/04/2017
Delivery Units,Adults and Communities,Other Agencies - Third Party P,30162403,PATERNOSTER HOUSE (BARCHESTER CARE), 323.14 ,19/04/2017
Delivery Units,Adults and Communities,Other Agencies - Third Party P,30162472,PILLARCARE," 6,328.00 ",19/04/2017
Delivery Units,Adults and Communities,Other Agencies - Third Party P,30161953,PLATINUM HEALTH RESOURCES LTD," 3,824.00 ",11/04/2017
Delivery Units,Adults and Communities,Other Agencies - Third Party P,30161982,PLATINUM HEALTH RESOURCES LTD," 3,516.36 ",11/04/2017
Delivery Units,Adults and Communities,Other Agencies - Third Party P,30162007,PLATINUM HEALTH RESOURCES LTD," 3,400.00 ",11/04/2017
Delivery Units,Adults and Communities,Other Agencies - Third Party P,30162330,PLATINUM HEALTH RESOURCES LTD, 273.14 ,13/04/2017
Delivery Units,Adults and Communities,Other Agencies - Third Party P,30162349,PLATINUM HEALTH RESOURCES LTD, 251.17 ,13/04/2017
Delivery Units,Adults and Communities,Other Agencies - Third Party P,30162365,PLATINUM HEALTH RESOURCES LTD, 242.86 ,13/04/2017
Delivery Units,Adults and Communities,Other Agencies - Third Party P,30157774,PRACTICAL CARE, 896.00 ,04/04/2017
Delivery Units,Adults and Communities,Other Agencies - Third Party P,30157775,PRACTICAL CARE, 882.00 ,04/04/2017
Delivery Units,Adults and Communities,Other Agencies - Third Party P,30157776,PRACTICAL CARE," 1,036.00 ",04/04/2017
Delivery Units,Adults and Communities,Other Agencies - Third Party P,30157777,PRACTICAL CARE, 504.00 ,04/04/2017
Delivery Units,Adults and Communities,Other Agencies - Third Party P,30157778,PRACTICAL CARE, 364.00 ,04/04/2017
Delivery Units,Adults and Communities,Other Agencies - Third Party P,30157779,PRACTICAL CARE, 651.00 ,04/04/2017
Delivery Units,Adults and Communities,Other Agencies - Third Party P,30157780,PRACTICAL CARE, 588.00 ,04/04/2017
Delivery Units,Adults and Communities,Other Agencies - Third Party P,30158744,PRACTICAL CARE, 210.00 ,11/04/2017
Delivery Units,Adults and Communities,Other Agencies - Third Party P,30158745,PRACTICAL CARE, 437.50 ,11/04/2017
Delivery Units,Adults and Communities,Other Agencies - Third Party P,30158746,PRACTICAL CARE, 630.00 ,11/04/2017
Delivery Units,Adults and Communities,Other Agencies - Third Party P,30160005,PRACTICAL CARE," 2,156.00 ",18/04/2017
Delivery Units,Adults and Communities,Other Agencies - Third Party P,30160006,PRACTICAL CARE," 2,450.00 ",18/04/2017
Delivery Units,Adults and Communities,Other Agencies - Third Party P,30160007,PRACTICAL CARE, 154.00 ,18/04/2017
Delivery Units,Adults and Communities,Other Agencies - Third Party P,30160008,PRACTICAL CARE," 1,960.00 ",18/04/2017
Delivery Units,Adults and Communities,Other Agencies - Third Party P,30160009,PRACTICAL CARE, 756.00 ,18/04/2017
Delivery Units,Adults and Communities,Other Agencies - Third Party P,30160010,PRACTICAL CARE, 801.50 ,18/04/2017
Delivery Units,Adults and Communities,Other Agencies - Third Party P,30160011,PRACTICAL CARE," 2,352.00 ",18/04/2017
Delivery Units,Adults and Communities,Other Agencies - Third Party P,30160012,PRACTICAL CARE, 444.50 ,18/04/2017
Delivery Units,Adults and Communities,Other Agencies - Third Party P,30160428,PRACTICAL CARE, 252.00 ,04/04/2017
Delivery Units,Adults and Communities,Other Agencies - Third Party P,30160429,PRACTICAL CARE," 2,520.00 ",18/04/2017
Delivery Units,Adults and Communities,Other Agencies - Third Party P,30162743,PRACTICAL CARE, 784.00 ,25/04/2017
Delivery Units,Adults and Communities,Other Agencies - Third Party P,30162744,PRACTICAL CARE, 189.00 ,25/04/2017
Delivery Units,Adults and Communities,Other Agencies - Third Party P,30162745,PRACTICAL CARE, 588.00 ,25/04/2017
Delivery Units,Adults and Communities,Other Agencies - Third Party P,30162746,PRACTICAL CARE, 437.50 ,25/04/2017
Delivery Units,Adults and Communities,Other Agencies - Third Party P,30162234,QUEEN ANN CARE," 3,600.00 ",13/04/2017
Delivery Units,Adults and Communities,Other Agencies - Third Party P,30162235,QUEEN ANN CARE," 3,600.00 ",13/04/2017
Delivery Units,Adults and Communities,Other Agencies - Third Party P,30162236,QUEEN ANN CARE, 257.14 ,13/04/2017
Delivery Units,Adults and Communities,Other Agencies - Third Party P,30161890,RAPKYNS CARE CENTRE, 412.57 ,11/04/2017
Delivery Units,Adults and Communities,Other Agencies - Third Party P,30161891,RAPKYNS CARE CENTRE, 428.57 ,11/04/2017
Delivery Units,Adults and Communities,Other Agencies - Third Party P,30162997,REGENCY GUEST SERVICES," 4,375.00 ",25/04/2017
Delivery Units,Adults and Communities,Other Agencies - Third Party P,30163225,RESIDENTIAL CARE SERVICES LTD T/A FRANKL," 4,759.61 ",27/04/2017
Delivery Units,Adults and Communities,Other Agencies - Third Party P,30162369,RIDGEWAY RESIDENTIAL HOME," 2,095.56 ",13/04/2017
Delivery Units,Adults and Communities,Other Agencies - Third Party P,30162470,ROLAND COMMUNITY CARE LTD," 2,150.64 ",19/04/2017
Delivery Units,Adults and Communities,Other Agencies - Third Party P,30162524,ROLAND COMMUNITY CARE LTD," 2,820.36 ",19/04/2017
Delivery Units,Adults and Communities,Other Agencies - Third Party P,30162241,ROLAND RESIDENTIAL CARE HOMES, 248.62 ,13/04/2017
Delivery Units,Adults and Communities,Other Agencies - Third Party P,30162237,ROLAND RESIDENTIAL CARE HOMES LTD, 214.32 ,13/04/2017
Delivery Units,Adults and Communities,Other Agencies - Third Party P,30162238,ROLAND RESIDENTIAL CARE HOMES LTD, 278.87 ,13/04/2017
Delivery Units,Adults and Communities,Other Agencies - Third Party P,30162239,ROLAND RESIDENTIAL CARE HOMES LTD, 295.70 ,13/04/2017
Delivery Units,Adults and Communities,Other Agencies - Third Party P,30162240,ROLAND RESIDENTIAL CARE HOMES LTD, 227.73 ,13/04/2017
Delivery Units,Adults and Communities,Other Agencies - Third Party P,30162021,ROSEACRES CARE HOME LIMITED," 2,542.31 ",11/04/2017
Delivery Units,Adults and Communities,Other Agencies - Third Party P,30162022,ROSEACRES CARE HOME LIMITED," 2,542.31 ",11/04/2017
Delivery Units,Adults and Communities,Other Agencies - Third Party P,30162023,ROSEACRES CARE HOME LIMITED," 2,542.31 ",11/04/2017
Delivery Units,Adults and Communities,Other Agencies - Third Party P,30162024,ROSEACRES CARE HOME LIMITED," 2,542.31 ",11/04/2017
Delivery Units,Adults and Communities,Other Agencies - Third Party P,30162025,ROSEACRES CARE HOME LIMITED," 2,335.36 ",11/04/2017
Delivery Units,Adults and Communities,Other Agencies - Third Party P,30162026,ROSEACRES CARE HOME LIMITED," 2,542.31 ",11/04/2017
Delivery Units,Adults and Communities,Other Agencies - Third Party P,30162027,ROSEACRES CARE HOME LIMITED," 2,542.31 ",11/04/2017
Delivery Units,Adults and Communities,Other Agencies - Third Party P,30162028,ROSEACRES CARE HOME LIMITED," 2,542.31 ",11/04/2017
Delivery Units,Adults and Communities,Other Agencies - Third Party P,30162029,ROSEACRES CARE HOME LIMITED," 3,100.00 ",11/04/2017
Delivery Units,Adults and Communities,Other Agencies - Third Party P,30162030,ROSEACRES CARE HOME LIMITED," 2,699.32 ",11/04/2017
Delivery Units,Adults and Communities,Other Agencies - Third Party P,30162031,ROSEACRES CARE HOME LIMITED," 2,542.31 ",11/04/2017
Delivery Units,Adults and Communities,Other Agencies - Third Party P,30162032,ROSEACRES CARE HOME LIMITED," 3,321.43 ",11/04/2017
Delivery Units,Adults and Communities,Other Agencies - Third Party P,30162033,ROSEACRES CARE HOME LIMITED," 2,542.31 ",11/04/2017
Delivery Units,Adults and Communities,Other Agencies - Third Party P,30162034,ROSEACRES CARE HOME LIMITED," 2,335.36 ",11/04/2017
Delivery Units,Adults and Communities,Other Agencies - Third Party P,30162035,ROSEACRES CARE HOME LIMITED," 2,448.78 ",11/04/2017
Delivery Units,Adults and Communities,Other Agencies - Third Party P,30162036,ROSEACRES CARE HOME LIMITED," 3,321.43 ",11/04/2017
Delivery Units,Adults and Communities,Other Agencies - Third Party P,30162037,ROSEACRES CARE HOME LIMITED," 2,542.31 ",11/04/2017
Delivery Units,Adults and Communities,Other Agencies - Third Party P,30163275,ROYAL MENCAP SOCIETY," 1,808.72 ",27/04/2017
Delivery Units,Adults and Communities,Other Agencies - Third Party P,30161896,SAGE NURSING HOME, 85.71 ,11/04/2017
Delivery Units,Adults and Communities,Other Agencies - Third Party P,30163215,SAGE NURSING HOME," 7,106.05 ",27/04/2017
Delivery Units,Adults and Communities,Other Agencies - Third Party P,30163216,SAGE NURSING HOME, 179.90 ,27/04/2017
Delivery Units,Adults and Communities,Other Agencies - Third Party P,30159959,SCIMITAR CARE HOTELS PLC, 543.00 ,06/04/2017
Delivery Units,Adults and Communities,Other Agencies - Third Party P,30162282,SCOTTISH SOCIETY FOR AUTISM," 1,230.04 ",13/04/2017
Delivery Units,Adults and Communities,Other Agencies - Third Party P,30162876,SELF UNLIMITED-LONDON REGION," 3,920.00 ",24/04/2017
Delivery Units,Adults and Communities,Other Agencies - Third Party P,30162877,SELF UNLIMITED-LONDON REGION," 3,920.00 ",24/04/2017
Delivery Units,Adults and Communities,Other Agencies - Third Party P,30162878,SELF UNLIMITED-LONDON REGION," 3,920.00 ",24/04/2017
Delivery Units,Adults and Communities,Other Agencies - Third Party P,30162812,SENSE CAS FINANCE TEAM, 180.00 ,24/04/2017
Delivery Units,Adults and Communities,Other Agencies - Third Party P,30162813,SENSE CAS FINANCE TEAM, 720.00 ,24/04/2017
Delivery Units,Adults and Communities,Other Agencies - Third Party P,30162262,SEQUENCE CARE GROUP, 528.57 ,13/04/2017
Delivery Units,Adults and Communities,Other Agencies - Third Party P,30162263,SEQUENCE CARE GROUP, 533.14 ,13/04/2017
Delivery Units,Adults and Communities,Other Agencies - Third Party P,30162958,SEVA CARE HOME, 142.99 ,25/04/2017
Delivery Units,Adults and Communities,Other Agencies - Third Party P,30163214,SEVA CARE HOME, 217.69 ,27/04/2017
Delivery Units,Adults and Communities,Other Agencies - Third Party P,30162875,SGSL LTD," 2,772.00 ",24/04/2017
Delivery Units,Adults and Communities,Other Agencies - Third Party P,30162884,SGSL LTD," 2,707.60 ",24/04/2017
Delivery Units,Adults and Communities,Other Agencies - Third Party P,30162885,SGSL LTD," 3,218.40 ",24/04/2017
Delivery Units,Adults and Communities,Other Agencies - Third Party P,30162886,SGSL LTD," 1,454.40 ",24/04/2017
Delivery Units,Adults and Communities,Other Agencies - Third Party P,30162892,SGSL LTD," 1,485.25 ",24/04/2017
Delivery Units,Adults and Communities,Other Agencies - Third Party P,30162901,SGSL LTD," 2,399.88 ",24/04/2017
Delivery Units,Adults and Communities,Other Agencies - Third Party P,30162902,SGSL LTD, 599.97 ,24/04/2017
Delivery Units,Adults and Communities,Other Agencies - Third Party P,30162903,SGSL LTD," 2,720.00 ",24/04/2017
Delivery Units,Adults and Communities,Other Agencies - Third Party P,30162904,SGSL LTD, 680.00 ,24/04/2017
Delivery Units,Adults and Communities,Other Agencies - Third Party P,30162907,SGSL LTD," 3,335.20 ",24/04/2017
Delivery Units,Adults and Communities,Other Agencies - Third Party P,30162864,SHAW TRUST LIMITED, 280.00 ,24/04/2017
Delivery Units,Adults and Communities,Other Agencies - Third Party P,30162865,SHAW TRUST LIMITED, 280.00 ,24/04/2017
Delivery Units,Adults and Communities,Other Agencies - Third Party P,30162469,SHINE PARTNERSHIPS LTD," 2,720.00 ",19/04/2017
Delivery Units,Adults and Communities,Other Agencies - Third Party P,30162513,SHINE PARTNERSHIPS LTD," 2,640.00 ",19/04/2017
Delivery Units,Adults and Communities,Other Agencies - Third Party P,30162514,SHINE PARTNERSHIPS LTD, 400.00 ,19/04/2017
Delivery Units,Adults and Communities,Other Agencies - Third Party P,30162522,SHINE PARTNERSHIPS LTD," 2,600.00 ",19/04/2017
Delivery Units,Adults and Communities,Other Agencies - Third Party P,30162532,SHINE PARTNERSHIPS LTD," 2,640.00 ",19/04/2017
Delivery Units,Adults and Communities,Other Agencies - Third Party P,30162422,SIGN HEALTH, 270.00 ,19/04/2017
Delivery Units,Adults and Communities,Other Agencies - Third Party P,30162957,SIGN HEALTH, 360.00 ,25/04/2017
Delivery Units,Adults and Communities,Other Agencies - Third Party P,30162426,SIMEON CARE, 206.48 ,19/04/2017
Delivery Units,Adults and Communities,Other Agencies - Third Party P,30163267,SNEH CARE, 179.00 ,27/04/2017
Delivery Units,Adults and Communities,Other Agencies - Third Party P,30162963,SPRINGDENE," 4,694.29 ",25/04/2017
Delivery Units,Adults and Communities,Other Agencies - Third Party P,30162983,SPRINGDENE," 3,321.43 ",25/04/2017
Delivery Units,Adults and Communities,Other Agencies - Third Party P,30162985,SPRINGVIEW," 3,100.00 ",25/04/2017
Delivery Units,Adults and Communities,Other Agencies - Third Party P,30162057,ST ANNS HOME-LITTLE SISTERS OF THE POOR," 2,397.71 ",11/04/2017
Delivery Units,Adults and Communities,Other Agencies - Third Party P,30162853,ST JOSEPH'S PASTORAL CENTRE, 420.00 ,24/04/2017
Delivery Units,Adults and Communities,Other Agencies - Third Party P,30162854,ST JOSEPH'S PASTORAL CENTRE, 776.00 ,24/04/2017
Delivery Units,Adults and Communities,Other Agencies - Third Party P,30162855,ST JOSEPH'S PASTORAL CENTRE, 716.00 ,24/04/2017
Delivery Units,Adults and Communities,Other Agencies - Third Party P,30162856,ST JOSEPH'S PASTORAL CENTRE, 476.00 ,24/04/2017
Delivery Units,Adults and Communities,Other Agencies - Third Party P,30162857,ST JOSEPH'S PASTORAL CENTRE, 664.00 ,24/04/2017
Delivery Units,Adults and Communities,Other Agencies - Third Party P,30162858,ST JOSEPH'S PASTORAL CENTRE, 160.00 ,24/04/2017
Delivery Units,Adults and Communities,Other Agencies - Third Party P,30162859,ST JOSEPH'S PASTORAL CENTRE, 256.00 ,24/04/2017
Delivery Units,Adults and Communities,Other Agencies - Third Party P,30162860,ST JOSEPH'S PASTORAL CENTRE, 236.00 ,24/04/2017
Delivery Units,Adults and Communities,Other Agencies - Third Party P,30162861,ST JOSEPH'S PASTORAL CENTRE, 88.00 ,24/04/2017
Delivery Units,Adults and Communities,Other Agencies - Third Party P,30162862,ST JOSEPH'S PASTORAL CENTRE, 392.00 ,24/04/2017
Delivery Units,Adults and Communities,Other Agencies - Third Party P,30162863,ST JOSEPH'S PASTORAL CENTRE, 544.00 ,24/04/2017
Delivery Units,Adults and Communities,Other Agencies - Third Party P,30162060,ST MARTIN OF TOURS HA LTD," 3,764.29 ",11/04/2017
Delivery Units,Adults and Communities,Other Agencies - Third Party P,30162778,ST. MARK'S DAY SERVICE," 1,999.08 ",24/04/2017
Delivery Units,Adults and Communities,Other Agencies - Third Party P,30162779,ST. MARK'S DAY SERVICE," 1,999.08 ",24/04/2017
Delivery Units,Adults and Communities,Other Agencies - Third Party P,30162059,STAMFORD NURSING CENTRE," 3,029.63 ",11/04/2017
Delivery Units,Adults and Communities,Other Agencies - Third Party P,30162772,STRIVING FOR INDEPENDENCE HOMES LLP, 388.57 ,24/04/2017
Delivery Units,Adults and Communities,Other Agencies - Third Party P,30162773,STRIVING FOR INDEPENDENCE HOMES LLP, 388.57 ,24/04/2017
Delivery Units,Adults and Communities,Other Agencies - Third Party P,30161948,SWANBOROUGH HOUSE," 3,722.44 ",11/04/2017
Delivery Units,Adults and Communities,Other Agencies - Third Party P,30162254,SWEETTREE FARMING FOR ALL CIC, 180.00 ,13/04/2017
Delivery Units,Adults and Communities,Other Agencies - Third Party P,30162255,SWEETTREE FARMING FOR ALL CIC, 240.00 ,27/04/2017
Delivery Units,Adults and Communities,Other Agencies - Third Party P,30162977,THE BARNETGROUP LIMITED, 881.60 ,25/04/2017
Delivery Units,Adults and Communities,Other Agencies - Third Party P,80009590,THE BARNETGROUP LIMITED, 530.00 ,27/04/2017
Delivery Units,Adults and Communities,Other Agencies - Third Party P,80009592,THE BARNETGROUP LIMITED, 815.00 ,27/04/2017
Delivery Units,Adults and Communities,Other Agencies - Third Party P,80009593,THE BARNETGROUP LIMITED," 3,525.00 ",27/04/2017
Delivery Units,Adults and Communities,Other Agencies - Third Party P,30162847,THE CAMDEN SOCIETY, 458.16 ,25/04/2017
Delivery Units,Adults and Communities,Other Agencies - Third Party P,30162848,THE CAMDEN SOCIETY, 440.00 ,25/04/2017
Delivery Units,Adults and Communities,Other Agencies - Third Party P,30163201,THE CAMDEN SOCIETY, 152.72 ,28/04/2017
Delivery Units,Adults and Communities,Other Agencies - Third Party P,30162804,THE CHRISTIAN CARE TRUST, 868.13 ,24/04/2017
Delivery Units,Adults and Communities,Other Agencies - Third Party P,30162510,THE DISABILITIES TRUST, 500.52 ,19/04/2017
Delivery Units,Adults and Communities,Other Agencies - Third Party P,30162518,THE DISABILITIES TRUST, 712.16 ,19/04/2017
Delivery Units,Adults and Communities,Other Agencies - Third Party P,30162519,THE DISABILITIES TRUST," 1,027.18 ",19/04/2017
Delivery Units,Adults and Communities,Other Agencies - Third Party P,30162520,THE DISABILITIES TRUST," 1,176.29 ",19/04/2017
Delivery Units,Adults and Communities,Other Agencies - Third Party P,30162348,THE ELMS CARE HOME (BUPA)," 2,397.72 ",13/04/2017
Delivery Units,Adults and Communities,Other Agencies - Third Party P,30161874,THE GRANGE, 650.00 ,11/04/2017
Delivery Units,Adults and Communities,Other Agencies - Third Party P,30161876,THE GRANGE, 394.96 ,11/04/2017
Delivery Units,Adults and Communities,Other Agencies - Third Party P,30161892,THE GRANGE, 428.57 ,11/04/2017
Delivery Units,Adults and Communities,Other Agencies - Third Party P,30161903,THE GRANGE, 394.96 ,11/04/2017
Delivery Units,Adults and Communities,Other Agencies - Third Party P,30161947,THE GRANGE, 394.96 ,11/04/2017
Delivery Units,Adults and Communities,Other Agencies - Third Party P,30162004,THE KINGSDOWNE SOCIETY," 3,126.57 ",12/04/2017
Delivery Units,Adults and Communities,Other Agencies - Third Party P,30162005,THE KINGSDOWNE SOCIETY," 2,448.69 ",12/04/2017
Delivery Units,Adults and Communities,Other Agencies - Third Party P,30162006,THE KINGSDOWNE SOCIETY," 2,249.44 ",12/04/2017
Delivery Units,Adults and Communities,Other Agencies - Third Party P,30162067,THE KINGSDOWNE SOCIETY," 2,448.77 ",12/04/2017
Delivery Units,Adults and Communities,Other Agencies - Third Party P,30162333,THE LIMES RESIDENTIAL HOME," 16,114.54 ",13/04/2017
Delivery Units,Adults and Communities,Other Agencies - Third Party P,30163239,THE LIMES RESIDENTIAL HOME, 157.99 ,27/04/2017
Delivery Units,Adults and Communities,Other Agencies - Third Party P,30163241,THE LIMES RESIDENTIAL HOME, 157.99 ,27/04/2017
Delivery Units,Adults and Communities,Other Agencies - Third Party P,30163243,THE LIMES RESIDENTIAL HOME, 157.99 ,27/04/2017
Delivery Units,Adults and Communities,Other Agencies - Third Party P,30163245,THE LIMES RESIDENTIAL HOME, 145.13 ,27/04/2017
Delivery Units,Adults and Communities,Other Agencies - Third Party P,30163266,THE LIMES RESIDENTIAL HOME, 145.13 ,27/04/2017
Delivery Units,Adults and Communities,Other Agencies - Third Party P,30161871,THE MEATH EPILEPSY TRUST," 9,083.00 ",11/04/2017
Delivery Units,Adults and Communities,Other Agencies - Third Party P,30163298,THE NATIONAL AUTISTIC SOCIETY," 4,991.37 ",27/04/2017
Delivery Units,Adults and Communities,Other Agencies - Third Party P,30163299,THE NATIONAL AUTISTIC SOCIETY," 4,991.37 ",27/04/2017
Delivery Units,Adults and Communities,Other Agencies - Third Party P,30163092,THE NATIONAL SOCIETY FOR EPILEPSY, 309.02 ,27/04/2017
Delivery Units,Adults and Communities,Other Agencies - Third Party P,30163093,THE NATIONAL SOCIETY FOR EPILEPSY, 652.86 ,27/04/2017
Delivery Units,Adults and Communities,Other Agencies - Third Party P,30162370,THE RED HOUSE," 2,094.52 ",13/04/2017
Delivery Units,Adults and Communities,Other Agencies - Third Party P,30163240,THE REGARD PARTNERSHIP LTD, 518.75 ,27/04/2017
Delivery Units,Adults and Communities,Other Agencies - Third Party P,30162987,THE WELL HOUSE," 4,495.00 ",25/04/2017
Delivery Units,Adults and Communities,Other Agencies - Third Party P,30162988,THE WELL HOUSE, 290.00 ,25/04/2017
Delivery Units,Adults and Communities,Other Agencies - Third Party P,30161882,THE WOODSIDE HOME," 2,104.24 ",11/04/2017
Delivery Units,Adults and Communities,Other Agencies - Third Party P,30161883,THE WOODSIDE HOME," 2,291.00 ",11/04/2017
Delivery Units,Adults and Communities,Other Agencies - Third Party P,30161884,THE WOODSIDE HOME," 2,291.00 ",11/04/2017
Delivery Units,Adults and Communities,Other Agencies - Third Party P,30161885,THE WOODSIDE HOME," 2,291.00 ",11/04/2017
Delivery Units,Adults and Communities,Other Agencies - Third Party P,30161886,THE WOODSIDE HOME," 2,104.24 ",11/04/2017
Delivery Units,Adults and Communities,Other Agencies - Third Party P,30161887,THE WOODSIDE HOME," 2,104.24 ",11/04/2017
Delivery Units,Adults and Communities,Other Agencies - Third Party P,30161888,THE WOODSIDE HOME," 2,104.24 ",11/04/2017
Delivery Units,Adults and Communities,Other Agencies - Third Party P,30161889,THE WOODSIDE HOME," 2,104.24 ",11/04/2017
Delivery Units,Adults and Communities,Other Agencies - Third Party P,30162281,THE WOODSIDE HOME," 2,031.76 ",13/04/2017
Delivery Units,Adults and Communities,Other Agencies - Third Party P,30160917,TOGETHER FOR MENTAL WELLBEING," 8,500.00 ",12/04/2017
Delivery Units,Adults and Communities,Other Agencies - Third Party P,30162999,TORRINGTON HOMES, 157.98 ,25/04/2017
Delivery Units,Adults and Communities,Other Agencies - Third Party P,30163001,TORRINGTON HOMES, 157.98 ,25/04/2017
Delivery Units,Adults and Communities,Other Agencies - Third Party P,30163002,TORRINGTON HOMES, 157.98 ,25/04/2017
Delivery Units,Adults and Communities,Other Agencies - Third Party P,30163003,TORRINGTON HOMES, 157.98 ,25/04/2017
Delivery Units,Adults and Communities,Other Agencies - Third Party P,30163018,TORRINGTON HOMES, 157.98 ,25/04/2017
Delivery Units,Adults and Communities,Other Agencies - Third Party P,30163020,TORRINGTON HOMES, 145.12 ,25/04/2017
Delivery Units,Adults and Communities,Other Agencies - Third Party P,30163022,TORRINGTON HOMES, 157.98 ,25/04/2017
Delivery Units,Adults and Communities,Other Agencies - Third Party P,30163026,TORRINGTON HOMES, 145.12 ,25/04/2017
Delivery Units,Adults and Communities,Other Agencies - Third Party P,30163040,TORRINGTON HOMES, 157.98 ,25/04/2017
Delivery Units,Adults and Communities,Other Agencies - Third Party P,30163265,TORRINGTON HOMES, 394.96 ,27/04/2017
Delivery Units,Adults and Communities,Other Agencies - Third Party P,30162429,TOWERTREND LTD, 214.29 ,19/04/2017
Delivery Units,Adults and Communities,Other Agencies - Third Party P,30162418,TWO RIVERS," 3,012.72 ",19/04/2017
Delivery Units,Adults and Communities,Other Agencies - Third Party P,30162419,TWO RIVERS, 348.00 ,19/04/2017
Delivery Units,Adults and Communities,Other Agencies - Third Party P,30162421,TWO RIVERS," 4,376.00 ",19/04/2017
Delivery Units,Adults and Communities,Other Agencies - Third Party P,30161010,UNIQUE CARE SERVICES," 1,841.43 ",06/04/2017
Delivery Units,Adults and Communities,Other Agencies - Third Party P,30163313,UNIQUE CARE SERVICES, 613.81 ,27/04/2017
Delivery Units,Adults and Communities,Other Agencies - Third Party P,30162400,UNIQUE SUPPORT UK LTD," 3,700.06 ",19/04/2017
Delivery Units,Adults and Communities,Other Agencies - Third Party P,30161972,VENTRY RESIDENTIAL CARE LTD," 2,211.80 ",11/04/2017
Delivery Units,Adults and Communities,Other Agencies - Third Party P,30162252,VICTORIA CARE CENTRE, 572.70 ,13/04/2017
Delivery Units,Adults and Communities,Other Agencies - Third Party P,30162951,VICTORIA CARE CENTRE," 2,958.95 ",25/04/2017
Delivery Units,Adults and Communities,Other Agencies - Third Party P,30159957,VOYAGE CARE, 113.37 ,12/04/2017
Delivery Units,Adults and Communities,Other Agencies - Third Party P,30161861,WALSINGHAM," 1,492.96 ",11/04/2017
Delivery Units,Adults and Communities,Other Agencies - Third Party P,30161862,WALSINGHAM," 1,492.96 ",11/04/2017
Delivery Units,Adults and Communities,Other Agencies - Third Party P,30161863,WALSINGHAM," 1,492.96 ",11/04/2017
Delivery Units,Adults and Communities,Other Agencies - Third Party P,30162383,WESTGATE HOUSE CARE CENTRE, 240.37 ,18/04/2017
Delivery Units,Adults and Communities,Other Agencies - Third Party P,30162953,WESTMINSTER HEALTH CARE LTD," 4,495.93 ",25/04/2017
Delivery Units,Adults and Communities,Other Agencies - Third Party P,30162954,WESTMINSTER HEALTH CARE LTD," 2,318.93 ",25/04/2017
Delivery Units,Adults and Communities,Other Agencies - Third Party P,30162955,WESTMINSTER HEALTH CARE LTD," 4,864.08 ",25/04/2017
Delivery Units,Adults and Communities,Other Agencies - Third Party P,30162956,WESTMINSTER HEALTH CARE LTD," 5,087.68 ",25/04/2017
Delivery Units,Adults and Communities,Other Agencies - Third Party P,30162843,WILLOW CARE HOMES," 4,203.43 ",24/04/2017
Delivery Units,Adults and Communities,Other Agencies - Third Party P,30162844,WILLOW CARE HOMES," 3,152.57 ",24/04/2017
Delivery Units,Adults and Communities,Other Agencies - Third Party P,30162959,Z & M CARE LTD, 580.60 ,25/04/2017
Delivery Units,Adults and Communities,Other Contributions,80009527,O'DWYER FUNERAL DIRECTORS LTD, 485.00 ,04/04/2017
Delivery Units,Adults and Communities,Other Contributions,80009858,O'DWYER FUNERAL DIRECTORS LTD," 1,749.00 ",28/04/2017
Delivery Units,Adults and Communities,Other Services,80009763,A NEW DAWN (HAND) LTD, 240.00 ,18/04/2017
Delivery Units,Adults and Communities,Other Services,80009490,BARNET MENCAP," 1,200.00 ",03/04/2017
Delivery Units,Adults and Communities,Other Services,80009638,BOURNEMOUTH UNIVERSITY, 88.17 ,07/04/2017
Delivery Units,Adults and Communities,Other Services,80009765,HANZAK LTD T/A DR RASHAD NAZIR, 208.10 ,19/04/2017
Delivery Units,Adults and Communities,Other Services,60075553,KANVASS PROJECTS LTD," 4,262.62 ",04/04/2017
Delivery Units,Adults and Communities,Other Services,60075609,KANVASS PROJECTS LTD, 355.20 ,04/04/2017
Delivery Units,Adults and Communities,Other Services,60075975,M1 EXPRESS CAR SERVICES, 102.00 ,20/04/2017
Delivery Units,Adults and Communities,Other Services,60076883,M1 EXPRESS CAR SERVICES, 504.00 ,12/04/2017
Delivery Units,Adults and Communities,Other Services,80009764,NACHANI LTD, 190.00 ,19/04/2017
Delivery Units,Adults and Communities,Other Services,60076788,PRIME PRODUCTION LTD, 139.00 ,12/04/2017
Delivery Units,Adults and Communities,Other Services,60077326,PRIME PRODUCTION LTD, 39.50 ,19/04/2017
Delivery Units,Adults and Communities,Other Services,80009491,REDACTED - PERSONAL DATA, 213.60 ,03/04/2017
Delivery Units,Adults and Communities,Other Services,80009797,REDACTED - PERSONAL DATA, 48.70 ,21/04/2017
Delivery Units,Adults and Communities,Other Transfer Payments to Soc,60075748,ACTION FIRST RECRUITMENT," 1,275.00 ",03/04/2017
Delivery Units,Adults and Communities,Other Transfer Payments to Soc,60076475,ACTION FIRST RECRUITMENT," 2,180.00 ",05/04/2017
Delivery Units,Adults and Communities,Other Transfer Payments to Soc,60077202,ACTION FIRST RECRUITMENT," 3,517.50 ",11/04/2017
Delivery Units,Adults and Communities,Other Transfer Payments to Soc,60077522,ACTION FIRST RECRUITMENT," 1,500.00 ",19/04/2017
Delivery Units,Adults and Communities,Other Transfer Payments to Soc,60076571,AGE CONCERN," 3,150.00 ",07/04/2017
Delivery Units,Adults and Communities,Other Transfer Payments to Soc,60074903,AISA MEDICAL LTD, 173.37 ,06/04/2017
Delivery Units,Adults and Communities,Other Transfer Payments to Soc,60075578,AISA MEDICAL LTD, 353.67 ,18/04/2017
Delivery Units,Adults and Communities,Other Transfer Payments to Soc,60076778,AISA MEDICAL LTD, 348.48 ,26/04/2017
Delivery Units,Adults and Communities,Other Transfer Payments to Soc,60076780,AISA MEDICAL LTD, 174.48 ,26/04/2017
Delivery Units,Adults and Communities,Other Transfer Payments to Soc,60076793,AISA MEDICAL LTD, 346.74 ,25/04/2017
Delivery Units,Adults and Communities,Other Transfer Payments to Soc,60076794,AISA MEDICAL LTD, 354.21 ,25/04/2017
Delivery Units,Adults and Communities,Other Transfer Payments to Soc,60076796,AISA MEDICAL LTD, 346.74 ,26/04/2017
Delivery Units,Adults and Communities,Other Transfer Payments to Soc,60076833,AISA MEDICAL LTD, 350.54 ,26/04/2017
Delivery Units,Adults and Communities,Other Transfer Payments to Soc,60076861,AISA MEDICAL LTD, 351.29 ,26/04/2017
Delivery Units,Adults and Communities,Other Transfer Payments to Soc,60076136,AKRAS SOLUTIONS LIMITED," 4,433.20 ",20/04/2017
Delivery Units,Adults and Communities,Other Transfer Payments to Soc,60075410,ALZHEIMER'S SOCIETY (BARNET)," 29,955.50 ",19/04/2017
Delivery Units,Adults and Communities,Other Transfer Payments to Soc,60076741,ASHPRI LIMITED," 2,463.60 ",06/04/2017
Delivery Units,Adults and Communities,Other Transfer Payments to Soc,60074925,BARTEK ZANIEWSKI LTD," 1,833.60 ",06/04/2017
Delivery Units,Adults and Communities,Other Transfer Payments to Soc,60075429,BARTEK ZANIEWSKI LTD, 450.00 ,12/04/2017
Delivery Units,Adults and Communities,Other Transfer Payments to Soc,60077414,CARE ANALYTICS LTD," 16,000.00 ",26/04/2017
Delivery Units,Adults and Communities,Other Transfer Payments to Soc,60075441,CLG SOCIAL CARE LTD, 500.00 ,04/04/2017
Delivery Units,Adults and Communities,Other Transfer Payments to Soc,60075688,CLG SOCIAL CARE LTD, 750.00 ,27/04/2017
Delivery Units,Adults and Communities,Other Transfer Payments to Soc,60076537,CLG SOCIAL CARE LTD, 500.00 ,27/04/2017
Delivery Units,Adults and Communities,Other Transfer Payments to Soc,60076594,EDUHEZ LTD, 700.00 ,27/04/2017
Delivery Units,Adults and Communities,Other Transfer Payments to Soc,60074772,FAVORE DIDIO LTD," 1,422.10 ",05/04/2017
Delivery Units,Adults and Communities,Other Transfer Payments to Soc,60076440,FAVORE DIDIO LTD," 1,405.00 ",25/04/2017
Delivery Units,Adults and Communities,Other Transfer Payments to Soc,80009448,HANOVER, 666.28 ,03/04/2017
Delivery Units,Adults and Communities,Other Transfer Payments to Soc,60075311,HCL SOCIAL CARE LTD, 837.50 ,12/04/2017
Delivery Units,Adults and Communities,Other Transfer Payments to Soc,60076744,KEVIN SCHEURING LTD," 1,820.00 ",27/04/2017
Delivery Units,Adults and Communities,Other Transfer Payments to Soc,60075501,KORU MEDICAL LTD," 1,334.31 ",12/04/2017
Delivery Units,Adults and Communities,Other Transfer Payments to Soc,60076524,LMS (BOLTON) LTD," 1,035.90 ",27/04/2017
Delivery Units,Adults and Communities,Other Transfer Payments to Soc,10013697,LONDON BOROUGH OF ENFIELD," 23,142.06 ",07/04/2017
Delivery Units,Adults and Communities,Other Transfer Payments to Soc,80009854,O'DWYER FUNERAL DIRECTORS LTD," 1,397.13 ",25/04/2017
Delivery Units,Adults and Communities,Other Transfer Payments to Soc,80009855,O'DWYER FUNERAL DIRECTORS LTD," 3,009.00 ",28/04/2017
Delivery Units,Adults and Communities,Other Transfer Payments to Soc,80009861,O'DWYER FUNERAL DIRECTORS LTD," 1,518.00 ",28/04/2017
Delivery Units,Adults and Communities,Other Transfer Payments to Soc,60073504,ORIGIN HOUSING LIMITED," 3,920.00 ",10/04/2017
Delivery Units,Adults and Communities,Other Transfer Payments to Soc,60075136,ORIGIN HOUSING LIMITED," 3,920.00 ",10/04/2017
Delivery Units,Adults and Communities,Other Transfer Payments to Soc,60075489,PEACEABLE HABITATION LTD, 298.85 ,12/04/2017
Delivery Units,Adults and Communities,Other Transfer Payments to Soc,60075677,PEACEABLE HABITATION LTD, 169.08 ,03/04/2017
Delivery Units,Adults and Communities,Other Transfer Payments to Soc,60074836,REDACTED - PERSONAL DATA, 309.86 ,05/04/2017
Delivery Units,Adults and Communities,Other Transfer Payments to Soc,60075000,REDACTED - PERSONAL DATA, 615.08 ,10/04/2017
Delivery Units,Adults and Communities,Other Transfer Payments to Soc,60075069,REDACTED - PERSONAL DATA, 937.20 ,06/04/2017
Delivery Units,Adults and Communities,Other Transfer Payments to Soc,60075378,REDACTED - PERSONAL DATA, 300.00 ,12/04/2017
Delivery Units,Adults and Communities,Other Transfer Payments to Soc,60075395,REDACTED - PERSONAL DATA, 150.00 ,12/04/2017
Delivery Units,Adults and Communities,Other Transfer Payments to Soc,60075543,REDACTED - PERSONAL DATA, 313.78 ,12/04/2017
Delivery Units,Adults and Communities,Other Transfer Payments to Soc,60076113,REDACTED - PERSONAL DATA, 313.92 ,26/04/2017
Delivery Units,Adults and Communities,Other Transfer Payments to Soc,60075747,WHITTINGTON HOSPITAL NHS TRUST, 480.00 ,13/04/2017
Delivery Units,Adults and Communities,Other Transfer Payments to Soc,60075771,WHITTINGTON HOSPITAL NHS TRUST," 1,200.00 ",13/04/2017
Delivery Units,Adults and Communities,Other Transfer Payments to Soc,60075798,WHITTINGTON HOSPITAL NHS TRUST," 2,520.00 ",13/04/2017
Delivery Units,Adults and Communities,Postage,60077254,ROYAL MAIL GROUP LIMITED, 0.60 ,13/04/2017
Delivery Units,Adults and Communities,Rubbish Collection,60076906,BPR GROUP EUROPE LTD, 156.00 ,20/04/2017
Delivery Units,Adults and Communities,Software Licences & Support,60074947,BARNET CARERS CENTRE, 123.60 ,20/04/2017
Delivery Units,Adults and Communities,Software Licences & Support,60074950,BARNET CARERS CENTRE, 45.32 ,20/04/2017
Delivery Units,Adults and Communities,Software Licences & Support,60074957,BARNET CARERS CENTRE, 45.32 ,20/04/2017
Delivery Units,Adults and Communities,Software Licences & Support,60075472,BARNET CARERS CENTRE, 214.24 ,06/04/2017
Delivery Units,Adults and Communities,Software Licences & Support,60065437,CARE MONITORING 2000 LTD," 5,465.47 ",06/04/2017
Delivery Units,Adults and Communities,Software Licences & Support,60074523,CARE MONITORING 2000 LTD," 3,571.99 ",06/04/2017
Delivery Units,Adults and Communities,Stationery,60076023,XEROX FINANCE LTD, 2.55 ,11/04/2017
Delivery Units,Adults and Communities,Stationery,60076036,XEROX FINANCE LTD, 15.20 ,05/04/2017
Delivery Units,Adults and Communities,Stationery,60076907,XEROX FINANCE LTD, 43.70 ,07/04/2017
Delivery Units,Adults and Communities,Training,60075746,LONDON BOROUGH OF ISLINGTON, 593.40 ,06/04/2017
Delivery Units,Adults and Communities,Training,60076117,MIDDLESEX UNIVERSITY," 4,650.00 ",10/04/2017
Delivery Units,Adults and Communities,Training,80009846,REDACTED - PERSONAL DATA, 600.00 ,27/04/2017
Delivery Units,Adults and Communities,Training,60076646,THE DARTINGTON HALL TRUST," 9,999.00 ",19/04/2017
Delivery Units,Adults and Communities,Training,60076665,UNIVERSITY OF HERTFORDSHIRE," 4,460.00 ",07/04/2017
Delivery Units,Adults and Communities,Translation Exp / Interpret,60071839,PRIME PRODUCTION LTD, 47.00 ,04/04/2017
Delivery Units,Adults and Communities,Translation Exp / Interpret,60075592,PRIME PRODUCTION LTD, 39.50 ,18/04/2017
Delivery Units,Adults and Communities,Translation Exp / Interpret,60076786,PRIME PRODUCTION LTD," 1,914.90 ",12/04/2017
Delivery Units,Adults and Communities,Translation Exp / Interpret,60077800,PRIME PRODUCTION LTD, 39.50 ,25/04/2017
Delivery Units,Adults and Communities,Transport Hire Charges,60076893,CHEQUERS TRANSPORT LIMITED, 93.46 ,07/04/2017
Delivery Units,Adults and Communities,Transport Hire Charges,60076619,M1 EXPRESS CAR SERVICES, 253.00 ,12/04/2017
Delivery Units,Adults and Communities,Transport SEN Recharge,60075648,MOTT MACDONALD LTD/CAMBRIDGE EDUCATION," 7,883.50 ",12/04/2017
Delivery Units,Adults and Communities,Transport SEN Recharge,60076777,MOTT MACDONALD LTD/CAMBRIDGE EDUCATION," 7,422.00 ",12/04/2017
Delivery Units,Adults and Communities,Transport SEN Recharge,60076813,MOTT MACDONALD LTD/CAMBRIDGE EDUCATION," 9,109.25 ",10/04/2017
Delivery Units,Adults and Communities,Ttl IT & Comms,60076576,THE BARNETGROUP LIMITED," 29,334.78 ",05/04/2017
Delivery Units,Adults and Communities,Ttl IT & Comms,60076579,THE BARNETGROUP LIMITED," 14,924.28 ",05/04/2017
Delivery Units,Adults and Communities,Voluntary Associations - Third,60076845,ONE HOUSING GROUP," 10,152.00 ",20/04/2017
Delivery Units,Adults and Communities,Voluntary Associations - Third,60075408,THE STROKE ASSOCIATION," 8,747.50 ",20/04/2017
Delivery Units,Adults and Communities,Water Services,60076879,AFFINITY WATER LIMITED, 50.00 ,19/04/2017
Delivery Units,Adults and Communities,Water Services,60076865,ANGEL SPRINGS LTD, 25.94 ,11/04/2017
Delivery Units,Adults and Communities,Water Services,60077167,ANGEL SPRINGS LTD, 20.00 ,26/04/2017
Delivery Units,Children's Education & Skills,Building Repairs & Maintenance,60076367,ADAMS ENVIRONMENTAL LTD, 700.00 ,21/04/2017
Delivery Units,Children's Education & Skills,Building Repairs & Maintenance,60075675,CONWAY AECOM LTD," 2,892.07 ",19/04/2017
Delivery Units,Children's Education & Skills,Building Repairs & Maintenance,60075461,M&J GROUP CONSTRUCTION & ROOFING," 38,399.98 ",13/04/2017
Delivery Units,Children's Education & Skills,Building Repairs & Maintenance,60074941,OAKRAY LIMITED," 90,250.00 ",05/04/2017
Delivery Units,Children's Education & Skills,Capital Construction and Works,60077071,MORGAN SINDALL," 224,539.66 ",12/04/2017
Delivery Units,Children's Education & Skills,Equipment and Materials Purcha,60077097,LETTERBOX DISTRIBUTION.COM, 229.84 ,20/04/2017
Delivery Units,Children's Education & Skills,Equipment and Materials Purcha,60076522,MURPHY SURVEYS LIMITED," 9,560.00 ",27/04/2017
Delivery Units,Children's Education & Skills,Food Costs,10013675,ISS MEDICLEAN," 61,542.45 ",06/04/2017
Delivery Units,Children's Education & Skills,Food Costs,10013676,ISS MEDICLEAN,"-3,078.15 ",06/04/2017
Delivery Units,Children's Education & Skills,Food Costs,10013698,SNOWCREST LTD," 1,125.00 ",21/04/2017
Delivery Units,Children's Education & Skills,Food Costs,10013699,SNOWCREST LTD," 1,339.00 ",21/04/2017
Delivery Units,Children's Education & Skills,Food Costs,10013700,THE FAMILY BREAD LTD, 56.80 ,20/04/2017
Delivery Units,Children's Family Services,Advertising,60074310,THE ASSOCIATION FOR FAMILY THERAPY, 545.00 ,20/04/2017
Delivery Units,Children's Family Services,Agency/Interim Non Hays,60075091,SUE HILL RECRUITMENT & SERVICES LTD, 938.16 ,06/04/2017
Delivery Units,Children's Family Services,Agency/Interim Non Hays,60075819,SUE HILL RECRUITMENT & SERVICES LTD, 918.62 ,12/04/2017
Delivery Units,Children's Family Services,Books-CDs-Audio-Video,30161854,API AVI STORES, 185.70 ,11/04/2017
Delivery Units,Children's Family Services,Books-CDs-Audio-Video,30161855,API AVI STORES, 213.55 ,11/04/2017
Delivery Units,Children's Family Services,Books-CDs-Audio-Video,30161548,ASKEWS & HOLTS LIBRARY SERVICES LTD, 4.36 ,10/04/2017
Delivery Units,Children's Family Services,Books-CDs-Audio-Video,30161549,ASKEWS & HOLTS LIBRARY SERVICES LTD, 27.96 ,10/04/2017
Delivery Units,Children's Family Services,Books-CDs-Audio-Video,30161550,ASKEWS & HOLTS LIBRARY SERVICES LTD, 4.85 ,10/04/2017
Delivery Units,Children's Family Services,Books-CDs-Audio-Video,30161551,ASKEWS & HOLTS LIBRARY SERVICES LTD, 178.21 ,10/04/2017
Delivery Units,Children's Family Services,Books-CDs-Audio-Video,30161552,ASKEWS & HOLTS LIBRARY SERVICES LTD, 71.04 ,10/04/2017
Delivery Units,Children's Family Services,Books-CDs-Audio-Video,30161553,ASKEWS & HOLTS LIBRARY SERVICES LTD, 201.53 ,10/04/2017
Delivery Units,Children's Family Services,Books-CDs-Audio-Video,30161554,ASKEWS & HOLTS LIBRARY SERVICES LTD, 352.56 ,10/04/2017
Delivery Units,Children's Family Services,Books-CDs-Audio-Video,30161555,ASKEWS & HOLTS LIBRARY SERVICES LTD, 19.00 ,10/04/2017
Delivery Units,Children's Family Services,Books-CDs-Audio-Video,30161556,ASKEWS & HOLTS LIBRARY SERVICES LTD, 36.82 ,10/04/2017
Delivery Units,Children's Family Services,Books-CDs-Audio-Video,30161557,ASKEWS & HOLTS LIBRARY SERVICES LTD, 359.55 ,10/04/2017
Delivery Units,Children's Family Services,Books-CDs-Audio-Video,30161558,ASKEWS & HOLTS LIBRARY SERVICES LTD, 71.15 ,10/04/2017
Delivery Units,Children's Family Services,Books-CDs-Audio-Video,30161559,ASKEWS & HOLTS LIBRARY SERVICES LTD, 94.02 ,10/04/2017
Delivery Units,Children's Family Services,Books-CDs-Audio-Video,30161560,ASKEWS & HOLTS LIBRARY SERVICES LTD, 5.65 ,10/04/2017
Delivery Units,Children's Family Services,Books-CDs-Audio-Video,30161561,ASKEWS & HOLTS LIBRARY SERVICES LTD, 468.77 ,10/04/2017
Delivery Units,Children's Family Services,Books-CDs-Audio-Video,30161562,ASKEWS & HOLTS LIBRARY SERVICES LTD, 454.62 ,10/04/2017
Delivery Units,Children's Family Services,Books-CDs-Audio-Video,30161563,ASKEWS & HOLTS LIBRARY SERVICES LTD, 52.80 ,10/04/2017
Delivery Units,Children's Family Services,Books-CDs-Audio-Video,30161564,ASKEWS & HOLTS LIBRARY SERVICES LTD, 19.00 ,10/04/2017
Delivery Units,Children's Family Services,Books-CDs-Audio-Video,30161565,ASKEWS & HOLTS LIBRARY SERVICES LTD, 4.85 ,10/04/2017
Delivery Units,Children's Family Services,Books-CDs-Audio-Video,30161566,ASKEWS & HOLTS LIBRARY SERVICES LTD, 99.35 ,10/04/2017
Delivery Units,Children's Family Services,Books-CDs-Audio-Video,30161567,ASKEWS & HOLTS LIBRARY SERVICES LTD, 5.42 ,10/04/2017
Delivery Units,Children's Family Services,Books-CDs-Audio-Video,30161568,ASKEWS & HOLTS LIBRARY SERVICES LTD, 463.09 ,10/04/2017
Delivery Units,Children's Family Services,Books-CDs-Audio-Video,30161569,ASKEWS & HOLTS LIBRARY SERVICES LTD, 19.00 ,10/04/2017
Delivery Units,Children's Family Services,Books-CDs-Audio-Video,30161570,ASKEWS & HOLTS LIBRARY SERVICES LTD, 33.12 ,10/04/2017
Delivery Units,Children's Family Services,Books-CDs-Audio-Video,30161571,ASKEWS & HOLTS LIBRARY SERVICES LTD, 15.30 ,10/04/2017
Delivery Units,Children's Family Services,Books-CDs-Audio-Video,30161572,ASKEWS & HOLTS LIBRARY SERVICES LTD, 241.92 ,10/04/2017
Delivery Units,Children's Family Services,Books-CDs-Audio-Video,30161573,ASKEWS & HOLTS LIBRARY SERVICES LTD, 96.99 ,10/04/2017
Delivery Units,Children's Family Services,Books-CDs-Audio-Video,30161574,ASKEWS & HOLTS LIBRARY SERVICES LTD, 57.44 ,10/04/2017
Delivery Units,Children's Family Services,Books-CDs-Audio-Video,30161575,ASKEWS & HOLTS LIBRARY SERVICES LTD, 24.64 ,10/04/2017
Delivery Units,Children's Family Services,Books-CDs-Audio-Video,30161576,ASKEWS & HOLTS LIBRARY SERVICES LTD, 229.86 ,10/04/2017
Delivery Units,Children's Family Services,Books-CDs-Audio-Video,30161577,ASKEWS & HOLTS LIBRARY SERVICES LTD, 302.11 ,10/04/2017
Delivery Units,Children's Family Services,Books-CDs-Audio-Video,30161578,ASKEWS & HOLTS LIBRARY SERVICES LTD, 15.12 ,10/04/2017
Delivery Units,Children's Family Services,Books-CDs-Audio-Video,30161579,ASKEWS & HOLTS LIBRARY SERVICES LTD, 35.43 ,10/04/2017
Delivery Units,Children's Family Services,Books-CDs-Audio-Video,30161580,ASKEWS & HOLTS LIBRARY SERVICES LTD, 13.12 ,10/04/2017
Delivery Units,Children's Family Services,Books-CDs-Audio-Video,30161581,ASKEWS & HOLTS LIBRARY SERVICES LTD, 370.17 ,10/04/2017
Delivery Units,Children's Family Services,Books-CDs-Audio-Video,30161582,ASKEWS & HOLTS LIBRARY SERVICES LTD, 98.84 ,10/04/2017
Delivery Units,Children's Family Services,Books-CDs-Audio-Video,30161583,ASKEWS & HOLTS LIBRARY SERVICES LTD, 15.12 ,10/04/2017
Delivery Units,Children's Family Services,Books-CDs-Audio-Video,30161584,ASKEWS & HOLTS LIBRARY SERVICES LTD, 55.97 ,10/04/2017
Delivery Units,Children's Family Services,Books-CDs-Audio-Video,30161585,ASKEWS & HOLTS LIBRARY SERVICES LTD, 282.69 ,10/04/2017
Delivery Units,Children's Family Services,Books-CDs-Audio-Video,30161586,ASKEWS & HOLTS LIBRARY SERVICES LTD, 181.08 ,10/04/2017
Delivery Units,Children's Family Services,Books-CDs-Audio-Video,30161587,ASKEWS & HOLTS LIBRARY SERVICES LTD, 9.00 ,10/04/2017
Delivery Units,Children's Family Services,Books-CDs-Audio-Video,30161588,ASKEWS & HOLTS LIBRARY SERVICES LTD, 23.51 ,10/04/2017
Delivery Units,Children's Family Services,Books-CDs-Audio-Video,30161589,ASKEWS & HOLTS LIBRARY SERVICES LTD, 15.15 ,10/04/2017
Delivery Units,Children's Family Services,Books-CDs-Audio-Video,30161590,ASKEWS & HOLTS LIBRARY SERVICES LTD, 15.15 ,10/04/2017
Delivery Units,Children's Family Services,Books-CDs-Audio-Video,30161591,ASKEWS & HOLTS LIBRARY SERVICES LTD, 73.99 ,10/04/2017
Delivery Units,Children's Family Services,Books-CDs-Audio-Video,30161592,ASKEWS & HOLTS LIBRARY SERVICES LTD, 3.24 ,10/04/2017
Delivery Units,Children's Family Services,Books-CDs-Audio-Video,30161593,ASKEWS & HOLTS LIBRARY SERVICES LTD, 30.80 ,10/04/2017
Delivery Units,Children's Family Services,Books-CDs-Audio-Video,30161594,ASKEWS & HOLTS LIBRARY SERVICES LTD, 5.42 ,10/04/2017
Delivery Units,Children's Family Services,Books-CDs-Audio-Video,30161595,ASKEWS & HOLTS LIBRARY SERVICES LTD, 100.00 ,10/04/2017
Delivery Units,Children's Family Services,Books-CDs-Audio-Video,30161596,ASKEWS & HOLTS LIBRARY SERVICES LTD, 95.36 ,10/04/2017
Delivery Units,Children's Family Services,Books-CDs-Audio-Video,30161597,ASKEWS & HOLTS LIBRARY SERVICES LTD, 53.78 ,10/04/2017
Delivery Units,Children's Family Services,Books-CDs-Audio-Video,30161598,ASKEWS & HOLTS LIBRARY SERVICES LTD, 8.32 ,10/04/2017
Delivery Units,Children's Family Services,Books-CDs-Audio-Video,30161599,ASKEWS & HOLTS LIBRARY SERVICES LTD, 60.25 ,10/04/2017
Delivery Units,Children's Family Services,Books-CDs-Audio-Video,30161600,ASKEWS & HOLTS LIBRARY SERVICES LTD, 604.75 ,10/04/2017
Delivery Units,Children's Family Services,Books-CDs-Audio-Video,30161601,ASKEWS & HOLTS LIBRARY SERVICES LTD, 182.02 ,10/04/2017
